Workbook

Sheet Individual Results
A8: Individual Placing | B8: Body No. | C8: Tag Number | D8: Sex | E8: Fat Dist | F8: In or Out of Spec | G8: Supplier | H8: Breed | I8: Dentition | J8: HSCW | K8: P8 Fat Depth | L8: Rib Fat Depth | M8: EMA | N8: Meat Colour | O8: Fat Colour | P8: Marbling | Q8: pH | R8: Index Score | S8: Lean Meat Yield % | T8: Yield $/kg | U8: PBP Carcase Value (Ex GST) | V8: PBP $/kg (Ex GST) | W8: +10 % GST | X8: PBP Carcase Value (GST Inclusive) | Y8: PBP $/kg(GST Inclusive)
A9: 1 | B9: =IF('[1]Sort Sheet'!D5=0,"",'[1]Sort Sheet'!D5) -> 201 | C9: =IF('[1]Sort Sheet'!E5=0,"",'[1]Sort Sheet'!E5) -> 321B | D9: =IF('[1]Sort Sheet'!F5=0,"",'[1]Sort Sheet'!F5) -> M | E9: =IF('[1]Sort Sheet'!E5=0,"",'[1]Sort Sheet'!AT5) -> Y | F9: =IF('[1]Sort Sheet'!E5=0,"",'[1]Sort Sheet'!H5) -> Y | G9: =IF('[1]Sort Sheet'!E5=0,"",'[1]Sort Sheet'!J5) -> Darr Creek Pastoral | H9: =IF('[1]Sort Sheet'!E5=0,"",'[1]Sort Sheet'!L5) -> Angus X Limousin | I9: =IF('[1]Sort Sheet'!E5=0,"",'[1]Sort Sheet'!O5) -> 0 | J9: =IF('[1]Sort Sheet'!P5=0,"",'[1]Sort Sheet'!P5) -> 272.8 | K9: =IF('[1]Sort Sheet'!E5=0,"",'[1]Sort Sheet'!Q5) -> 6 | L9: =IF('[1]Sort Sheet'!E5=0,"",'[1]Sort Sheet'!R5) -> 3 | M9: =IF('[1]Sort Sheet'!E5=0,"",'[1]Sort Sheet'!S5) -> 94 | N9: =IF('[1]Sort Sheet'!E5=0,"",'[1]Sort Sheet'!U5) -> 1b | O9: =IF('[1]Sort Sheet'!E5=0,"",'[1]Sort Sheet'!V5) -> 0 | P9: =IF('[1]Sort Sheet'!E5=0,"",'[1]Sort Sheet'!W5) -> 0 | Q9: =IF('[1]Sort Sheet'!E5=0,"",'[1]Sort Sheet'!X5) -> 5.46 | R9: =IF('[1]Sort Sheet'!E5=0,"",'[1]Sort Sheet'!M5) -> 54.37 | S9: =IF('[1]Sort Sheet'!E5=0,"",'[1]Sort Sheet'!Z5) -> 63.35 | T9: =IF('[1]Sort Sheet'!E5=0,"",'[1]Sort Sheet'!AA5) -> 10.75667656 | U9: =IF('[1]Sort Sheet'!E5=0,"",'[1]Sort Sheet'!AB5) -> 1858.955935 | V9: =IF('[1]Sort Sheet'!E5=0,"",'[1]Sort Sheet'!AC5) -> 6.814354599 | W9: =IF(U9="","",ROUND(U9*0.1,2)) -> 185.9 | X9: =IF(W9="","",U9+W9) -> 2044.855935 | Y9: =X9/J9 -> 7.495806212
A10: 2 | B10: =IF('[1]Sort Sheet'!D6=0,"",'[1]Sort Sheet'!D6) -> 289 | C10: =IF('[1]Sort Sheet'!E6=0,"",'[1]Sort Sheet'!E6) -> 349C | D10: =IF('[1]Sort Sheet'!F6=0,"",'[1]Sort Sheet'!F6) -> M | E10: =IF('[1]Sort Sheet'!E6=0,"",'[1]Sort Sheet'!AT6) -> Y | F10: =IF('[1]Sort Sheet'!E6=0,"",'[1]Sort Sheet'!H6) -> Y | G10: =IF('[1]Sort Sheet'!E6=0,"",'[1]Sort Sheet'!J6) -> B Feeders Pty ltd | H10: =IF('[1]Sort Sheet'!E6=0,"",'[1]Sort Sheet'!L6) -> Charolais X Santa | I10: =IF('[1]Sort Sheet'!E6=0,"",'[1]Sort Sheet'!O6) -> 0 | J10: =IF('[1]Sort Sheet'!P6=0,"",'[1]Sort Sheet'!P6) -> 304.4 | K10: =IF('[1]Sort Sheet'!E6=0,"",'[1]Sort Sheet'!Q6) -> 6 | L10: =IF('[1]Sort Sheet'!E6=0,"",'[1]Sort Sheet'!R6) -> 3 | M10: =IF('[1]Sort Sheet'!E6=0,"",'[1]Sort Sheet'!S6) -> 102 | N10: =IF('[1]Sort Sheet'!E6=0,"",'[1]Sort Sheet'!U6) -> 1b | O10: =IF('[1]Sort Sheet'!E6=0,"",'[1]Sort Sheet'!V6) -> 1 | P10: =IF('[1]Sort Sheet'!E6=0,"",'[1]Sort Sheet'!W6) -> 1 | Q10: =IF('[1]Sort Sheet'!E6=0,"",'[1]Sort Sheet'!X6) -> 5.49 | R10: =IF('[1]Sort Sheet'!E6=0,"",'[1]Sort Sheet'!M6) -> 51.87 | S10: =IF('[1]Sort Sheet'!E6=0,"",'[1]Sort Sheet'!Z6) -> 63.17 | T10: =IF('[1]Sort Sheet'!E6=0,"",'[1]Sort Sheet'!AA6) -> 10.75667656 | U10: =IF('[1]Sort Sheet'!E6=0,"",'[1]Sort Sheet'!AB6) -> 2068.395742 | V10: =IF('[1]Sort Sheet'!E6=0,"",'[1]Sort Sheet'!AC6) -> 6.794992582 | W10: =IF(U10="","",ROUND(U10*0.1,2)) -> 206.84 | X10: =IF(W10="","",U10+W10) -> 2275.235742 | Y10: =X10/J10 -> 7.474493239
A11: 3 | B11: =IF('[1]Sort Sheet'!D7=0,"",'[1]Sort Sheet'!D7) -> 203 | C11: =IF('[1]Sort Sheet'!E7=0,"",'[1]Sort Sheet'!E7) -> 321C | D11: =IF('[1]Sort Sheet'!F7=0,"",'[1]Sort Sheet'!F7) -> M | E11: =IF('[1]Sort Sheet'!E7=0,"",'[1]Sort Sheet'!AT7) -> Y | F11: =IF('[1]Sort Sheet'!E7=0,"",'[1]Sort Sheet'!H7) -> Y | G11: =IF('[1]Sort Sheet'!E7=0,"",'[1]Sort Sheet'!J7) -> Darr Creek Pastoral | H11: =IF('[1]Sort Sheet'!E7=0,"",'[1]Sort Sheet'!L7) -> Angus X Limousin | I11: =IF('[1]Sort Sheet'!E7=0,"",'[1]Sort Sheet'!O7) -> 0 | J11: =IF('[1]Sort Sheet'!P7=0,"",'[1]Sort Sheet'!P7) -> 269.8 | K11: =IF('[1]Sort Sheet'!E7=0,"",'[1]Sort Sheet'!Q7) -> 10 | L11: =IF('[1]Sort Sheet'!E7=0,"",'[1]Sort Sheet'!R7) -> 3 | M11: =IF('[1]Sort Sheet'!E7=0,"",'[1]Sort Sheet'!S7) -> 90 | N11: =IF('[1]Sort Sheet'!E7=0,"",'[1]Sort Sheet'!U7) -> 2 | O11: =IF('[1]Sort Sheet'!E7=0,"",'[1]Sort Sheet'!V7) -> 1 | P11: =IF('[1]Sort Sheet'!E7=0,"",'[1]Sort Sheet'!W7) -> 1 | Q11: =IF('[1]Sort Sheet'!E7=0,"",'[1]Sort Sheet'!X7) -> 5.64 | R11: =IF('[1]Sort Sheet'!E7=0,"",'[1]Sort Sheet'!M7) -> 54.48 | S11: =IF('[1]Sort Sheet'!E7=0,"",'[1]Sort Sheet'!Z7) -> 62.79 | T11: =IF('[1]Sort Sheet'!E7=0,"",'[1]Sort Sheet'!AA7) -> 10.75667656 | U11: =IF('[1]Sort Sheet'!E7=0,"",'[1]Sort Sheet'!AB7) -> 1822.260823 | V11: =IF('[1]Sort Sheet'!E7=0,"",'[1]Sort Sheet'!AC7) -> 6.754117211 | W11: 182.23 | X11: 2004.490823 | Y11: 7.429543452
A12: 4 | B12: =IF('[1]Sort Sheet'!D8=0,"",'[1]Sort Sheet'!D8) -> 212 | C12: =IF('[1]Sort Sheet'!E8=0,"",'[1]Sort Sheet'!E8) -> 322B | D12: =IF('[1]Sort Sheet'!F8=0,"",'[1]Sort Sheet'!F8) -> M | E12: =IF('[1]Sort Sheet'!E8=0,"",'[1]Sort Sheet'!AT8) -> Y | F12: =IF('[1]Sort Sheet'!E8=0,"",'[1]Sort Sheet'!H8) -> Y | G12: =IF('[1]Sort Sheet'!E8=0,"",'[1]Sort Sheet'!J8) -> Rich Enterprises P/L | H12: =IF('[1]Sort Sheet'!E8=0,"",'[1]Sort Sheet'!L8) -> Angus / Charolais X | I12: =IF('[1]Sort Sheet'!E8=0,"",'[1]Sort Sheet'!O8) -> 0 | J12: =IF('[1]Sort Sheet'!P8=0,"",'[1]Sort Sheet'!P8) -> 275 | K12: =IF('[1]Sort Sheet'!E8=0,"",'[1]Sort Sheet'!Q8) -> 8 | L12: =IF('[1]Sort Sheet'!E8=0,"",'[1]Sort Sheet'!R8) -> 3 | M12: =IF('[1]Sort Sheet'!E8=0,"",'[1]Sort Sheet'!S8) -> 91 | N12: =IF('[1]Sort Sheet'!E8=0,"",'[1]Sort Sheet'!U8) -> 1b | O12: =IF('[1]Sort Sheet'!E8=0,"",'[1]Sort Sheet'!V8) -> 1 | P12: =IF('[1]Sort Sheet'!E8=0,"",'[1]Sort Sheet'!W8) -> 1 | Q12: =IF('[1]Sort Sheet'!E8=0,"",'[1]Sort Sheet'!X8) -> 5.48 | R12: =IF('[1]Sort Sheet'!E8=0,"",'[1]Sort Sheet'!M8) -> 55.52 | S12: =IF('[1]Sort Sheet'!E8=0,"",'[1]Sort Sheet'!Z8) -> 62.73 | T12: =IF('[1]Sort Sheet'!E8=0,"",'[1]Sort Sheet'!AA8) -> 10.75667656 | U12: =IF('[1]Sort Sheet'!E8=0,"",'[1]Sort Sheet'!AB8) -> 1855.607381 | V12: =IF('[1]Sort Sheet'!E8=0,"",'[1]Sort Sheet'!AC8) -> 6.747663205 | W12: 185.56 | X12: 2041.167381 | Y12: 7.422426841
A13: 5 | B13: =IF('[1]Sort Sheet'!D9=0,"",'[1]Sort Sheet'!D9) -> 238 | C13: =IF('[1]Sort Sheet'!E9=0,"",'[1]Sort Sheet'!E9) -> 331C | D13: =IF('[1]Sort Sheet'!F9=0,"",'[1]Sort Sheet'!F9) -> M | E13: =IF('[1]Sort Sheet'!E9=0,"",'[1]Sort Sheet'!AT9) -> Y | F13: =IF('[1]Sort Sheet'!E9=0,"",'[1]Sort Sheet'!H9) -> Y | G13: =IF('[1]Sort Sheet'!E9=0,"",'[1]Sort Sheet'!J9) -> G E & E E Kroll | H13: =IF('[1]Sort Sheet'!E9=0,"",'[1]Sort Sheet'!L9) -> Angus X | I13: =IF('[1]Sort Sheet'!E9=0,"",'[1]Sort Sheet'!O9) -> 0 | J13: =IF('[1]Sort Sheet'!P9=0,"",'[1]Sort Sheet'!P9) -> 252.8 | K13: =IF('[1]Sort Sheet'!E9=0,"",'[1]Sort Sheet'!Q9) -> 6 | L13: =IF('[1]Sort Sheet'!E9=0,"",'[1]Sort Sheet'!R9) -> 3 | M13: =IF('[1]Sort Sheet'!E9=0,"",'[1]Sort Sheet'!S9) -> 84 | N13: =IF('[1]Sort Sheet'!E9=0,"",'[1]Sort Sheet'!U9) -> 3 | O13: =IF('[1]Sort Sheet'!E9=0,"",'[1]Sort Sheet'!V9) -> 1 | P13: =IF('[1]Sort Sheet'!E9=0,"",'[1]Sort Sheet'!W9) -> 1 | Q13: =IF('[1]Sort Sheet'!E9=0,"",'[1]Sort Sheet'!X9) -> 5.66 | R13: =IF('[1]Sort Sheet'!E9=0,"",'[1]Sort Sheet'!M9) -> 54.54 | S13: =IF('[1]Sort Sheet'!E9=0,"",'[1]Sort Sheet'!Z9) -> 62.62 | T13: =IF('[1]Sort Sheet'!E9=0,"",'[1]Sort Sheet'!AA9) -> 10.75667656 | U13: =IF('[1]Sort Sheet'!E9=0,"",'[1]Sort Sheet'!AB9) -> 1702.818042 | V13: =IF('[1]Sort Sheet'!E9=0,"",'[1]Sort Sheet'!AC9) -> 6.735830861 | W13: 170.28 | X13: 1873.098042 | Y13: 7.40940681
A14: 6 | B14: =IF('[1]Sort Sheet'!D10=0,"",'[1]Sort Sheet'!D10) -> 231 | C14: =IF('[1]Sort Sheet'!E10=0,"",'[1]Sort Sheet'!E10) -> 328C | D14: =IF('[1]Sort Sheet'!F10=0,"",'[1]Sort Sheet'!F10) -> M | E14: =IF('[1]Sort Sheet'!E10=0,"",'[1]Sort Sheet'!AT10) -> Y | F14: =IF('[1]Sort Sheet'!E10=0,"",'[1]Sort Sheet'!H10) -> Y | G14: =IF('[1]Sort Sheet'!E10=0,"",'[1]Sort Sheet'!J10) -> Juandah Grazing | H14: =IF('[1]Sort Sheet'!E10=0,"",'[1]Sort Sheet'!L10) -> Charolais X Droughtmaster | I14: =IF('[1]Sort Sheet'!E10=0,"",'[1]Sort Sheet'!O10) -> 0 | J14: =IF('[1]Sort Sheet'!P10=0,"",'[1]Sort Sheet'!P10) -> 313.2 | K14: =IF('[1]Sort Sheet'!E10=0,"",'[1]Sort Sheet'!Q10) -> 15 | L14: =IF('[1]Sort Sheet'!E10=0,"",'[1]Sort Sheet'!R10) -> 4 | M14: =IF('[1]Sort Sheet'!E10=0,"",'[1]Sort Sheet'!S10) -> 101 | N14: =IF('[1]Sort Sheet'!E10=0,"",'[1]Sort Sheet'!U10) -> 2 | O14: =IF('[1]Sort Sheet'!E10=0,"",'[1]Sort Sheet'!V10) -> 1 | P14: =IF('[1]Sort Sheet'!E10=0,"",'[1]Sort Sheet'!W10) -> 0 | Q14: =IF('[1]Sort Sheet'!E10=0,"",'[1]Sort Sheet'!X10) -> 5.58 | R14: =IF('[1]Sort Sheet'!E10=0,"",'[1]Sort Sheet'!M10) -> 52.65 | S14: =IF('[1]Sort Sheet'!E10=0,"",'[1]Sort Sheet'!Z10) -> 62.24 | T14: =IF('[1]Sort Sheet'!E10=0,"",'[1]Sort Sheet'!AA10) -> 10.75667656 | U14: =IF('[1]Sort Sheet'!E10=0,"",'[1]Sort Sheet'!AB10) -> 2096.860059 | V14: =IF('[1]Sort Sheet'!E10=0,"",'[1]Sort Sheet'!AC10) -> 6.69495549 | W14: 209.69 | X14: 2306.550059 | Y14: 7.364463791
A15: 7 | B15: =IF('[1]Sort Sheet'!D11=0,"",'[1]Sort Sheet'!D11) -> 202 | C15: =IF('[1]Sort Sheet'!E11=0,"",'[1]Sort Sheet'!E11) -> 319B | D15: =IF('[1]Sort Sheet'!F11=0,"",'[1]Sort Sheet'!F11) -> M | E15: =IF('[1]Sort Sheet'!E11=0,"",'[1]Sort Sheet'!AT11) -> Y | F15: =IF('[1]Sort Sheet'!E11=0,"",'[1]Sort Sheet'!H11) -> Y | G15: =IF('[1]Sort Sheet'!E11=0,"",'[1]Sort Sheet'!J11) -> Darr Creek Pastoral | H15: =IF('[1]Sort Sheet'!E11=0,"",'[1]Sort Sheet'!L11) -> Angus X Limousin | I15: =IF('[1]Sort Sheet'!E11=0,"",'[1]Sort Sheet'!O11) -> 0 | J15: =IF('[1]Sort Sheet'!P11=0,"",'[1]Sort Sheet'!P11) -> 277.8 | K15: =IF('[1]Sort Sheet'!E11=0,"",'[1]Sort Sheet'!Q11) -> 10 | L15: =IF('[1]Sort Sheet'!E11=0,"",'[1]Sort Sheet'!R11) -> 3 | M15: =IF('[1]Sort Sheet'!E11=0,"",'[1]Sort Sheet'!S11) -> 88 | N15: =IF('[1]Sort Sheet'!E11=0,"",'[1]Sort Sheet'!U11) -> 2 | O15: =IF('[1]Sort Sheet'!E11=0,"",'[1]Sort Sheet'!V11) -> 1 | P15: =IF('[1]Sort Sheet'!E11=0,"",'[1]Sort Sheet'!W11) -> 1 | Q15: =IF('[1]Sort Sheet'!E11=0,"",'[1]Sort Sheet'!X11) -> 5.56 | R15: =IF('[1]Sort Sheet'!E11=0,"",'[1]Sort Sheet'!M11) -> 55.05 | S15: =IF('[1]Sort Sheet'!E11=0,"",'[1]Sort Sheet'!Z11) -> 62.2 | T15: =IF('[1]Sort Sheet'!E11=0,"",'[1]Sort Sheet'!AA11) -> 10.75667656 | U15: =IF('[1]Sort Sheet'!E11=0,"",'[1]Sort Sheet'!AB11) -> 1858.663353 | V15: =IF('[1]Sort Sheet'!E11=0,"",'[1]Sort Sheet'!AC11) -> 6.690652819 | W15: 185.87 | X15: 2044.533353 | Y15: 7.359731293
A16: 8 | B16: =IF('[1]Sort Sheet'!D12=0,"",'[1]Sort Sheet'!D12) -> 237 | C16: =IF('[1]Sort Sheet'!E12=0,"",'[1]Sort Sheet'!E12) -> 331A | D16: =IF('[1]Sort Sheet'!F12=0,"",'[1]Sort Sheet'!F12) -> M | E16: =IF('[1]Sort Sheet'!E12=0,"",'[1]Sort Sheet'!AT12) -> Y | F16: =IF('[1]Sort Sheet'!E12=0,"",'[1]Sort Sheet'!H12) -> Y | G16: =IF('[1]Sort Sheet'!E12=0,"",'[1]Sort Sheet'!J12) -> G E & E E Kroll | H16: =IF('[1]Sort Sheet'!E12=0,"",'[1]Sort Sheet'!L12) -> Angus X | I16: =IF('[1]Sort Sheet'!E12=0,"",'[1]Sort Sheet'!O12) -> 0 | J16: =IF('[1]Sort Sheet'!P12=0,"",'[1]Sort Sheet'!P12) -> 268.8 | K16: =IF('[1]Sort Sheet'!E12=0,"",'[1]Sort Sheet'!Q12) -> 8 | L16: =IF('[1]Sort Sheet'!E12=0,"",'[1]Sort Sheet'!R12) -> 4 | M16: =IF('[1]Sort Sheet'!E12=0,"",'[1]Sort Sheet'!S12) -> 89 | N16: =IF('[1]Sort Sheet'!E12=0,"",'[1]Sort Sheet'!U12) -> 2 | O16: =IF('[1]Sort Sheet'!E12=0,"",'[1]Sort Sheet'!V12) -> 1 | P16: =IF('[1]Sort Sheet'!E12=0,"",'[1]Sort Sheet'!W12) -> 0 | Q16: =IF('[1]Sort Sheet'!E12=0,"",'[1]Sort Sheet'!X12) -> 5.55 | R16: =IF('[1]Sort Sheet'!E12=0,"",'[1]Sort Sheet'!M12) -> 51.74 | S16: =IF('[1]Sort Sheet'!E12=0,"",'[1]Sort Sheet'!Z12) -> 62.15 | T16: =IF('[1]Sort Sheet'!E12=0,"",'[1]Sort Sheet'!AA12) -> 10.75667656 | U16: =IF('[1]Sort Sheet'!E12=0,"",'[1]Sort Sheet'!AB12) -> 1797.00178 | V16: =IF('[1]Sort Sheet'!E12=0,"",'[1]Sort Sheet'!AC12) -> 6.685274481 | W16: 179.7 | X16: 1976.70178 | Y16: 7.353801266
A17: 9 | B17: =IF('[1]Sort Sheet'!D13=0,"",'[1]Sort Sheet'!D13) -> 267 | C17: =IF('[1]Sort Sheet'!E13=0,"",'[1]Sort Sheet'!E13) -> 340A | D17: =IF('[1]Sort Sheet'!F13=0,"",'[1]Sort Sheet'!F13) -> M | E17: =IF('[1]Sort Sheet'!E13=0,"",'[1]Sort Sheet'!AT13) -> Y | F17: =IF('[1]Sort Sheet'!E13=0,"",'[1]Sort Sheet'!H13) -> Y | G17: =IF('[1]Sort Sheet'!E13=0,"",'[1]Sort Sheet'!J13) -> Smithfield Cattle Co | H17: =IF('[1]Sort Sheet'!E13=0,"",'[1]Sort Sheet'!L13) -> Angus | I17: =IF('[1]Sort Sheet'!E13=0,"",'[1]Sort Sheet'!O13) -> 0 | J17: =IF('[1]Sort Sheet'!P13=0,"",'[1]Sort Sheet'!P13) -> 272 | K17: =IF('[1]Sort Sheet'!E13=0,"",'[1]Sort Sheet'!Q13) -> 10 | L17: =IF('[1]Sort Sheet'!E13=0,"",'[1]Sort Sheet'!R13) -> 3 | M17: =IF('[1]Sort Sheet'!E13=0,"",'[1]Sort Sheet'!S13) -> 84 | N17: =IF('[1]Sort Sheet'!E13=0,"",'[1]Sort Sheet'!U13) -> 1b | O17: =IF('[1]Sort Sheet'!E13=0,"",'[1]Sort Sheet'!V13) -> 1 | P17: =IF('[1]Sort Sheet'!E13=0,"",'[1]Sort Sheet'!W13) -> 1 | Q17: =IF('[1]Sort Sheet'!E13=0,"",'[1]Sort Sheet'!X13) -> 5.51 | R17: =IF('[1]Sort Sheet'!E13=0,"",'[1]Sort Sheet'!M13) -> 54.66 | S17: =IF('[1]Sort Sheet'!E13=0,"",'[1]Sort Sheet'!Z13) -> 61.75 | T17: =IF('[1]Sort Sheet'!E13=0,"",'[1]Sort Sheet'!AA13) -> 10.75667656 | U17: =IF('[1]Sort Sheet'!E13=0,"",'[1]Sort Sheet'!AB13) -> 1806.691395 | V17: =IF('[1]Sort Sheet'!E13=0,"",'[1]Sort Sheet'!AC13) -> 6.642247774 | W17: 180.67 | X17: 1987.361395 | Y17: 7.306475716
A18: 10 | B18: =IF('[1]Sort Sheet'!D14=0,"",'[1]Sort Sheet'!D14) -> 204 | C18: =IF('[1]Sort Sheet'!E14=0,"",'[1]Sort Sheet'!E14) -> 320C | D18: =IF('[1]Sort Sheet'!F14=0,"",'[1]Sort Sheet'!F14) -> M | E18: =IF('[1]Sort Sheet'!E14=0,"",'[1]Sort Sheet'!AT14) -> Y | F18: =IF('[1]Sort Sheet'!E14=0,"",'[1]Sort Sheet'!H14) -> Y | G18: =IF('[1]Sort Sheet'!E14=0,"",'[1]Sort Sheet'!J14) -> Darr Creek Pastoral | H18: =IF('[1]Sort Sheet'!E14=0,"",'[1]Sort Sheet'!L14) -> Angus/Hereford X Limousin | I18: =IF('[1]Sort Sheet'!E14=0,"",'[1]Sort Sheet'!O14) -> 0 | J18: =IF('[1]Sort Sheet'!P14=0,"",'[1]Sort Sheet'!P14) -> 277.4 | K18: =IF('[1]Sort Sheet'!E14=0,"",'[1]Sort Sheet'!Q14) -> 8 | L18: =IF('[1]Sort Sheet'!E14=0,"",'[1]Sort Sheet'!R14) -> 3 | M18: =IF('[1]Sort Sheet'!E14=0,"",'[1]Sort Sheet'!S14) -> 84 | N18: =IF('[1]Sort Sheet'!E14=0,"",'[1]Sort Sheet'!U14) -> 1b | O18: =IF('[1]Sort Sheet'!E14=0,"",'[1]Sort Sheet'!V14) -> 0 | P18: =IF('[1]Sort Sheet'!E14=0,"",'[1]Sort Sheet'!W14) -> 1 | Q18: =IF('[1]Sort Sheet'!E14=0,"",'[1]Sort Sheet'!X14) -> 5.59 | R18: =IF('[1]Sort Sheet'!E14=0,"",'[1]Sort Sheet'!M14) -> 56.6 | S18: =IF('[1]Sort Sheet'!E14=0,"",'[1]Sort Sheet'!Z14) -> 61.56 | T18: =IF('[1]Sort Sheet'!E14=0,"",'[1]Sort Sheet'!AA14) -> 10.75667656 | U18: =IF('[1]Sort Sheet'!E14=0,"",'[1]Sort Sheet'!AB14) -> 1836.890119 | V18: =IF('[1]Sort Sheet'!E14=0,"",'[1]Sort Sheet'!AC14) -> 6.621810089 | W18: 183.69 | X18: 2020.580119 | Y18: 7.28399466
A19: 11 | B19: =IF('[1]Sort Sheet'!D15=0,"",'[1]Sort Sheet'!D15) -> 214 | C19: =IF('[1]Sort Sheet'!E15=0,"",'[1]Sort Sheet'!E15) -> 327C | D19: =IF('[1]Sort Sheet'!F15=0,"",'[1]Sort Sheet'!F15) -> M | E19: =IF('[1]Sort Sheet'!E15=0,"",'[1]Sort Sheet'!AT15) -> Y | F19: =IF('[1]Sort Sheet'!E15=0,"",'[1]Sort Sheet'!H15) -> Y | G19: =IF('[1]Sort Sheet'!E15=0,"",'[1]Sort Sheet'!J15) -> D J & K L Hart | H19: =IF('[1]Sort Sheet'!E15=0,"",'[1]Sort Sheet'!L15) -> Angus / Charolais X | I19: =IF('[1]Sort Sheet'!E15=0,"",'[1]Sort Sheet'!O15) -> 0 | J19: =IF('[1]Sort Sheet'!P15=0,"",'[1]Sort Sheet'!P15) -> 287.6 | K19: =IF('[1]Sort Sheet'!E15=0,"",'[1]Sort Sheet'!Q15) -> 11 | L19: =IF('[1]Sort Sheet'!E15=0,"",'[1]Sort Sheet'!R15) -> 3 | M19: =IF('[1]Sort Sheet'!E15=0,"",'[1]Sort Sheet'!S15) -> 87 | N19: =IF('[1]Sort Sheet'!E15=0,"",'[1]Sort Sheet'!U15) -> 1b | O19: =IF('[1]Sort Sheet'!E15=0,"",'[1]Sort Sheet'!V15) -> 1 | P19: =IF('[1]Sort Sheet'!E15=0,"",'[1]Sort Sheet'!W15) -> 2 | Q19: =IF('[1]Sort Sheet'!E15=0,"",'[1]Sort Sheet'!X15) -> 5.49 | R19: =IF('[1]Sort Sheet'!E15=0,"",'[1]Sort Sheet'!M15) -> 56.88 | S19: =IF('[1]Sort Sheet'!E15=0,"",'[1]Sort Sheet'!Z15) -> 61.52 | T19: =IF('[1]Sort Sheet'!E15=0,"",'[1]Sort Sheet'!AA15) -> 10.75667656 | U19: =IF('[1]Sort Sheet'!E15=0,"",'[1]Sort Sheet'!AB15) -> 1903.195134 | V19: =IF('[1]Sort Sheet'!E15=0,"",'[1]Sort Sheet'!AC15) -> 6.617507418 | W19: 190.32 | X19: 2093.515134 | Y19: 7.279259852
A20: 12 | B20: =IF('[1]Sort Sheet'!D16=0,"",'[1]Sort Sheet'!D16) -> 206 | C20: =IF('[1]Sort Sheet'!E16=0,"",'[1]Sort Sheet'!E16) -> 321A | D20: =IF('[1]Sort Sheet'!F16=0,"",'[1]Sort Sheet'!F16) -> M | E20: =IF('[1]Sort Sheet'!E16=0,"",'[1]Sort Sheet'!AT16) -> Y | F20: =IF('[1]Sort Sheet'!E16=0,"",'[1]Sort Sheet'!H16) -> Y | G20: =IF('[1]Sort Sheet'!E16=0,"",'[1]Sort Sheet'!J16) -> Darr Creek Pastoral | H20: =IF('[1]Sort Sheet'!E16=0,"",'[1]Sort Sheet'!L16) -> Angus X Limousin | I20: =IF('[1]Sort Sheet'!E16=0,"",'[1]Sort Sheet'!O16) -> 0 | J20: =IF('[1]Sort Sheet'!P16=0,"",'[1]Sort Sheet'!P16) -> 292.4 | K20: =IF('[1]Sort Sheet'!E16=0,"",'[1]Sort Sheet'!Q16) -> 10 | L20: =IF('[1]Sort Sheet'!E16=0,"",'[1]Sort Sheet'!R16) -> 4 | M20: =IF('[1]Sort Sheet'!E16=0,"",'[1]Sort Sheet'!S16) -> 91 | N20: =IF('[1]Sort Sheet'!E16=0,"",'[1]Sort Sheet'!U16) -> 2 | O20: =IF('[1]Sort Sheet'!E16=0,"",'[1]Sort Sheet'!V16) -> 1 | P20: =IF('[1]Sort Sheet'!E16=0,"",'[1]Sort Sheet'!W16) -> 1 | Q20: =IF('[1]Sort Sheet'!E16=0,"",'[1]Sort Sheet'!X16) -> 5.58 | R20: =IF('[1]Sort Sheet'!E16=0,"",'[1]Sort Sheet'!M16) -> 56.22 | S20: =IF('[1]Sort Sheet'!E16=0,"",'[1]Sort Sheet'!Z16) -> 61.5 | T20: =IF('[1]Sort Sheet'!E16=0,"",'[1]Sort Sheet'!AA16) -> 10.75667656 | U20: =IF('[1]Sort Sheet'!E16=0,"",'[1]Sort Sheet'!AB16) -> 1934.330119 | V20: =IF('[1]Sort Sheet'!E16=0,"",'[1]Sort Sheet'!AC16) -> 6.615356083 | W20: 193.43 | X20: 2127.760119 | Y20: 7.276881391
A21: 13 | B21: =IF('[1]Sort Sheet'!D17=0,"",'[1]Sort Sheet'!D17) -> 227 | C21: =IF('[1]Sort Sheet'!E17=0,"",'[1]Sort Sheet'!E17) -> 328B | D21: =IF('[1]Sort Sheet'!F17=0,"",'[1]Sort Sheet'!F17) -> F | E21: =IF('[1]Sort Sheet'!E17=0,"",'[1]Sort Sheet'!AT17) -> Y | F21: =IF('[1]Sort Sheet'!E17=0,"",'[1]Sort Sheet'!H17) -> Y | G21: =IF('[1]Sort Sheet'!E17=0,"",'[1]Sort Sheet'!J17) -> Juandah Grazing | H21: =IF('[1]Sort Sheet'!E17=0,"",'[1]Sort Sheet'!L17) -> Charolais X Droughtmaster | I21: =IF('[1]Sort Sheet'!E17=0,"",'[1]Sort Sheet'!O17) -> 0 | J21: =IF('[1]Sort Sheet'!P17=0,"",'[1]Sort Sheet'!P17) -> 287.6 | K21: =IF('[1]Sort Sheet'!E17=0,"",'[1]Sort Sheet'!Q17) -> 10 | L21: =IF('[1]Sort Sheet'!E17=0,"",'[1]Sort Sheet'!R17) -> 4 | M21: =IF('[1]Sort Sheet'!E17=0,"",'[1]Sort Sheet'!S17) -> 106 | N21: =IF('[1]Sort Sheet'!E17=0,"",'[1]Sort Sheet'!U17) -> 1b | O21: =IF('[1]Sort Sheet'!E17=0,"",'[1]Sort Sheet'!V17) -> 1 | P21: =IF('[1]Sort Sheet'!E17=0,"",'[1]Sort Sheet'!W17) -> 1 | Q21: =IF('[1]Sort Sheet'!E17=0,"",'[1]Sort Sheet'!X17) -> 5.48 | R21: =IF('[1]Sort Sheet'!E17=0,"",'[1]Sort Sheet'!M17) -> 54.87 | S21: =IF('[1]Sort Sheet'!E17=0,"",'[1]Sort Sheet'!Z17) -> 61.49 | T21: =IF('[1]Sort Sheet'!E17=0,"",'[1]Sort Sheet'!AA17) -> 10.75667656 | U21: =IF('[1]Sort Sheet'!E17=0,"",'[1]Sort Sheet'!AB17) -> 1902.267047 | V21: =IF('[1]Sort Sheet'!E17=0,"",'[1]Sort Sheet'!AC17) -> 6.614280415 | W21: 190.23 | X21: 2092.497047 | Y21: 7.275719915
A22: 14 | B22: =IF('[1]Sort Sheet'!D18=0,"",'[1]Sort Sheet'!D18) -> 230 | C22: =IF('[1]Sort Sheet'!E18=0,"",'[1]Sort Sheet'!E18) -> 330A | D22: =IF('[1]Sort Sheet'!F18=0,"",'[1]Sort Sheet'!F18) -> M | E22: =IF('[1]Sort Sheet'!E18=0,"",'[1]Sort Sheet'!AT18) -> Y | F22: =IF('[1]Sort Sheet'!E18=0,"",'[1]Sort Sheet'!H18) -> Y | G22: =IF('[1]Sort Sheet'!E18=0,"",'[1]Sort Sheet'!J18) -> Juandah Grazing | H22: =IF('[1]Sort Sheet'!E18=0,"",'[1]Sort Sheet'!L18) -> Charolais X Droughtmaster | I22: =IF('[1]Sort Sheet'!E18=0,"",'[1]Sort Sheet'!O18) -> 0 | J22: =IF('[1]Sort Sheet'!P18=0,"",'[1]Sort Sheet'!P18) -> 272.8 | K22: =IF('[1]Sort Sheet'!E18=0,"",'[1]Sort Sheet'!Q18) -> 8 | L22: =IF('[1]Sort Sheet'!E18=0,"",'[1]Sort Sheet'!R18) -> 5 | M22: =IF('[1]Sort Sheet'!E18=0,"",'[1]Sort Sheet'!S18) -> 87 | N22: =IF('[1]Sort Sheet'!E18=0,"",'[1]Sort Sheet'!U18) -> 1b | O22: =IF('[1]Sort Sheet'!E18=0,"",'[1]Sort Sheet'!V18) -> 1 | P22: =IF('[1]Sort Sheet'!E18=0,"",'[1]Sort Sheet'!W18) -> 1 | Q22: =IF('[1]Sort Sheet'!E18=0,"",'[1]Sort Sheet'!X18) -> 5.5 | R22: =IF('[1]Sort Sheet'!E18=0,"",'[1]Sort Sheet'!M18) -> 56.67 | S22: =IF('[1]Sort Sheet'!E18=0,"",'[1]Sort Sheet'!Z18) -> 61.27 | T22: =IF('[1]Sort Sheet'!E18=0,"",'[1]Sort Sheet'!AA18) -> 10.75667656 | U22: =IF('[1]Sort Sheet'!E18=0,"",'[1]Sort Sheet'!AB18) -> 1797.91997 | V22: =IF('[1]Sort Sheet'!E18=0,"",'[1]Sort Sheet'!AC18) -> 6.590615727 | W22: 179.79 | X22: 1977.70997 | Y22: 7.249669979
A23: 15 | B23: =IF('[1]Sort Sheet'!D19=0,"",'[1]Sort Sheet'!D19) -> 259 | C23: =IF('[1]Sort Sheet'!E19=0,"",'[1]Sort Sheet'!E19) -> 338C | D23: =IF('[1]Sort Sheet'!F19=0,"",'[1]Sort Sheet'!F19) -> F | E23: =IF('[1]Sort Sheet'!E19=0,"",'[1]Sort Sheet'!AT19) -> Y | F23: =IF('[1]Sort Sheet'!E19=0,"",'[1]Sort Sheet'!H19) -> Y | G23: =IF('[1]Sort Sheet'!E19=0,"",'[1]Sort Sheet'!J19) -> RB & VA Budd & Willoise Grazing Co Pty Ltd | H23: =IF('[1]Sort Sheet'!E19=0,"",'[1]Sort Sheet'!L19) -> Charolais X | I23: =IF('[1]Sort Sheet'!E19=0,"",'[1]Sort Sheet'!O19) -> 0 | J23: =IF('[1]Sort Sheet'!P19=0,"",'[1]Sort Sheet'!P19) -> 236 | K23: =IF('[1]Sort Sheet'!E19=0,"",'[1]Sort Sheet'!Q19) -> 6 | L23: =IF('[1]Sort Sheet'!E19=0,"",'[1]Sort Sheet'!R19) -> 3 | M23: =IF('[1]Sort Sheet'!E19=0,"",'[1]Sort Sheet'!S19) -> 86 | N23: =IF('[1]Sort Sheet'!E19=0,"",'[1]Sort Sheet'!U19) -> 1b | O23: =IF('[1]Sort Sheet'!E19=0,"",'[1]Sort Sheet'!V19) -> 1 | P23: =IF('[1]Sort Sheet'!E19=0,"",'[1]Sort Sheet'!W19) -> 1 | Q23: =IF('[1]Sort Sheet'!E19=0,"",'[1]Sort Sheet'!X19) -> 5.46 | R23: =IF('[1]Sort Sheet'!E19=0,"",'[1]Sort Sheet'!M19) -> 54.3 | S23: =IF('[1]Sort Sheet'!E19=0,"",'[1]Sort Sheet'!Z19) -> 61.14 | T23: =IF('[1]Sort Sheet'!E19=0,"",'[1]Sort Sheet'!AA19) -> 10.75667656 | U23: =IF('[1]Sort Sheet'!E19=0,"",'[1]Sort Sheet'!AB19) -> 1552.085163 | V23: =IF('[1]Sort Sheet'!E19=0,"",'[1]Sort Sheet'!AC19) -> 6.576632047 | W23: 155.21 | X23: 1707.295163 | Y23: 7.234301539
A24: 16 | B24: =IF('[1]Sort Sheet'!D20=0,"",'[1]Sort Sheet'!D20) -> 236 | C24: =IF('[1]Sort Sheet'!E20=0,"",'[1]Sort Sheet'!E20) -> 332A | D24: =IF('[1]Sort Sheet'!F20=0,"",'[1]Sort Sheet'!F20) -> M | E24: =IF('[1]Sort Sheet'!E20=0,"",'[1]Sort Sheet'!AT20) -> Y | F24: =IF('[1]Sort Sheet'!E20=0,"",'[1]Sort Sheet'!H20) -> Y | G24: =IF('[1]Sort Sheet'!E20=0,"",'[1]Sort Sheet'!J20) -> G E & E E Kroll | H24: =IF('[1]Sort Sheet'!E20=0,"",'[1]Sort Sheet'!L20) -> Angus X | I24: =IF('[1]Sort Sheet'!E20=0,"",'[1]Sort Sheet'!O20) -> 0 | J24: =IF('[1]Sort Sheet'!P20=0,"",'[1]Sort Sheet'!P20) -> 255 | K24: =IF('[1]Sort Sheet'!E20=0,"",'[1]Sort Sheet'!Q20) -> 6 | L24: =IF('[1]Sort Sheet'!E20=0,"",'[1]Sort Sheet'!R20) -> 5 | M24: =IF('[1]Sort Sheet'!E20=0,"",'[1]Sort Sheet'!S20) -> 81 | N24: =IF('[1]Sort Sheet'!E20=0,"",'[1]Sort Sheet'!U20) -> 2 | O24: =IF('[1]Sort Sheet'!E20=0,"",'[1]Sort Sheet'!V20) -> 2 | P24: =IF('[1]Sort Sheet'!E20=0,"",'[1]Sort Sheet'!W20) -> 1 | Q24: =IF('[1]Sort Sheet'!E20=0,"",'[1]Sort Sheet'!X20) -> 5.53 | R24: =IF('[1]Sort Sheet'!E20=0,"",'[1]Sort Sheet'!M20) -> 54.39 | S24: =IF('[1]Sort Sheet'!E20=0,"",'[1]Sort Sheet'!Z20) -> 61.08 | T24: =IF('[1]Sort Sheet'!E20=0,"",'[1]Sort Sheet'!AA20) -> 10.75667656 | U24: =IF('[1]Sort Sheet'!E20=0,"",'[1]Sort Sheet'!AB20) -> 1675.395401 | V24: =IF('[1]Sort Sheet'!E20=0,"",'[1]Sort Sheet'!AC20) -> 6.570178042 | W24: 167.54 | X24: 1842.935401 | Y24: 7.227197649
A25: 17 | B25: =IF('[1]Sort Sheet'!D21=0,"",'[1]Sort Sheet'!D21) -> 190 | C25: =IF('[1]Sort Sheet'!E21=0,"",'[1]Sort Sheet'!E21) -> 316B | D25: =IF('[1]Sort Sheet'!F21=0,"",'[1]Sort Sheet'!F21) -> M | E25: =IF('[1]Sort Sheet'!E21=0,"",'[1]Sort Sheet'!AT21) -> Y | F25: =IF('[1]Sort Sheet'!E21=0,"",'[1]Sort Sheet'!H21) -> Y | G25: =IF('[1]Sort Sheet'!E21=0,"",'[1]Sort Sheet'!J21) -> Riverglen Pastoral Company | H25: =IF('[1]Sort Sheet'!E21=0,"",'[1]Sort Sheet'!L21) -> Charolais X | I25: =IF('[1]Sort Sheet'!E21=0,"",'[1]Sort Sheet'!O21) -> 0 | J25: =IF('[1]Sort Sheet'!P21=0,"",'[1]Sort Sheet'!P21) -> 264.2 | K25: =IF('[1]Sort Sheet'!E21=0,"",'[1]Sort Sheet'!Q21) -> 11 | L25: =IF('[1]Sort Sheet'!E21=0,"",'[1]Sort Sheet'!R21) -> 5 | M25: =IF('[1]Sort Sheet'!E21=0,"",'[1]Sort Sheet'!S21) -> 83 | N25: =IF('[1]Sort Sheet'!E21=0,"",'[1]Sort Sheet'!U21) -> 2 | O25: =IF('[1]Sort Sheet'!E21=0,"",'[1]Sort Sheet'!V21) -> 0 | P25: =IF('[1]Sort Sheet'!E21=0,"",'[1]Sort Sheet'!W21) -> 1 | Q25: =IF('[1]Sort Sheet'!E21=0,"",'[1]Sort Sheet'!X21) -> 5.61 | R25: =IF('[1]Sort Sheet'!E21=0,"",'[1]Sort Sheet'!M21) -> 62.42 | S25: =IF('[1]Sort Sheet'!E21=0,"",'[1]Sort Sheet'!Z21) -> 60.95 | T25: =IF('[1]Sort Sheet'!E21=0,"",'[1]Sort Sheet'!AA21) -> 10.75667656 | U25: =IF('[1]Sort Sheet'!E21=0,"",'[1]Sort Sheet'!AB21) -> 1732.14655 | V25: =IF('[1]Sort Sheet'!E21=0,"",'[1]Sort Sheet'!AC21) -> 6.556194362 | W25: 173.21 | X25: 1905.35655 | Y25: 7.211796179
A26: 18 | B26: =IF('[1]Sort Sheet'!D22=0,"",'[1]Sort Sheet'!D22) -> 213 | C26: =IF('[1]Sort Sheet'!E22=0,"",'[1]Sort Sheet'!E22) -> 322C | D26: =IF('[1]Sort Sheet'!F22=0,"",'[1]Sort Sheet'!F22) -> M | E26: =IF('[1]Sort Sheet'!E22=0,"",'[1]Sort Sheet'!AT22) -> Y | F26: =IF('[1]Sort Sheet'!E22=0,"",'[1]Sort Sheet'!H22) -> Y | G26: =IF('[1]Sort Sheet'!E22=0,"",'[1]Sort Sheet'!J22) -> Rich Enterprises P/L | H26: =IF('[1]Sort Sheet'!E22=0,"",'[1]Sort Sheet'!L22) -> Angus / Charolais X | I26: =IF('[1]Sort Sheet'!E22=0,"",'[1]Sort Sheet'!O22) -> 0 | J26: =IF('[1]Sort Sheet'!P22=0,"",'[1]Sort Sheet'!P22) -> 279.8 | K26: =IF('[1]Sort Sheet'!E22=0,"",'[1]Sort Sheet'!Q22) -> 10 | L26: =IF('[1]Sort Sheet'!E22=0,"",'[1]Sort Sheet'!R22) -> 5 | M26: =IF('[1]Sort Sheet'!E22=0,"",'[1]Sort Sheet'!S22) -> 86 | N26: =IF('[1]Sort Sheet'!E22=0,"",'[1]Sort Sheet'!U22) -> 3 | O26: =IF('[1]Sort Sheet'!E22=0,"",'[1]Sort Sheet'!V22) -> 2 | P26: =IF('[1]Sort Sheet'!E22=0,"",'[1]Sort Sheet'!W22) -> 1 | Q26: =IF('[1]Sort Sheet'!E22=0,"",'[1]Sort Sheet'!X22) -> 5.68 | R26: =IF('[1]Sort Sheet'!E22=0,"",'[1]Sort Sheet'!M22) -> 56.23 | S26: =IF('[1]Sort Sheet'!E22=0,"",'[1]Sort Sheet'!Z22) -> 60.92 | T26: =IF('[1]Sort Sheet'!E22=0,"",'[1]Sort Sheet'!AA22) -> 10.75667656 | U26: =IF('[1]Sort Sheet'!E22=0,"",'[1]Sort Sheet'!AB22) -> 1833.520267 | V26: =IF('[1]Sort Sheet'!E22=0,"",'[1]Sort Sheet'!AC22) -> 6.552967359 | W26: 183.35 | X26: 2016.870267 | Y26: 7.208256852
A27: 19 | B27: =IF('[1]Sort Sheet'!D23=0,"",'[1]Sort Sheet'!D23) -> 262 | C27: =IF('[1]Sort Sheet'!E23=0,"",'[1]Sort Sheet'!E23) -> 342C | D27: =IF('[1]Sort Sheet'!F23=0,"",'[1]Sort Sheet'!F23) -> M | E27: =IF('[1]Sort Sheet'!E23=0,"",'[1]Sort Sheet'!AT23) -> Y | F27: =IF('[1]Sort Sheet'!E23=0,"",'[1]Sort Sheet'!H23) -> Y | G27: =IF('[1]Sort Sheet'!E23=0,"",'[1]Sort Sheet'!J23) -> Smithfield Cattle Co | H27: =IF('[1]Sort Sheet'!E23=0,"",'[1]Sort Sheet'!L23) -> Angus X Murray Gray | I27: =IF('[1]Sort Sheet'!E23=0,"",'[1]Sort Sheet'!O23) -> 0 | J27: =IF('[1]Sort Sheet'!P23=0,"",'[1]Sort Sheet'!P23) -> 274.2 | K27: =IF('[1]Sort Sheet'!E23=0,"",'[1]Sort Sheet'!Q23) -> 8 | L27: =IF('[1]Sort Sheet'!E23=0,"",'[1]Sort Sheet'!R23) -> 4 | M27: =IF('[1]Sort Sheet'!E23=0,"",'[1]Sort Sheet'!S23) -> 81 | N27: =IF('[1]Sort Sheet'!E23=0,"",'[1]Sort Sheet'!U23) -> 1b | O27: =IF('[1]Sort Sheet'!E23=0,"",'[1]Sort Sheet'!V23) -> 2 | P27: =IF('[1]Sort Sheet'!E23=0,"",'[1]Sort Sheet'!W23) -> 1 | Q27: =IF('[1]Sort Sheet'!E23=0,"",'[1]Sort Sheet'!X23) -> 5.53 | R27: =IF('[1]Sort Sheet'!E23=0,"",'[1]Sort Sheet'!M23) -> 54.97 | S27: =IF('[1]Sort Sheet'!E23=0,"",'[1]Sort Sheet'!Z23) -> 60.78 | T27: =IF('[1]Sort Sheet'!E23=0,"",'[1]Sort Sheet'!AA23) -> 10.75667656 | U27: =IF('[1]Sort Sheet'!E23=0,"",'[1]Sort Sheet'!AB23) -> 1792.694377 | V27: =IF('[1]Sort Sheet'!E23=0,"",'[1]Sort Sheet'!AC23) -> 6.537908012 | W27: 179.27 | X27: 1971.964377 | Y27: 7.191700864
A28: 20 | B28: =IF('[1]Sort Sheet'!D24=0,"",'[1]Sort Sheet'!D24) -> 294 | C28: =IF('[1]Sort Sheet'!E24=0,"",'[1]Sort Sheet'!E24) -> 349B | D28: =IF('[1]Sort Sheet'!F24=0,"",'[1]Sort Sheet'!F24) -> M | E28: =IF('[1]Sort Sheet'!E24=0,"",'[1]Sort Sheet'!AT24) -> Y | F28: =IF('[1]Sort Sheet'!E24=0,"",'[1]Sort Sheet'!H24) -> Y | G28: =IF('[1]Sort Sheet'!E24=0,"",'[1]Sort Sheet'!J24) -> B Feeders Pty ltd | H28: =IF('[1]Sort Sheet'!E24=0,"",'[1]Sort Sheet'!L24) -> Charolais X Santa | I28: =IF('[1]Sort Sheet'!E24=0,"",'[1]Sort Sheet'!O24) -> 0 | J28: =IF('[1]Sort Sheet'!P24=0,"",'[1]Sort Sheet'!P24) -> 298.2 | K28: =IF('[1]Sort Sheet'!E24=0,"",'[1]Sort Sheet'!Q24) -> 15 | L28: =IF('[1]Sort Sheet'!E24=0,"",'[1]Sort Sheet'!R24) -> 5 | M28: =IF('[1]Sort Sheet'!E24=0,"",'[1]Sort Sheet'!S24) -> 91 | N28: =IF('[1]Sort Sheet'!E24=0,"",'[1]Sort Sheet'!U24) -> 1b | O28: =IF('[1]Sort Sheet'!E24=0,"",'[1]Sort Sheet'!V24) -> 1 | P28: =IF('[1]Sort Sheet'!E24=0,"",'[1]Sort Sheet'!W24) -> 1 | Q28: =IF('[1]Sort Sheet'!E24=0,"",'[1]Sort Sheet'!X24) -> 5.52 | R28: =IF('[1]Sort Sheet'!E24=0,"",'[1]Sort Sheet'!M24) -> 53.65 | S28: =IF('[1]Sort Sheet'!E24=0,"",'[1]Sort Sheet'!Z24) -> 60.71 | T28: =IF('[1]Sort Sheet'!E24=0,"",'[1]Sort Sheet'!AA24) -> 10.75667656 | U28: =IF('[1]Sort Sheet'!E24=0,"",'[1]Sort Sheet'!AB24) -> 1947.35882 | V28: =IF('[1]Sort Sheet'!E24=0,"",'[1]Sort Sheet'!AC24) -> 6.530378338 | W28: 194.74 | X28: 2142.09882 | Y28: 7.183429981
A29: 21 | B29: =IF('[1]Sort Sheet'!D25=0,"",'[1]Sort Sheet'!D25) -> 208 | C29: =IF('[1]Sort Sheet'!E25=0,"",'[1]Sort Sheet'!E25) -> 323A | D29: =IF('[1]Sort Sheet'!F25=0,"",'[1]Sort Sheet'!F25) -> M | E29: =IF('[1]Sort Sheet'!E25=0,"",'[1]Sort Sheet'!AT25) -> Y | F29: =IF('[1]Sort Sheet'!E25=0,"",'[1]Sort Sheet'!H25) -> Y | G29: =IF('[1]Sort Sheet'!E25=0,"",'[1]Sort Sheet'!J25) -> Rich Enterprises P/L | H29: =IF('[1]Sort Sheet'!E25=0,"",'[1]Sort Sheet'!L25) -> Angus / Charolais X | I29: =IF('[1]Sort Sheet'!E25=0,"",'[1]Sort Sheet'!O25) -> 0 | J29: =IF('[1]Sort Sheet'!P25=0,"",'[1]Sort Sheet'!P25) -> 258 | K29: =IF('[1]Sort Sheet'!E25=0,"",'[1]Sort Sheet'!Q25) -> 8 | L29: =IF('[1]Sort Sheet'!E25=0,"",'[1]Sort Sheet'!R25) -> 4 | M29: =IF('[1]Sort Sheet'!E25=0,"",'[1]Sort Sheet'!S25) -> 77 | N29: =IF('[1]Sort Sheet'!E25=0,"",'[1]Sort Sheet'!U25) -> 2 | O29: =IF('[1]Sort Sheet'!E25=0,"",'[1]Sort Sheet'!V25) -> 1 | P29: =IF('[1]Sort Sheet'!E25=0,"",'[1]Sort Sheet'!W25) -> 1 | Q29: =IF('[1]Sort Sheet'!E25=0,"",'[1]Sort Sheet'!X25) -> 5.47 | R29: =IF('[1]Sort Sheet'!E25=0,"",'[1]Sort Sheet'!M25) -> 55.73 | S29: =IF('[1]Sort Sheet'!E25=0,"",'[1]Sort Sheet'!Z25) -> 60.67 | T29: =IF('[1]Sort Sheet'!E25=0,"",'[1]Sort Sheet'!AA25) -> 10.75667656 | U29: =IF('[1]Sort Sheet'!E25=0,"",'[1]Sort Sheet'!AB25) -> 1683.727522 | V29: =IF('[1]Sort Sheet'!E25=0,"",'[1]Sort Sheet'!AC25) -> 6.526075668 | W29: 168.37 | X29: 1852.097522 | Y29: 7.178672567
A30: 22 | B30: =IF('[1]Sort Sheet'!D26=0,"",'[1]Sort Sheet'!D26) -> 207 | C30: =IF('[1]Sort Sheet'!E26=0,"",'[1]Sort Sheet'!E26) -> 320B | D30: =IF('[1]Sort Sheet'!F26=0,"",'[1]Sort Sheet'!F26) -> M | E30: =IF('[1]Sort Sheet'!E26=0,"",'[1]Sort Sheet'!AT26) -> Y | F30: =IF('[1]Sort Sheet'!E26=0,"",'[1]Sort Sheet'!H26) -> Y | G30: =IF('[1]Sort Sheet'!E26=0,"",'[1]Sort Sheet'!J26) -> Darr Creek Pastoral | H30: =IF('[1]Sort Sheet'!E26=0,"",'[1]Sort Sheet'!L26) -> Angus/Hereford X Limousin | I30: =IF('[1]Sort Sheet'!E26=0,"",'[1]Sort Sheet'!O26) -> 0 | J30: =IF('[1]Sort Sheet'!P26=0,"",'[1]Sort Sheet'!P26) -> 270.8 | K30: =IF('[1]Sort Sheet'!E26=0,"",'[1]Sort Sheet'!Q26) -> 12 | L30: =IF('[1]Sort Sheet'!E26=0,"",'[1]Sort Sheet'!R26) -> 5 | M30: =IF('[1]Sort Sheet'!E26=0,"",'[1]Sort Sheet'!S26) -> 83 | N30: =IF('[1]Sort Sheet'!E26=0,"",'[1]Sort Sheet'!U26) -> 1b | O30: =IF('[1]Sort Sheet'!E26=0,"",'[1]Sort Sheet'!V26) -> 1 | P30: =IF('[1]Sort Sheet'!E26=0,"",'[1]Sort Sheet'!W26) -> 1 | Q30: =IF('[1]Sort Sheet'!E26=0,"",'[1]Sort Sheet'!X26) -> 5.4 | R30: =IF('[1]Sort Sheet'!E26=0,"",'[1]Sort Sheet'!M26) -> 56.18 | S30: =IF('[1]Sort Sheet'!E26=0,"",'[1]Sort Sheet'!Z26) -> 60.54 | T30: =IF('[1]Sort Sheet'!E26=0,"",'[1]Sort Sheet'!AA26) -> 10.75667656 | U30: =IF('[1]Sort Sheet'!E26=0,"",'[1]Sort Sheet'!AB26) -> 1763.47451 | V30: =IF('[1]Sort Sheet'!E26=0,"",'[1]Sort Sheet'!AC26) -> 6.512091988 | W30: 176.35 | X30: 1939.82451 | Y30: 7.1633106
A31: 23 | B31: =IF('[1]Sort Sheet'!D27=0,"",'[1]Sort Sheet'!D27) -> 226 | C31: =IF('[1]Sort Sheet'!E27=0,"",'[1]Sort Sheet'!E27) -> 330C | D31: =IF('[1]Sort Sheet'!F27=0,"",'[1]Sort Sheet'!F27) -> M | E31: =IF('[1]Sort Sheet'!E27=0,"",'[1]Sort Sheet'!AT27) -> Y | F31: =IF('[1]Sort Sheet'!E27=0,"",'[1]Sort Sheet'!H27) -> Y | G31: =IF('[1]Sort Sheet'!E27=0,"",'[1]Sort Sheet'!J27) -> Juandah Grazing | H31: =IF('[1]Sort Sheet'!E27=0,"",'[1]Sort Sheet'!L27) -> Charolais X Droughtmaster | I31: =IF('[1]Sort Sheet'!E27=0,"",'[1]Sort Sheet'!O27) -> 0 | J31: =IF('[1]Sort Sheet'!P27=0,"",'[1]Sort Sheet'!P27) -> 263.4 | K31: =IF('[1]Sort Sheet'!E27=0,"",'[1]Sort Sheet'!Q27) -> 10 | L31: =IF('[1]Sort Sheet'!E27=0,"",'[1]Sort Sheet'!R27) -> 4 | M31: =IF('[1]Sort Sheet'!E27=0,"",'[1]Sort Sheet'!S27) -> 76 | N31: =IF('[1]Sort Sheet'!E27=0,"",'[1]Sort Sheet'!U27) -> 3 | O31: =IF('[1]Sort Sheet'!E27=0,"",'[1]Sort Sheet'!V27) -> 1 | P31: =IF('[1]Sort Sheet'!E27=0,"",'[1]Sort Sheet'!W27) -> 0 | Q31: =IF('[1]Sort Sheet'!E27=0,"",'[1]Sort Sheet'!X27) -> 5.56 | R31: =IF('[1]Sort Sheet'!E27=0,"",'[1]Sort Sheet'!M27) -> 54.13 | S31: =IF('[1]Sort Sheet'!E27=0,"",'[1]Sort Sheet'!Z27) -> 60.42 | T31: =IF('[1]Sort Sheet'!E27=0,"",'[1]Sort Sheet'!AA27) -> 10.75667656 | U31: =IF('[1]Sort Sheet'!E27=0,"",'[1]Sort Sheet'!AB27) -> 1711.885059 | V31: =IF('[1]Sort Sheet'!E27=0,"",'[1]Sort Sheet'!AC27) -> 6.499183976 | W31: 171.19 | X31: 1883.075059 | Y31: 7.149108046
A32: 24 | B32: =IF('[1]Sort Sheet'!D28=0,"",'[1]Sort Sheet'!D28) -> 205 | C32: =IF('[1]Sort Sheet'!E28=0,"",'[1]Sort Sheet'!E28) -> 319A | D32: =IF('[1]Sort Sheet'!F28=0,"",'[1]Sort Sheet'!F28) -> M | E32: =IF('[1]Sort Sheet'!E28=0,"",'[1]Sort Sheet'!AT28) -> Y | F32: =IF('[1]Sort Sheet'!E28=0,"",'[1]Sort Sheet'!H28) -> Y | G32: =IF('[1]Sort Sheet'!E28=0,"",'[1]Sort Sheet'!J28) -> Darr Creek Pastoral | H32: =IF('[1]Sort Sheet'!E28=0,"",'[1]Sort Sheet'!L28) -> Angus X Limousin | I32: =IF('[1]Sort Sheet'!E28=0,"",'[1]Sort Sheet'!O28) -> 0 | J32: =IF('[1]Sort Sheet'!P28=0,"",'[1]Sort Sheet'!P28) -> 259.4 | K32: =IF('[1]Sort Sheet'!E28=0,"",'[1]Sort Sheet'!Q28) -> 8 | L32: =IF('[1]Sort Sheet'!E28=0,"",'[1]Sort Sheet'!R28) -> 7 | M32: =IF('[1]Sort Sheet'!E28=0,"",'[1]Sort Sheet'!S28) -> 84 | N32: =IF('[1]Sort Sheet'!E28=0,"",'[1]Sort Sheet'!U28) -> 2 | O32: =IF('[1]Sort Sheet'!E28=0,"",'[1]Sort Sheet'!V28) -> 1 | P32: =IF('[1]Sort Sheet'!E28=0,"",'[1]Sort Sheet'!W28) -> 1 | Q32: =IF('[1]Sort Sheet'!E28=0,"",'[1]Sort Sheet'!X28) -> 5.61 | R32: =IF('[1]Sort Sheet'!E28=0,"",'[1]Sort Sheet'!M28) -> 56.48 | S32: =IF('[1]Sort Sheet'!E28=0,"",'[1]Sort Sheet'!Z28) -> 60.38 | T32: =IF('[1]Sort Sheet'!E28=0,"",'[1]Sort Sheet'!AA28) -> 10.75667656 | U32: =IF('[1]Sort Sheet'!E28=0,"",'[1]Sort Sheet'!AB28) -> 1684.772211 | V32: =IF('[1]Sort Sheet'!E28=0,"",'[1]Sort Sheet'!AC28) -> 6.494881306 | W32: 168.48 | X32: 1853.252211 | Y32: 7.144380149
A33: 25 | B33: =IF('[1]Sort Sheet'!D29=0,"",'[1]Sort Sheet'!D29) -> 222 | C33: =IF('[1]Sort Sheet'!E29=0,"",'[1]Sort Sheet'!E29) -> 324A | D33: =IF('[1]Sort Sheet'!F29=0,"",'[1]Sort Sheet'!F29) -> F | E33: =IF('[1]Sort Sheet'!E29=0,"",'[1]Sort Sheet'!AT29) -> Y | F33: =IF('[1]Sort Sheet'!E29=0,"",'[1]Sort Sheet'!H29) -> Y | G33: =IF('[1]Sort Sheet'!E29=0,"",'[1]Sort Sheet'!J29) -> R S & K M Stevens Family Trust | H33: =IF('[1]Sort Sheet'!E29=0,"",'[1]Sort Sheet'!L29) -> Charolais X Angus | I33: =IF('[1]Sort Sheet'!E29=0,"",'[1]Sort Sheet'!O29) -> 0 | J33: =IF('[1]Sort Sheet'!P29=0,"",'[1]Sort Sheet'!P29) -> 276.8 | K33: =IF('[1]Sort Sheet'!E29=0,"",'[1]Sort Sheet'!Q29) -> 11 | L33: =IF('[1]Sort Sheet'!E29=0,"",'[1]Sort Sheet'!R29) -> 6 | M33: =IF('[1]Sort Sheet'!E29=0,"",'[1]Sort Sheet'!S29) -> 101 | N33: =IF('[1]Sort Sheet'!E29=0,"",'[1]Sort Sheet'!U29) -> 1b | O33: =IF('[1]Sort Sheet'!E29=0,"",'[1]Sort Sheet'!V29) -> 1 | P33: =IF('[1]Sort Sheet'!E29=0,"",'[1]Sort Sheet'!W29) -> 1 | Q33: =IF('[1]Sort Sheet'!E29=0,"",'[1]Sort Sheet'!X29) -> 5.48 | R33: =IF('[1]Sort Sheet'!E29=0,"",'[1]Sort Sheet'!M29) -> 54.72 | S33: =IF('[1]Sort Sheet'!E29=0,"",'[1]Sort Sheet'!Z29) -> 60.29 | T33: =IF('[1]Sort Sheet'!E29=0,"",'[1]Sort Sheet'!AA29) -> 10.75667656 | U33: =IF('[1]Sort Sheet'!E29=0,"",'[1]Sort Sheet'!AB29) -> 1795.103442 | V33: =IF('[1]Sort Sheet'!E29=0,"",'[1]Sort Sheet'!AC29) -> 6.485200297 | W33: 179.51 | X33: 1974.613442 | Y33: 7.133719083
A34: 26 | B34: =IF('[1]Sort Sheet'!D30=0,"",'[1]Sort Sheet'!D30) -> 211 | C34: =IF('[1]Sort Sheet'!E30=0,"",'[1]Sort Sheet'!E30) -> 323C | D34: =IF('[1]Sort Sheet'!F30=0,"",'[1]Sort Sheet'!F30) -> M | E34: =IF('[1]Sort Sheet'!E30=0,"",'[1]Sort Sheet'!AT30) -> Y | F34: =IF('[1]Sort Sheet'!E30=0,"",'[1]Sort Sheet'!H30) -> Y | G34: =IF('[1]Sort Sheet'!E30=0,"",'[1]Sort Sheet'!J30) -> Rich Enterprises P/L | H34: =IF('[1]Sort Sheet'!E30=0,"",'[1]Sort Sheet'!L30) -> Angus / Charolais X | I34: =IF('[1]Sort Sheet'!E30=0,"",'[1]Sort Sheet'!O30) -> 0 | J34: =IF('[1]Sort Sheet'!P30=0,"",'[1]Sort Sheet'!P30) -> 272 | K34: =IF('[1]Sort Sheet'!E30=0,"",'[1]Sort Sheet'!Q30) -> 6 | L34: =IF('[1]Sort Sheet'!E30=0,"",'[1]Sort Sheet'!R30) -> 5 | M34: =IF('[1]Sort Sheet'!E30=0,"",'[1]Sort Sheet'!S30) -> 80 | N34: =IF('[1]Sort Sheet'!E30=0,"",'[1]Sort Sheet'!U30) -> 1b | O34: =IF('[1]Sort Sheet'!E30=0,"",'[1]Sort Sheet'!V30) -> 1 | P34: =IF('[1]Sort Sheet'!E30=0,"",'[1]Sort Sheet'!W30) -> 1 | Q34: =IF('[1]Sort Sheet'!E30=0,"",'[1]Sort Sheet'!X30) -> 5.5 | R34: =IF('[1]Sort Sheet'!E30=0,"",'[1]Sort Sheet'!M30) -> 55.54 | S34: =IF('[1]Sort Sheet'!E30=0,"",'[1]Sort Sheet'!Z30) -> 60.18 | T34: =IF('[1]Sort Sheet'!E30=0,"",'[1]Sort Sheet'!AA30) -> 10.75667656 | U34: =IF('[1]Sort Sheet'!E30=0,"",'[1]Sort Sheet'!AB30) -> 1760.756083 | V34: =IF('[1]Sort Sheet'!E30=0,"",'[1]Sort Sheet'!AC30) -> 6.473367953 | W34: 176.08 | X34: 1936.836083 | Y34: 7.120720894
A35: 27 | B35: =IF('[1]Sort Sheet'!D31=0,"",'[1]Sort Sheet'!D31) -> 264 | C35: =IF('[1]Sort Sheet'!E31=0,"",'[1]Sort Sheet'!E31) -> 341C | D35: =IF('[1]Sort Sheet'!F31=0,"",'[1]Sort Sheet'!F31) -> M | E35: =IF('[1]Sort Sheet'!E31=0,"",'[1]Sort Sheet'!AT31) -> Y | F35: =IF('[1]Sort Sheet'!E31=0,"",'[1]Sort Sheet'!H31) -> Y | G35: =IF('[1]Sort Sheet'!E31=0,"",'[1]Sort Sheet'!J31) -> Smithfield Cattle Co | H35: =IF('[1]Sort Sheet'!E31=0,"",'[1]Sort Sheet'!L31) -> Santa X Murray Grey | I35: =IF('[1]Sort Sheet'!E31=0,"",'[1]Sort Sheet'!O31) -> 0 | J35: =IF('[1]Sort Sheet'!P31=0,"",'[1]Sort Sheet'!P31) -> 303.8 | K35: =IF('[1]Sort Sheet'!E31=0,"",'[1]Sort Sheet'!Q31) -> 6 | L35: =IF('[1]Sort Sheet'!E31=0,"",'[1]Sort Sheet'!R31) -> 4 | M35: =IF('[1]Sort Sheet'!E31=0,"",'[1]Sort Sheet'!S31) -> 87 | N35: =IF('[1]Sort Sheet'!E31=0,"",'[1]Sort Sheet'!U31) -> 2 | O35: =IF('[1]Sort Sheet'!E31=0,"",'[1]Sort Sheet'!V31) -> 2 | P35: =IF('[1]Sort Sheet'!E31=0,"",'[1]Sort Sheet'!W31) -> 1 | Q35: =IF('[1]Sort Sheet'!E31=0,"",'[1]Sort Sheet'!X31) -> 5.62 | R35: =IF('[1]Sort Sheet'!E31=0,"",'[1]Sort Sheet'!M31) -> 55.79 | S35: =IF('[1]Sort Sheet'!E31=0,"",'[1]Sort Sheet'!Z31) -> 60.14 | T35: =IF('[1]Sort Sheet'!E31=0,"",'[1]Sort Sheet'!AA31) -> 10.75667656 | U35: =IF('[1]Sort Sheet'!E31=0,"",'[1]Sort Sheet'!AB31) -> 1965.302033 | V35: =IF('[1]Sort Sheet'!E31=0,"",'[1]Sort Sheet'!AC31) -> 6.469065282 | W35: 196.53 | X35: 2161.832033 | Y35: 7.115971141
A36: 28 | B36: =IF('[1]Sort Sheet'!D32=0,"",'[1]Sort Sheet'!D32) -> 297 | C36: =IF('[1]Sort Sheet'!E32=0,"",'[1]Sort Sheet'!E32) -> 351C | D36: =IF('[1]Sort Sheet'!F32=0,"",'[1]Sort Sheet'!F32) -> M | E36: =IF('[1]Sort Sheet'!E32=0,"",'[1]Sort Sheet'!AT32) -> Y | F36: =IF('[1]Sort Sheet'!E32=0,"",'[1]Sort Sheet'!H32) -> Y | G36: =IF('[1]Sort Sheet'!E32=0,"",'[1]Sort Sheet'!J32) -> B Feeders Pty ltd | H36: =IF('[1]Sort Sheet'!E32=0,"",'[1]Sort Sheet'!L32) -> Charolais X Santa | I36: =IF('[1]Sort Sheet'!E32=0,"",'[1]Sort Sheet'!O32) -> 0 | J36: =IF('[1]Sort Sheet'!P32=0,"",'[1]Sort Sheet'!P32) -> 298.4 | K36: =IF('[1]Sort Sheet'!E32=0,"",'[1]Sort Sheet'!Q32) -> 21 | L36: =IF('[1]Sort Sheet'!E32=0,"",'[1]Sort Sheet'!R32) -> 4 | M36: =IF('[1]Sort Sheet'!E32=0,"",'[1]Sort Sheet'!S32) -> 86 | N36: =IF('[1]Sort Sheet'!E32=0,"",'[1]Sort Sheet'!U32) -> 1b | O36: =IF('[1]Sort Sheet'!E32=0,"",'[1]Sort Sheet'!V32) -> 1 | P36: =IF('[1]Sort Sheet'!E32=0,"",'[1]Sort Sheet'!W32) -> 1 | Q36: =IF('[1]Sort Sheet'!E32=0,"",'[1]Sort Sheet'!X32) -> 5.62 | R36: =IF('[1]Sort Sheet'!E32=0,"",'[1]Sort Sheet'!M32) -> 53.02 | S36: =IF('[1]Sort Sheet'!E32=0,"",'[1]Sort Sheet'!Z32) -> 60.1 | T36: =IF('[1]Sort Sheet'!E32=0,"",'[1]Sort Sheet'!AA32) -> 10.75667656 | U36: =IF('[1]Sort Sheet'!E32=0,"",'[1]Sort Sheet'!AB32) -> 1929.085163 | V36: =IF('[1]Sort Sheet'!E32=0,"",'[1]Sort Sheet'!AC32) -> 6.464762611 | W36: 192.91 | X36: 2121.995163 | Y36: 7.111243845
A37: 29 | B37: =IF('[1]Sort Sheet'!D33=0,"",'[1]Sort Sheet'!D33) -> 295 | C37: =IF('[1]Sort Sheet'!E33=0,"",'[1]Sort Sheet'!E33) -> 350B | D37: =IF('[1]Sort Sheet'!F33=0,"",'[1]Sort Sheet'!F33) -> M | E37: =IF('[1]Sort Sheet'!E33=0,"",'[1]Sort Sheet'!AT33) -> Y | F37: =IF('[1]Sort Sheet'!E33=0,"",'[1]Sort Sheet'!H33) -> Y | G37: =IF('[1]Sort Sheet'!E33=0,"",'[1]Sort Sheet'!J33) -> B Feeders Pty ltd | H37: =IF('[1]Sort Sheet'!E33=0,"",'[1]Sort Sheet'!L33) -> Santa | I37: =IF('[1]Sort Sheet'!E33=0,"",'[1]Sort Sheet'!O33) -> 0 | J37: =IF('[1]Sort Sheet'!P33=0,"",'[1]Sort Sheet'!P33) -> 296.6 | K37: =IF('[1]Sort Sheet'!E33=0,"",'[1]Sort Sheet'!Q33) -> 10 | L37: =IF('[1]Sort Sheet'!E33=0,"",'[1]Sort Sheet'!R33) -> 5 | M37: =IF('[1]Sort Sheet'!E33=0,"",'[1]Sort Sheet'!S33) -> 86 | N37: =IF('[1]Sort Sheet'!E33=0,"",'[1]Sort Sheet'!U33) -> 1b | O37: =IF('[1]Sort Sheet'!E33=0,"",'[1]Sort Sheet'!V33) -> 1 | P37: =IF('[1]Sort Sheet'!E33=0,"",'[1]Sort Sheet'!W33) -> 1 | Q37: =IF('[1]Sort Sheet'!E33=0,"",'[1]Sort Sheet'!X33) -> 5.55 | R37: =IF('[1]Sort Sheet'!E33=0,"",'[1]Sort Sheet'!M33) -> 53.21 | S37: =IF('[1]Sort Sheet'!E33=0,"",'[1]Sort Sheet'!Z33) -> 60.09 | T37: =IF('[1]Sort Sheet'!E33=0,"",'[1]Sort Sheet'!AA33) -> 10.75667656 | U37: =IF('[1]Sort Sheet'!E33=0,"",'[1]Sort Sheet'!AB33) -> 1917.129547 | V37: =IF('[1]Sort Sheet'!E33=0,"",'[1]Sort Sheet'!AC33) -> 6.463686944 | W37: 191.71 | X37: 2108.839547 | Y37: 7.110045676
A38: 30 | B38: =IF('[1]Sort Sheet'!D34=0,"",'[1]Sort Sheet'!D34) -> 232 | C38: =IF('[1]Sort Sheet'!E34=0,"",'[1]Sort Sheet'!E34) -> 329A | D38: =IF('[1]Sort Sheet'!F34=0,"",'[1]Sort Sheet'!F34) -> F | E38: =IF('[1]Sort Sheet'!E34=0,"",'[1]Sort Sheet'!AT34) -> Y | F38: =IF('[1]Sort Sheet'!E34=0,"",'[1]Sort Sheet'!H34) -> Y | G38: =IF('[1]Sort Sheet'!E34=0,"",'[1]Sort Sheet'!J34) -> Juandah Grazing | H38: =IF('[1]Sort Sheet'!E34=0,"",'[1]Sort Sheet'!L34) -> Charolais X Droughtmaster | I38: =IF('[1]Sort Sheet'!E34=0,"",'[1]Sort Sheet'!O34) -> 0 | J38: =IF('[1]Sort Sheet'!P34=0,"",'[1]Sort Sheet'!P34) -> 258.2 | K38: =IF('[1]Sort Sheet'!E34=0,"",'[1]Sort Sheet'!Q34) -> 10 | L38: =IF('[1]Sort Sheet'!E34=0,"",'[1]Sort Sheet'!R34) -> 6 | M38: =IF('[1]Sort Sheet'!E34=0,"",'[1]Sort Sheet'!S34) -> 96 | N38: =IF('[1]Sort Sheet'!E34=0,"",'[1]Sort Sheet'!U34) -> 3 | O38: =IF('[1]Sort Sheet'!E34=0,"",'[1]Sort Sheet'!V34) -> 2 | P38: =IF('[1]Sort Sheet'!E34=0,"",'[1]Sort Sheet'!W34) -> 1 | Q38: =IF('[1]Sort Sheet'!E34=0,"",'[1]Sort Sheet'!X34) -> 5.57 | R38: =IF('[1]Sort Sheet'!E34=0,"",'[1]Sort Sheet'!M34) -> 54.57 | S38: =IF('[1]Sort Sheet'!E34=0,"",'[1]Sort Sheet'!Z34) -> 60.08 | T38: =IF('[1]Sort Sheet'!E34=0,"",'[1]Sort Sheet'!AA34) -> 10.75667656 | U38: =IF('[1]Sort Sheet'!E34=0,"",'[1]Sort Sheet'!AB34) -> 1668.646231 | V38: =IF('[1]Sort Sheet'!E34=0,"",'[1]Sort Sheet'!AC34) -> 6.462611276 | W38: 166.86 | X38: 1835.506231 | Y38: 7.108854498
A39: 31 | B39: =IF('[1]Sort Sheet'!D35=0,"",'[1]Sort Sheet'!D35) -> 265 | C39: =IF('[1]Sort Sheet'!E35=0,"",'[1]Sort Sheet'!E35) -> 342B | D39: =IF('[1]Sort Sheet'!F35=0,"",'[1]Sort Sheet'!F35) -> M | E39: =IF('[1]Sort Sheet'!E35=0,"",'[1]Sort Sheet'!AT35) -> Y | F39: =IF('[1]Sort Sheet'!E35=0,"",'[1]Sort Sheet'!H35) -> Y | G39: =IF('[1]Sort Sheet'!E35=0,"",'[1]Sort Sheet'!J35) -> Smithfield Cattle Co | H39: =IF('[1]Sort Sheet'!E35=0,"",'[1]Sort Sheet'!L35) -> Angus X Murray Gray | I39: =IF('[1]Sort Sheet'!E35=0,"",'[1]Sort Sheet'!O35) -> 0 | J39: =IF('[1]Sort Sheet'!P35=0,"",'[1]Sort Sheet'!P35) -> 274 | K39: =IF('[1]Sort Sheet'!E35=0,"",'[1]Sort Sheet'!Q35) -> 10 | L39: =IF('[1]Sort Sheet'!E35=0,"",'[1]Sort Sheet'!R35) -> 6 | M39: =IF('[1]Sort Sheet'!E35=0,"",'[1]Sort Sheet'!S35) -> 83 | N39: =IF('[1]Sort Sheet'!E35=0,"",'[1]Sort Sheet'!U35) -> 2 | O39: =IF('[1]Sort Sheet'!E35=0,"",'[1]Sort Sheet'!V35) -> 2 | P39: =IF('[1]Sort Sheet'!E35=0,"",'[1]Sort Sheet'!W35) -> 1 | Q39: =IF('[1]Sort Sheet'!E35=0,"",'[1]Sort Sheet'!X35) -> 5.6 | R39: =IF('[1]Sort Sheet'!E35=0,"",'[1]Sort Sheet'!M35) -> 56.06 | S39: =IF('[1]Sort Sheet'!E35=0,"",'[1]Sort Sheet'!Z35) -> 59.94 | T39: =IF('[1]Sort Sheet'!E35=0,"",'[1]Sort Sheet'!AA35) -> 10.75667656 | U39: =IF('[1]Sort Sheet'!E35=0,"",'[1]Sort Sheet'!AB35) -> 1766.629228 | V39: =IF('[1]Sort Sheet'!E35=0,"",'[1]Sort Sheet'!AC35) -> 6.447551929 | W39: 176.66 | X39: 1943.289228 | Y39: 7.092296454
A40: 32 | B40: =IF('[1]Sort Sheet'!D36=0,"",'[1]Sort Sheet'!D36) -> 256 | C40: =IF('[1]Sort Sheet'!E36=0,"",'[1]Sort Sheet'!E36) -> 338B | D40: =IF('[1]Sort Sheet'!F36=0,"",'[1]Sort Sheet'!F36) -> F | E40: =IF('[1]Sort Sheet'!E36=0,"",'[1]Sort Sheet'!AT36) -> Y | F40: =IF('[1]Sort Sheet'!E36=0,"",'[1]Sort Sheet'!H36) -> Y | G40: =IF('[1]Sort Sheet'!E36=0,"",'[1]Sort Sheet'!J36) -> RB & VA Budd & Willoise Grazing Co Pty Ltd | H40: =IF('[1]Sort Sheet'!E36=0,"",'[1]Sort Sheet'!L36) -> Charolais X | I40: =IF('[1]Sort Sheet'!E36=0,"",'[1]Sort Sheet'!O36) -> 0 | J40: =IF('[1]Sort Sheet'!P36=0,"",'[1]Sort Sheet'!P36) -> 224.6 | K40: =IF('[1]Sort Sheet'!E36=0,"",'[1]Sort Sheet'!Q36) -> 6 | L40: =IF('[1]Sort Sheet'!E36=0,"",'[1]Sort Sheet'!R36) -> 3 | M40: =IF('[1]Sort Sheet'!E36=0,"",'[1]Sort Sheet'!S36) -> 75 | N40: =IF('[1]Sort Sheet'!E36=0,"",'[1]Sort Sheet'!U36) -> 2 | O40: =IF('[1]Sort Sheet'!E36=0,"",'[1]Sort Sheet'!V36) -> 1 | P40: =IF('[1]Sort Sheet'!E36=0,"",'[1]Sort Sheet'!W36) -> 0 | Q40: =IF('[1]Sort Sheet'!E36=0,"",'[1]Sort Sheet'!X36) -> 5.63 | R40: =IF('[1]Sort Sheet'!E36=0,"",'[1]Sort Sheet'!M36) -> 53.14 | S40: =IF('[1]Sort Sheet'!E36=0,"",'[1]Sort Sheet'!Z36) -> 59.81 | T40: =IF('[1]Sort Sheet'!E36=0,"",'[1]Sort Sheet'!AA36) -> 10.75667656 | U40: =IF('[1]Sort Sheet'!E36=0,"",'[1]Sort Sheet'!AB36) -> 1444.979429 | V40: =IF('[1]Sort Sheet'!E36=0,"",'[1]Sort Sheet'!AC36) -> 6.433568249 | W40: 144.5 | X40: 1589.479429 | Y40: 7.076934233
A41: 33 | B41: =IF('[1]Sort Sheet'!D37=0,"",'[1]Sort Sheet'!D37) -> 220 | C41: =IF('[1]Sort Sheet'!E37=0,"",'[1]Sort Sheet'!E37) -> 325C | D41: =IF('[1]Sort Sheet'!F37=0,"",'[1]Sort Sheet'!F37) -> F | E41: =IF('[1]Sort Sheet'!E37=0,"",'[1]Sort Sheet'!AT37) -> Y | F41: =IF('[1]Sort Sheet'!E37=0,"",'[1]Sort Sheet'!H37) -> Y | G41: =IF('[1]Sort Sheet'!E37=0,"",'[1]Sort Sheet'!J37) -> R S & K M Stevens Family Trust | H41: =IF('[1]Sort Sheet'!E37=0,"",'[1]Sort Sheet'!L37) -> Charolais X Brangus | I41: =IF('[1]Sort Sheet'!E37=0,"",'[1]Sort Sheet'!O37) -> 0 | J41: =IF('[1]Sort Sheet'!P37=0,"",'[1]Sort Sheet'!P37) -> 244 | K41: =IF('[1]Sort Sheet'!E37=0,"",'[1]Sort Sheet'!Q37) -> 10 | L41: =IF('[1]Sort Sheet'!E37=0,"",'[1]Sort Sheet'!R37) -> 6 | M41: =IF('[1]Sort Sheet'!E37=0,"",'[1]Sort Sheet'!S37) -> 90 | N41: =IF('[1]Sort Sheet'!E37=0,"",'[1]Sort Sheet'!U37) -> 2 | O41: =IF('[1]Sort Sheet'!E37=0,"",'[1]Sort Sheet'!V37) -> 1 | P41: =IF('[1]Sort Sheet'!E37=0,"",'[1]Sort Sheet'!W37) -> 1 | Q41: =IF('[1]Sort Sheet'!E37=0,"",'[1]Sort Sheet'!X37) -> 5.55 | R41: =IF('[1]Sort Sheet'!E37=0,"",'[1]Sort Sheet'!M37) -> 53.7 | S41: =IF('[1]Sort Sheet'!E37=0,"",'[1]Sort Sheet'!Z37) -> 59.8 | T41: =IF('[1]Sort Sheet'!E37=0,"",'[1]Sort Sheet'!AA37) -> 10.75667656 | U41: =IF('[1]Sort Sheet'!E37=0,"",'[1]Sort Sheet'!AB37) -> 1569.52819 | V41: =IF('[1]Sort Sheet'!E37=0,"",'[1]Sort Sheet'!AC37) -> 6.432492582 | W41: 156.95 | X41: 1726.47819 | Y41: 7.075730287
A42: 34 | B42: =IF('[1]Sort Sheet'!D38=0,"",'[1]Sort Sheet'!D38) -> 192 | C42: =IF('[1]Sort Sheet'!E38=0,"",'[1]Sort Sheet'!E38) -> 316A | D42: =IF('[1]Sort Sheet'!F38=0,"",'[1]Sort Sheet'!F38) -> M | E42: =IF('[1]Sort Sheet'!E38=0,"",'[1]Sort Sheet'!AT38) -> Y | F42: =IF('[1]Sort Sheet'!E38=0,"",'[1]Sort Sheet'!H38) -> Y | G42: =IF('[1]Sort Sheet'!E38=0,"",'[1]Sort Sheet'!J38) -> Riverglen Pastoral Company | H42: =IF('[1]Sort Sheet'!E38=0,"",'[1]Sort Sheet'!L38) -> Charolais X | I42: =IF('[1]Sort Sheet'!E38=0,"",'[1]Sort Sheet'!O38) -> 2 | J42: =IF('[1]Sort Sheet'!P38=0,"",'[1]Sort Sheet'!P38) -> 293.6 | K42: =IF('[1]Sort Sheet'!E38=0,"",'[1]Sort Sheet'!Q38) -> 12 | L42: =IF('[1]Sort Sheet'!E38=0,"",'[1]Sort Sheet'!R38) -> 4 | M42: =IF('[1]Sort Sheet'!E38=0,"",'[1]Sort Sheet'!S38) -> 80 | N42: =IF('[1]Sort Sheet'!E38=0,"",'[1]Sort Sheet'!U38) -> 2 | O42: =IF('[1]Sort Sheet'!E38=0,"",'[1]Sort Sheet'!V38) -> 1 | P42: =IF('[1]Sort Sheet'!E38=0,"",'[1]Sort Sheet'!W38) -> 1 | Q42: =IF('[1]Sort Sheet'!E38=0,"",'[1]Sort Sheet'!X38) -> 5.57 | R42: =IF('[1]Sort Sheet'!E38=0,"",'[1]Sort Sheet'!M38) -> 61.02 | S42: =IF('[1]Sort Sheet'!E38=0,"",'[1]Sort Sheet'!Z38) -> 59.76 | T42: =IF('[1]Sort Sheet'!E38=0,"",'[1]Sort Sheet'!AA38) -> 10.75667656 | U42: =IF('[1]Sort Sheet'!E38=0,"",'[1]Sort Sheet'!AB38) -> 1887.316558 | V42: =IF('[1]Sort Sheet'!E38=0,"",'[1]Sort Sheet'!AC38) -> 6.428189911 | W42: 188.73 | X42: 2076.046558 | Y42: 7.071003262
A43: 35 | B43: =IF('[1]Sort Sheet'!D39=0,"",'[1]Sort Sheet'!D39) -> 209 | C43: =IF('[1]Sort Sheet'!E39=0,"",'[1]Sort Sheet'!E39) -> 322A | D43: =IF('[1]Sort Sheet'!F39=0,"",'[1]Sort Sheet'!F39) -> M | E43: =IF('[1]Sort Sheet'!E39=0,"",'[1]Sort Sheet'!AT39) -> Y | F43: =IF('[1]Sort Sheet'!E39=0,"",'[1]Sort Sheet'!H39) -> Y | G43: =IF('[1]Sort Sheet'!E39=0,"",'[1]Sort Sheet'!J39) -> Rich Enterprises P/L | H43: =IF('[1]Sort Sheet'!E39=0,"",'[1]Sort Sheet'!L39) -> Angus / Charolais X | I43: =IF('[1]Sort Sheet'!E39=0,"",'[1]Sort Sheet'!O39) -> 0 | J43: =IF('[1]Sort Sheet'!P39=0,"",'[1]Sort Sheet'!P39) -> 299.8 | K43: =IF('[1]Sort Sheet'!E39=0,"",'[1]Sort Sheet'!Q39) -> 10 | L43: =IF('[1]Sort Sheet'!E39=0,"",'[1]Sort Sheet'!R39) -> 3 | M43: =IF('[1]Sort Sheet'!E39=0,"",'[1]Sort Sheet'!S39) -> 80 | N43: =IF('[1]Sort Sheet'!E39=0,"",'[1]Sort Sheet'!U39) -> 1b | O43: =IF('[1]Sort Sheet'!E39=0,"",'[1]Sort Sheet'!V39) -> 1 | P43: =IF('[1]Sort Sheet'!E39=0,"",'[1]Sort Sheet'!W39) -> 1 | Q43: =IF('[1]Sort Sheet'!E39=0,"",'[1]Sort Sheet'!X39) -> 5.49 | R43: =IF('[1]Sort Sheet'!E39=0,"",'[1]Sort Sheet'!M39) -> 54.51 | S43: =IF('[1]Sort Sheet'!E39=0,"",'[1]Sort Sheet'!Z39) -> 59.74 | T43: =IF('[1]Sort Sheet'!E39=0,"",'[1]Sort Sheet'!AA39) -> 10.75667656 | U43: =IF('[1]Sort Sheet'!E39=0,"",'[1]Sort Sheet'!AB39) -> 1926.526365 | V43: =IF('[1]Sort Sheet'!E39=0,"",'[1]Sort Sheet'!AC39) -> 6.426038576 | W43: 192.65 | X43: 2119.176365 | Y43: 7.068633639
A44: 36 | B44: =IF('[1]Sort Sheet'!D40=0,"",'[1]Sort Sheet'!D40) -> 290 | C44: =IF('[1]Sort Sheet'!E40=0,"",'[1]Sort Sheet'!E40) -> 351A | D44: =IF('[1]Sort Sheet'!F40=0,"",'[1]Sort Sheet'!F40) -> M | E44: =IF('[1]Sort Sheet'!E40=0,"",'[1]Sort Sheet'!AT40) -> Y | F44: =IF('[1]Sort Sheet'!E40=0,"",'[1]Sort Sheet'!H40) -> Y | G44: =IF('[1]Sort Sheet'!E40=0,"",'[1]Sort Sheet'!J40) -> B Feeders Pty ltd | H44: =IF('[1]Sort Sheet'!E40=0,"",'[1]Sort Sheet'!L40) -> Charolais X Santa | I44: =IF('[1]Sort Sheet'!E40=0,"",'[1]Sort Sheet'!O40) -> 0 | J44: =IF('[1]Sort Sheet'!P40=0,"",'[1]Sort Sheet'!P40) -> 293.6 | K44: =IF('[1]Sort Sheet'!E40=0,"",'[1]Sort Sheet'!Q40) -> 15 | L44: =IF('[1]Sort Sheet'!E40=0,"",'[1]Sort Sheet'!R40) -> 4 | M44: =IF('[1]Sort Sheet'!E40=0,"",'[1]Sort Sheet'!S40) -> 80 | N44: =IF('[1]Sort Sheet'!E40=0,"",'[1]Sort Sheet'!U40) -> 2 | O44: =IF('[1]Sort Sheet'!E40=0,"",'[1]Sort Sheet'!V40) -> 1 | P44: =IF('[1]Sort Sheet'!E40=0,"",'[1]Sort Sheet'!W40) -> 1 | Q44: =IF('[1]Sort Sheet'!E40=0,"",'[1]Sort Sheet'!X40) -> 5.57 | R44: =IF('[1]Sort Sheet'!E40=0,"",'[1]Sort Sheet'!M40) -> 52.04 | S44: =IF('[1]Sort Sheet'!E40=0,"",'[1]Sort Sheet'!Z40) -> 59.71 | T44: =IF('[1]Sort Sheet'!E40=0,"",'[1]Sort Sheet'!AA40) -> 10.75667656 | U44: =IF('[1]Sort Sheet'!E40=0,"",'[1]Sort Sheet'!AB40) -> 1885.737478 | V44: =IF('[1]Sort Sheet'!E40=0,"",'[1]Sort Sheet'!AC40) -> 6.422811573 | W44: 188.57 | X44: 2074.307478 | Y44: 7.065079965
A45: 37 | B45: =IF('[1]Sort Sheet'!D41=0,"",'[1]Sort Sheet'!D41) -> 263 | C45: =IF('[1]Sort Sheet'!E41=0,"",'[1]Sort Sheet'!E41) -> 341A | D45: =IF('[1]Sort Sheet'!F41=0,"",'[1]Sort Sheet'!F41) -> M | E45: =IF('[1]Sort Sheet'!E41=0,"",'[1]Sort Sheet'!AT41) -> Y | F45: =IF('[1]Sort Sheet'!E41=0,"",'[1]Sort Sheet'!H41) -> Y | G45: =IF('[1]Sort Sheet'!E41=0,"",'[1]Sort Sheet'!J41) -> Smithfield Cattle Co | H45: =IF('[1]Sort Sheet'!E41=0,"",'[1]Sort Sheet'!L41) -> Santa X Angus | I45: =IF('[1]Sort Sheet'!E41=0,"",'[1]Sort Sheet'!O41) -> 0 | J45: =IF('[1]Sort Sheet'!P41=0,"",'[1]Sort Sheet'!P41) -> 291.2 | K45: =IF('[1]Sort Sheet'!E41=0,"",'[1]Sort Sheet'!Q41) -> 11 | L45: =IF('[1]Sort Sheet'!E41=0,"",'[1]Sort Sheet'!R41) -> 5 | M45: =IF('[1]Sort Sheet'!E41=0,"",'[1]Sort Sheet'!S41) -> 83 | N45: =IF('[1]Sort Sheet'!E41=0,"",'[1]Sort Sheet'!U41) -> 3 | O45: =IF('[1]Sort Sheet'!E41=0,"",'[1]Sort Sheet'!V41) -> 2 | P45: =IF('[1]Sort Sheet'!E41=0,"",'[1]Sort Sheet'!W41) -> 1 | Q45: =IF('[1]Sort Sheet'!E41=0,"",'[1]Sort Sheet'!X41) -> 5.7 | R45: =IF('[1]Sort Sheet'!E41=0,"",'[1]Sort Sheet'!M41) -> 54.7 | S45: =IF('[1]Sort Sheet'!E41=0,"",'[1]Sort Sheet'!Z41) -> 59.69 | T45: =IF('[1]Sort Sheet'!E41=0,"",'[1]Sort Sheet'!AA41) -> 10.75667656 | U45: =IF('[1]Sort Sheet'!E41=0,"",'[1]Sort Sheet'!AB41) -> 1869.696261 | V45: =IF('[1]Sort Sheet'!E41=0,"",'[1]Sort Sheet'!AC41) -> 6.420660237 | W45: 186.97 | X45: 2056.666261 | Y45: 7.062727545
A46: 38 | B46: =IF('[1]Sort Sheet'!D42=0,"",'[1]Sort Sheet'!D42) -> 293 | C46: =IF('[1]Sort Sheet'!E42=0,"",'[1]Sort Sheet'!E42) -> 350A | D46: =IF('[1]Sort Sheet'!F42=0,"",'[1]Sort Sheet'!F42) -> M | E46: =IF('[1]Sort Sheet'!E42=0,"",'[1]Sort Sheet'!AT42) -> Y | F46: =IF('[1]Sort Sheet'!E42=0,"",'[1]Sort Sheet'!H42) -> Y | G46: =IF('[1]Sort Sheet'!E42=0,"",'[1]Sort Sheet'!J42) -> B Feeders Pty ltd | H46: =IF('[1]Sort Sheet'!E42=0,"",'[1]Sort Sheet'!L42) -> Santa | I46: =IF('[1]Sort Sheet'!E42=0,"",'[1]Sort Sheet'!O42) -> 0 | J46: =IF('[1]Sort Sheet'!P42=0,"",'[1]Sort Sheet'!P42) -> 293.2 | K46: =IF('[1]Sort Sheet'!E42=0,"",'[1]Sort Sheet'!Q42) -> 8 | L46: =IF('[1]Sort Sheet'!E42=0,"",'[1]Sort Sheet'!R42) -> 5 | M46: =IF('[1]Sort Sheet'!E42=0,"",'[1]Sort Sheet'!S42) -> 83 | N46: =IF('[1]Sort Sheet'!E42=0,"",'[1]Sort Sheet'!U42) -> 3 | O46: =IF('[1]Sort Sheet'!E42=0,"",'[1]Sort Sheet'!V42) -> 1 | P46: =IF('[1]Sort Sheet'!E42=0,"",'[1]Sort Sheet'!W42) -> 0 | Q46: =IF('[1]Sort Sheet'!E42=0,"",'[1]Sort Sheet'!X42) -> 5.61 | R46: =IF('[1]Sort Sheet'!E42=0,"",'[1]Sort Sheet'!M42) -> 52.88 | S46: =IF('[1]Sort Sheet'!E42=0,"",'[1]Sort Sheet'!Z42) -> 59.65 | T46: =IF('[1]Sort Sheet'!E42=0,"",'[1]Sort Sheet'!AA42) -> 10.75667656 | U46: =IF('[1]Sort Sheet'!E42=0,"",'[1]Sort Sheet'!AB42) -> 1881.276039 | V46: =IF('[1]Sort Sheet'!E42=0,"",'[1]Sort Sheet'!AC42) -> 6.416357567 | W46: 188.13 | X46: 2069.406039 | Y46: 7.058001496
A47: 39 | B47: =IF('[1]Sort Sheet'!D43=0,"",'[1]Sort Sheet'!D43) -> 199 | C47: =IF('[1]Sort Sheet'!E43=0,"",'[1]Sort Sheet'!E43) -> 320A | D47: =IF('[1]Sort Sheet'!F43=0,"",'[1]Sort Sheet'!F43) -> M | E47: =IF('[1]Sort Sheet'!E43=0,"",'[1]Sort Sheet'!AT43) -> Y | F47: =IF('[1]Sort Sheet'!E43=0,"",'[1]Sort Sheet'!H43) -> Y | G47: =IF('[1]Sort Sheet'!E43=0,"",'[1]Sort Sheet'!J43) -> Darr Creek Pastoral | H47: =IF('[1]Sort Sheet'!E43=0,"",'[1]Sort Sheet'!L43) -> Angus/Hereford X Limousin | I47: =IF('[1]Sort Sheet'!E43=0,"",'[1]Sort Sheet'!O43) -> 0 | J47: =IF('[1]Sort Sheet'!P43=0,"",'[1]Sort Sheet'!P43) -> 265.2 | K47: =IF('[1]Sort Sheet'!E43=0,"",'[1]Sort Sheet'!Q43) -> 11 | L47: =IF('[1]Sort Sheet'!E43=0,"",'[1]Sort Sheet'!R43) -> 5 | M47: =IF('[1]Sort Sheet'!E43=0,"",'[1]Sort Sheet'!S43) -> 75 | N47: =IF('[1]Sort Sheet'!E43=0,"",'[1]Sort Sheet'!U43) -> 2 | O47: =IF('[1]Sort Sheet'!E43=0,"",'[1]Sort Sheet'!V43) -> 1 | P47: =IF('[1]Sort Sheet'!E43=0,"",'[1]Sort Sheet'!W43) -> 1 | Q47: =IF('[1]Sort Sheet'!E43=0,"",'[1]Sort Sheet'!X43) -> 5.59 | R47: =IF('[1]Sort Sheet'!E43=0,"",'[1]Sort Sheet'!M43) -> 55.67 | S47: =IF('[1]Sort Sheet'!E43=0,"",'[1]Sort Sheet'!Z43) -> 59.56 | T47: =IF('[1]Sort Sheet'!E43=0,"",'[1]Sort Sheet'!AA43) -> 10.75667656 | U47: =IF('[1]Sort Sheet'!E43=0,"",'[1]Sort Sheet'!AB43) -> 1699.050623 | V47: =IF('[1]Sort Sheet'!E43=0,"",'[1]Sort Sheet'!AC43) -> 6.406676558 | W47: 169.91 | X47: 1868.960623 | Y47: 7.047362832
A48: 40 | B48: =IF('[1]Sort Sheet'!D44=0,"",'[1]Sort Sheet'!D44) -> 225 | C48: =IF('[1]Sort Sheet'!E44=0,"",'[1]Sort Sheet'!E44) -> 326A | D48: =IF('[1]Sort Sheet'!F44=0,"",'[1]Sort Sheet'!F44) -> F | E48: =IF('[1]Sort Sheet'!E44=0,"",'[1]Sort Sheet'!AT44) -> Y | F48: =IF('[1]Sort Sheet'!E44=0,"",'[1]Sort Sheet'!H44) -> Y | G48: =IF('[1]Sort Sheet'!E44=0,"",'[1]Sort Sheet'!J44) -> R S & K M Stevens Family Trust | H48: =IF('[1]Sort Sheet'!E44=0,"",'[1]Sort Sheet'!L44) -> Charolais X Santa | I48: =IF('[1]Sort Sheet'!E44=0,"",'[1]Sort Sheet'!O44) -> 0 | J48: =IF('[1]Sort Sheet'!P44=0,"",'[1]Sort Sheet'!P44) -> 251.4 | K48: =IF('[1]Sort Sheet'!E44=0,"",'[1]Sort Sheet'!Q44) -> 10 | L48: =IF('[1]Sort Sheet'!E44=0,"",'[1]Sort Sheet'!R44) -> 4 | M48: =IF('[1]Sort Sheet'!E44=0,"",'[1]Sort Sheet'!S44) -> 84 | N48: =IF('[1]Sort Sheet'!E44=0,"",'[1]Sort Sheet'!U44) -> 1b | O48: =IF('[1]Sort Sheet'!E44=0,"",'[1]Sort Sheet'!V44) -> 1 | P48: =IF('[1]Sort Sheet'!E44=0,"",'[1]Sort Sheet'!W44) -> 1 | Q48: =IF('[1]Sort Sheet'!E44=0,"",'[1]Sort Sheet'!X44) -> 5.49 | R48: =IF('[1]Sort Sheet'!E44=0,"",'[1]Sort Sheet'!M44) -> 53.81 | S48: =IF('[1]Sort Sheet'!E44=0,"",'[1]Sort Sheet'!Z44) -> 59.56 | T48: =IF('[1]Sort Sheet'!E44=0,"",'[1]Sort Sheet'!AA44) -> 10.75667656 | U48: =IF('[1]Sort Sheet'!E44=0,"",'[1]Sort Sheet'!AB44) -> 1610.638487 | V48: =IF('[1]Sort Sheet'!E44=0,"",'[1]Sort Sheet'!AC44) -> 6.406676558 | W48: 161.06 | X48: 1771.698487 | Y48: 7.047328905
A49: 41 | B49: =IF('[1]Sort Sheet'!D45=0,"",'[1]Sort Sheet'!D45) -> 233 | C49: =IF('[1]Sort Sheet'!E45=0,"",'[1]Sort Sheet'!E45) -> 329B | D49: =IF('[1]Sort Sheet'!F45=0,"",'[1]Sort Sheet'!F45) -> F | E49: =IF('[1]Sort Sheet'!E45=0,"",'[1]Sort Sheet'!AT45) -> Y | F49: =IF('[1]Sort Sheet'!E45=0,"",'[1]Sort Sheet'!H45) -> Y | G49: =IF('[1]Sort Sheet'!E45=0,"",'[1]Sort Sheet'!J45) -> Juandah Grazing | H49: =IF('[1]Sort Sheet'!E45=0,"",'[1]Sort Sheet'!L45) -> Charolais X Droughtmaster | I49: =IF('[1]Sort Sheet'!E45=0,"",'[1]Sort Sheet'!O45) -> 0 | J49: =IF('[1]Sort Sheet'!P45=0,"",'[1]Sort Sheet'!P45) -> 255.4 | K49: =IF('[1]Sort Sheet'!E45=0,"",'[1]Sort Sheet'!Q45) -> 10 | L49: =IF('[1]Sort Sheet'!E45=0,"",'[1]Sort Sheet'!R45) -> 5 | M49: =IF('[1]Sort Sheet'!E45=0,"",'[1]Sort Sheet'!S45) -> 88 | N49: =IF('[1]Sort Sheet'!E45=0,"",'[1]Sort Sheet'!U45) -> 2 | O49: =IF('[1]Sort Sheet'!E45=0,"",'[1]Sort Sheet'!V45) -> 2 | P49: =IF('[1]Sort Sheet'!E45=0,"",'[1]Sort Sheet'!W45) -> 1 | Q49: =IF('[1]Sort Sheet'!E45=0,"",'[1]Sort Sheet'!X45) -> 5.5 | R49: =IF('[1]Sort Sheet'!E45=0,"",'[1]Sort Sheet'!M45) -> 55.43 | S49: =IF('[1]Sort Sheet'!E45=0,"",'[1]Sort Sheet'!Z45) -> 59.55 | T49: =IF('[1]Sort Sheet'!E45=0,"",'[1]Sort Sheet'!AA45) -> 10.75667656 | U49: =IF('[1]Sort Sheet'!E45=0,"",'[1]Sort Sheet'!AB45) -> 1635.990467 | V49: =IF('[1]Sort Sheet'!E45=0,"",'[1]Sort Sheet'!AC45) -> 6.40560089 | W49: 163.6 | X49: 1799.590467 | Y49: 7.046164712
A50: 42 | B50: =IF('[1]Sort Sheet'!D46=0,"",'[1]Sort Sheet'!D46) -> 291 | C50: =IF('[1]Sort Sheet'!E46=0,"",'[1]Sort Sheet'!E46) -> 349A | D50: =IF('[1]Sort Sheet'!F46=0,"",'[1]Sort Sheet'!F46) -> M | E50: =IF('[1]Sort Sheet'!E46=0,"",'[1]Sort Sheet'!AT46) -> Y | F50: =IF('[1]Sort Sheet'!E46=0,"",'[1]Sort Sheet'!H46) -> Y | G50: =IF('[1]Sort Sheet'!E46=0,"",'[1]Sort Sheet'!J46) -> B Feeders Pty ltd | H50: =IF('[1]Sort Sheet'!E46=0,"",'[1]Sort Sheet'!L46) -> Charolais X Santa | I50: =IF('[1]Sort Sheet'!E46=0,"",'[1]Sort Sheet'!O46) -> 0 | J50: =IF('[1]Sort Sheet'!P46=0,"",'[1]Sort Sheet'!P46) -> 307.4 | K50: =IF('[1]Sort Sheet'!E46=0,"",'[1]Sort Sheet'!Q46) -> 10 | L50: =IF('[1]Sort Sheet'!E46=0,"",'[1]Sort Sheet'!R46) -> 3 | M50: =IF('[1]Sort Sheet'!E46=0,"",'[1]Sort Sheet'!S46) -> 80 | N50: =IF('[1]Sort Sheet'!E46=0,"",'[1]Sort Sheet'!U46) -> 2 | O50: =IF('[1]Sort Sheet'!E46=0,"",'[1]Sort Sheet'!V46) -> 1 | P50: =IF('[1]Sort Sheet'!E46=0,"",'[1]Sort Sheet'!W46) -> 1 | Q50: =IF('[1]Sort Sheet'!E46=0,"",'[1]Sort Sheet'!X46) -> 5.52 | R50: =IF('[1]Sort Sheet'!E46=0,"",'[1]Sort Sheet'!M46) -> 54.33 | S50: =IF('[1]Sort Sheet'!E46=0,"",'[1]Sort Sheet'!Z46) -> 59.35 | T50: =IF('[1]Sort Sheet'!E46=0,"",'[1]Sort Sheet'!AA46) -> 10.75667656 | U50: =IF('[1]Sort Sheet'!E46=0,"",'[1]Sort Sheet'!AB46) -> 1962.468509 | V50: =IF('[1]Sort Sheet'!E46=0,"",'[1]Sort Sheet'!AC46) -> 6.384087537 | W50: 196.25 | X50: 2158.718509 | Y50: 7.022506535
A51: 43 | B51: =IF('[1]Sort Sheet'!D47=0,"",'[1]Sort Sheet'!D47) -> 221 | C51: =IF('[1]Sort Sheet'!E47=0,"",'[1]Sort Sheet'!E47) -> 324B | D51: =IF('[1]Sort Sheet'!F47=0,"",'[1]Sort Sheet'!F47) -> F | E51: =IF('[1]Sort Sheet'!E47=0,"",'[1]Sort Sheet'!AT47) -> Y | F51: =IF('[1]Sort Sheet'!E47=0,"",'[1]Sort Sheet'!H47) -> Y | G51: =IF('[1]Sort Sheet'!E47=0,"",'[1]Sort Sheet'!J47) -> R S & K M Stevens Family Trust | H51: =IF('[1]Sort Sheet'!E47=0,"",'[1]Sort Sheet'!L47) -> Charolais X Santa | I51: =IF('[1]Sort Sheet'!E47=0,"",'[1]Sort Sheet'!O47) -> 0 | J51: =IF('[1]Sort Sheet'!P47=0,"",'[1]Sort Sheet'!P47) -> 264.6 | K51: =IF('[1]Sort Sheet'!E47=0,"",'[1]Sort Sheet'!Q47) -> 10 | L51: =IF('[1]Sort Sheet'!E47=0,"",'[1]Sort Sheet'!R47) -> 7 | M51: =IF('[1]Sort Sheet'!E47=0,"",'[1]Sort Sheet'!S47) -> 96 | N51: =IF('[1]Sort Sheet'!E47=0,"",'[1]Sort Sheet'!U47) -> 1b | O51: =IF('[1]Sort Sheet'!E47=0,"",'[1]Sort Sheet'!V47) -> 1 | P51: =IF('[1]Sort Sheet'!E47=0,"",'[1]Sort Sheet'!W47) -> 0 | Q51: =IF('[1]Sort Sheet'!E47=0,"",'[1]Sort Sheet'!X47) -> 5.38 | R51: =IF('[1]Sort Sheet'!E47=0,"",'[1]Sort Sheet'!M47) -> 54.88 | S51: =IF('[1]Sort Sheet'!E47=0,"",'[1]Sort Sheet'!Z47) -> 59.31 | T51: =IF('[1]Sort Sheet'!E47=0,"",'[1]Sort Sheet'!AA47) -> 10.75667656 | U51: =IF('[1]Sort Sheet'!E47=0,"",'[1]Sort Sheet'!AB47) -> 1688.091076 | V51: =IF('[1]Sort Sheet'!E47=0,"",'[1]Sort Sheet'!AC47) -> 6.379784866 | W51: 168.81 | X51: 1856.901076 | Y51: 7.017766726
A52: 44 | B52: =IF('[1]Sort Sheet'!D48=0,"",'[1]Sort Sheet'!D48) -> 266 | C52: =IF('[1]Sort Sheet'!E48=0,"",'[1]Sort Sheet'!E48) -> 341B | D52: =IF('[1]Sort Sheet'!F48=0,"",'[1]Sort Sheet'!F48) -> M | E52: =IF('[1]Sort Sheet'!E48=0,"",'[1]Sort Sheet'!AT48) -> Y | F52: =IF('[1]Sort Sheet'!E48=0,"",'[1]Sort Sheet'!H48) -> Y | G52: =IF('[1]Sort Sheet'!E48=0,"",'[1]Sort Sheet'!J48) -> Smithfield Cattle Co | H52: =IF('[1]Sort Sheet'!E48=0,"",'[1]Sort Sheet'!L48) -> Santa X Angus | I52: =IF('[1]Sort Sheet'!E48=0,"",'[1]Sort Sheet'!O48) -> 0 | J52: =IF('[1]Sort Sheet'!P48=0,"",'[1]Sort Sheet'!P48) -> 300 | K52: =IF('[1]Sort Sheet'!E48=0,"",'[1]Sort Sheet'!Q48) -> 12 | L52: =IF('[1]Sort Sheet'!E48=0,"",'[1]Sort Sheet'!R48) -> 3 | M52: =IF('[1]Sort Sheet'!E48=0,"",'[1]Sort Sheet'!S48) -> 77 | N52: =IF('[1]Sort Sheet'!E48=0,"",'[1]Sort Sheet'!U48) -> 1b | O52: =IF('[1]Sort Sheet'!E48=0,"",'[1]Sort Sheet'!V48) -> 1 | P52: =IF('[1]Sort Sheet'!E48=0,"",'[1]Sort Sheet'!W48) -> 1 | Q52: =IF('[1]Sort Sheet'!E48=0,"",'[1]Sort Sheet'!X48) -> 5.47 | R52: =IF('[1]Sort Sheet'!E48=0,"",'[1]Sort Sheet'!M48) -> 55.96 | S52: =IF('[1]Sort Sheet'!E48=0,"",'[1]Sort Sheet'!Z48) -> 59.3 | T52: =IF('[1]Sort Sheet'!E48=0,"",'[1]Sort Sheet'!AA48) -> 10.75667656 | U52: =IF('[1]Sort Sheet'!E48=0,"",'[1]Sort Sheet'!AB48) -> 1913.61276 | V52: =IF('[1]Sort Sheet'!E48=0,"",'[1]Sort Sheet'!AC48) -> 6.378709199 | W52: 191.36 | X52: 2104.97276 | Y52: 7.016575865
A53: 45 | B53: =IF('[1]Sort Sheet'!D49=0,"",'[1]Sort Sheet'!D49) -> 292 | C53: =IF('[1]Sort Sheet'!E49=0,"",'[1]Sort Sheet'!E49) -> 350C | D53: =IF('[1]Sort Sheet'!F49=0,"",'[1]Sort Sheet'!F49) -> M | E53: =IF('[1]Sort Sheet'!E49=0,"",'[1]Sort Sheet'!AT49) -> Y | F53: =IF('[1]Sort Sheet'!E49=0,"",'[1]Sort Sheet'!H49) -> Y | G53: =IF('[1]Sort Sheet'!E49=0,"",'[1]Sort Sheet'!J49) -> B Feeders Pty ltd | H53: =IF('[1]Sort Sheet'!E49=0,"",'[1]Sort Sheet'!L49) -> Santa | I53: =IF('[1]Sort Sheet'!E49=0,"",'[1]Sort Sheet'!O49) -> 0 | J53: =IF('[1]Sort Sheet'!P49=0,"",'[1]Sort Sheet'!P49) -> 301.8 | K53: =IF('[1]Sort Sheet'!E49=0,"",'[1]Sort Sheet'!Q49) -> 12 | L53: =IF('[1]Sort Sheet'!E49=0,"",'[1]Sort Sheet'!R49) -> 3 | M53: =IF('[1]Sort Sheet'!E49=0,"",'[1]Sort Sheet'!S49) -> 76 | N53: =IF('[1]Sort Sheet'!E49=0,"",'[1]Sort Sheet'!U49) -> 2 | O53: =IF('[1]Sort Sheet'!E49=0,"",'[1]Sort Sheet'!V49) -> 1 | P53: =IF('[1]Sort Sheet'!E49=0,"",'[1]Sort Sheet'!W49) -> 1 | Q53: =IF('[1]Sort Sheet'!E49=0,"",'[1]Sort Sheet'!X49) -> 5.59 | R53: =IF('[1]Sort Sheet'!E49=0,"",'[1]Sort Sheet'!M49) -> 52.94 | S53: =IF('[1]Sort Sheet'!E49=0,"",'[1]Sort Sheet'!Z49) -> 59.16 | T53: =IF('[1]Sort Sheet'!E49=0,"",'[1]Sort Sheet'!AA49) -> 10.75667656 | U53: =IF('[1]Sort Sheet'!E49=0,"",'[1]Sort Sheet'!AB49) -> 1920.549525 | V53: =IF('[1]Sort Sheet'!E49=0,"",'[1]Sort Sheet'!AC49) -> 6.363649852 | W53: 192.05 | X53: 2112.599525 | Y53: 6.999998427
A54: 46 | B54: =IF('[1]Sort Sheet'!D50=0,"",'[1]Sort Sheet'!D50) -> 217 | C54: =IF('[1]Sort Sheet'!E50=0,"",'[1]Sort Sheet'!E50) -> 326C | D54: =IF('[1]Sort Sheet'!F50=0,"",'[1]Sort Sheet'!F50) -> F | E54: =IF('[1]Sort Sheet'!E50=0,"",'[1]Sort Sheet'!AT50) -> Y | F54: =IF('[1]Sort Sheet'!E50=0,"",'[1]Sort Sheet'!H50) -> Y | G54: =IF('[1]Sort Sheet'!E50=0,"",'[1]Sort Sheet'!J50) -> R S & K M Stevens Family Trust | H54: =IF('[1]Sort Sheet'!E50=0,"",'[1]Sort Sheet'!L50) -> Charolais X Angus/Hereford | I54: =IF('[1]Sort Sheet'!E50=0,"",'[1]Sort Sheet'!O50) -> 0 | J54: =IF('[1]Sort Sheet'!P50=0,"",'[1]Sort Sheet'!P50) -> 246.4 | K54: =IF('[1]Sort Sheet'!E50=0,"",'[1]Sort Sheet'!Q50) -> 11 | L54: =IF('[1]Sort Sheet'!E50=0,"",'[1]Sort Sheet'!R50) -> 5 | M54: =IF('[1]Sort Sheet'!E50=0,"",'[1]Sort Sheet'!S50) -> 83 | N54: =IF('[1]Sort Sheet'!E50=0,"",'[1]Sort Sheet'!U50) -> 1b | O54: =IF('[1]Sort Sheet'!E50=0,"",'[1]Sort Sheet'!V50) -> 2 | P54: =IF('[1]Sort Sheet'!E50=0,"",'[1]Sort Sheet'!W50) -> 1 | Q54: =IF('[1]Sort Sheet'!E50=0,"",'[1]Sort Sheet'!X50) -> 5.59 | R54: =IF('[1]Sort Sheet'!E50=0,"",'[1]Sort Sheet'!M50) -> 55.54 | S54: =IF('[1]Sort Sheet'!E50=0,"",'[1]Sort Sheet'!Z50) -> 59.14 | T54: =IF('[1]Sort Sheet'!E50=0,"",'[1]Sort Sheet'!AA50) -> 10.75667656 | U54: =IF('[1]Sort Sheet'!E50=0,"",'[1]Sort Sheet'!AB50) -> 1567.473234 | V54: =IF('[1]Sort Sheet'!E50=0,"",'[1]Sort Sheet'!AC50) -> 6.361498516 | W54: 156.75 | X54: 1724.223234 | Y54: 6.997659231
A55: 47 | B55: =IF('[1]Sort Sheet'!D51=0,"",'[1]Sort Sheet'!D51) -> 245 | C55: =IF('[1]Sort Sheet'!E51=0,"",'[1]Sort Sheet'!E51) -> 334B | D55: =IF('[1]Sort Sheet'!F51=0,"",'[1]Sort Sheet'!F51) -> F | E55: =IF('[1]Sort Sheet'!E51=0,"",'[1]Sort Sheet'!AT51) -> Y | F55: =IF('[1]Sort Sheet'!E51=0,"",'[1]Sort Sheet'!H51) -> Y | G55: =IF('[1]Sort Sheet'!E51=0,"",'[1]Sort Sheet'!J51) -> John & Estelle Drynan | H55: =IF('[1]Sort Sheet'!E51=0,"",'[1]Sort Sheet'!L51) -> Charolais | I55: =IF('[1]Sort Sheet'!E51=0,"",'[1]Sort Sheet'!O51) -> 0 | J55: =IF('[1]Sort Sheet'!P51=0,"",'[1]Sort Sheet'!P51) -> 268.8 | K55: =IF('[1]Sort Sheet'!E51=0,"",'[1]Sort Sheet'!Q51) -> 10 | L55: =IF('[1]Sort Sheet'!E51=0,"",'[1]Sort Sheet'!R51) -> 5 | M55: =IF('[1]Sort Sheet'!E51=0,"",'[1]Sort Sheet'!S51) -> 90 | N55: =IF('[1]Sort Sheet'!E51=0,"",'[1]Sort Sheet'!U51) -> 2 | O55: =IF('[1]Sort Sheet'!E51=0,"",'[1]Sort Sheet'!V51) -> 1 | P55: =IF('[1]Sort Sheet'!E51=0,"",'[1]Sort Sheet'!W51) -> 1 | Q55: =IF('[1]Sort Sheet'!E51=0,"",'[1]Sort Sheet'!X51) -> 5.53 | R55: =IF('[1]Sort Sheet'!E51=0,"",'[1]Sort Sheet'!M51) -> 57.65 | S55: =IF('[1]Sort Sheet'!E51=0,"",'[1]Sort Sheet'!Z51) -> 59.13 | T55: =IF('[1]Sort Sheet'!E51=0,"",'[1]Sort Sheet'!AA51) -> 10.75667656 | U55: =IF('[1]Sort Sheet'!E51=0,"",'[1]Sort Sheet'!AB51) -> 1709.681662 | V55: =IF('[1]Sort Sheet'!E51=0,"",'[1]Sort Sheet'!AC51) -> 6.360422849 | W55: 170.97 | X55: 1880.651662 | Y55: 6.996471956
A56: 48 | B56: =IF('[1]Sort Sheet'!D52=0,"",'[1]Sort Sheet'!D52) -> 224 | C56: =IF('[1]Sort Sheet'!E52=0,"",'[1]Sort Sheet'!E52) -> 325B | D56: =IF('[1]Sort Sheet'!F52=0,"",'[1]Sort Sheet'!F52) -> F | E56: =IF('[1]Sort Sheet'!E52=0,"",'[1]Sort Sheet'!AT52) -> Y | F56: =IF('[1]Sort Sheet'!E52=0,"",'[1]Sort Sheet'!H52) -> Y | G56: =IF('[1]Sort Sheet'!E52=0,"",'[1]Sort Sheet'!J52) -> R S & K M Stevens Family Trust | H56: =IF('[1]Sort Sheet'!E52=0,"",'[1]Sort Sheet'!L52) -> Charolais X Brangus | I56: =IF('[1]Sort Sheet'!E52=0,"",'[1]Sort Sheet'!O52) -> 0 | J56: =IF('[1]Sort Sheet'!P52=0,"",'[1]Sort Sheet'!P52) -> 257.2 | K56: =IF('[1]Sort Sheet'!E52=0,"",'[1]Sort Sheet'!Q52) -> 10 | L56: =IF('[1]Sort Sheet'!E52=0,"",'[1]Sort Sheet'!R52) -> 5 | M56: =IF('[1]Sort Sheet'!E52=0,"",'[1]Sort Sheet'!S52) -> 85 | N56: =IF('[1]Sort Sheet'!E52=0,"",'[1]Sort Sheet'!U52) -> 1b | O56: =IF('[1]Sort Sheet'!E52=0,"",'[1]Sort Sheet'!V52) -> 1 | P56: =IF('[1]Sort Sheet'!E52=0,"",'[1]Sort Sheet'!W52) -> 1 | Q56: =IF('[1]Sort Sheet'!E52=0,"",'[1]Sort Sheet'!X52) -> 5.47 | R56: =IF('[1]Sort Sheet'!E52=0,"",'[1]Sort Sheet'!M52) -> 56.09 | S56: =IF('[1]Sort Sheet'!E52=0,"",'[1]Sort Sheet'!Z52) -> 59.04 | T56: =IF('[1]Sort Sheet'!E52=0,"",'[1]Sort Sheet'!AA52) -> 10.75667656 | U56: =IF('[1]Sort Sheet'!E52=0,"",'[1]Sort Sheet'!AB52) -> 1633.410801 | V56: =IF('[1]Sort Sheet'!E52=0,"",'[1]Sort Sheet'!AC52) -> 6.35074184 | W56: 163.34 | X56: 1796.750801 | Y56: 6.985811824
A57: 49 | B57: =IF('[1]Sort Sheet'!D53=0,"",'[1]Sort Sheet'!D53) -> 246 | C57: =IF('[1]Sort Sheet'!E53=0,"",'[1]Sort Sheet'!E53) -> 333B | D57: =IF('[1]Sort Sheet'!F53=0,"",'[1]Sort Sheet'!F53) -> F | E57: =IF('[1]Sort Sheet'!E53=0,"",'[1]Sort Sheet'!AT53) -> Y | F57: =IF('[1]Sort Sheet'!E53=0,"",'[1]Sort Sheet'!H53) -> Y | G57: =IF('[1]Sort Sheet'!E53=0,"",'[1]Sort Sheet'!J53) -> John & Estelle Drynan | H57: =IF('[1]Sort Sheet'!E53=0,"",'[1]Sort Sheet'!L53) -> Charolais | I57: =IF('[1]Sort Sheet'!E53=0,"",'[1]Sort Sheet'!O53) -> 0 | J57: =IF('[1]Sort Sheet'!P53=0,"",'[1]Sort Sheet'!P53) -> 294.4 | K57: =IF('[1]Sort Sheet'!E53=0,"",'[1]Sort Sheet'!Q53) -> 6 | L57: =IF('[1]Sort Sheet'!E53=0,"",'[1]Sort Sheet'!R53) -> 4 | M57: =IF('[1]Sort Sheet'!E53=0,"",'[1]Sort Sheet'!S53) -> 92 | N57: =IF('[1]Sort Sheet'!E53=0,"",'[1]Sort Sheet'!U53) -> 1b | O57: =IF('[1]Sort Sheet'!E53=0,"",'[1]Sort Sheet'!V53) -> 1 | P57: =IF('[1]Sort Sheet'!E53=0,"",'[1]Sort Sheet'!W53) -> 1 | Q57: =IF('[1]Sort Sheet'!E53=0,"",'[1]Sort Sheet'!X53) -> 5.54 | R57: =IF('[1]Sort Sheet'!E53=0,"",'[1]Sort Sheet'!M53) -> 61.2 | S57: =IF('[1]Sort Sheet'!E53=0,"",'[1]Sort Sheet'!Z53) -> 58.88 | T57: =IF('[1]Sort Sheet'!E53=0,"",'[1]Sort Sheet'!AA53) -> 10.75667656 | U57: =IF('[1]Sort Sheet'!E53=0,"",'[1]Sort Sheet'!AB53) -> 1864.591573 | V57: =IF('[1]Sort Sheet'!E53=0,"",'[1]Sort Sheet'!AC53) -> 6.333531157 | W57: 186.46 | X57: 2051.051573 | Y57: 6.966887136
A58: 50 | B58: =IF('[1]Sort Sheet'!D54=0,"",'[1]Sort Sheet'!D54) -> 270 | C58: =IF('[1]Sort Sheet'!E54=0,"",'[1]Sort Sheet'!E54) -> 342A | D58: =IF('[1]Sort Sheet'!F54=0,"",'[1]Sort Sheet'!F54) -> M | E58: =IF('[1]Sort Sheet'!E54=0,"",'[1]Sort Sheet'!AT54) -> Y | F58: =IF('[1]Sort Sheet'!E54=0,"",'[1]Sort Sheet'!H54) -> Y | G58: =IF('[1]Sort Sheet'!E54=0,"",'[1]Sort Sheet'!J54) -> Smithfield Cattle Co | H58: =IF('[1]Sort Sheet'!E54=0,"",'[1]Sort Sheet'!L54) -> Angus X Hereford | I58: =IF('[1]Sort Sheet'!E54=0,"",'[1]Sort Sheet'!O54) -> 0 | J58: =IF('[1]Sort Sheet'!P54=0,"",'[1]Sort Sheet'!P54) -> 254.6 | K58: =IF('[1]Sort Sheet'!E54=0,"",'[1]Sort Sheet'!Q54) -> 10 | L58: =IF('[1]Sort Sheet'!E54=0,"",'[1]Sort Sheet'!R54) -> 7 | M58: =IF('[1]Sort Sheet'!E54=0,"",'[1]Sort Sheet'!S54) -> 73 | N58: =IF('[1]Sort Sheet'!E54=0,"",'[1]Sort Sheet'!U54) -> 3 | O58: =IF('[1]Sort Sheet'!E54=0,"",'[1]Sort Sheet'!V54) -> 0 | P58: =IF('[1]Sort Sheet'!E54=0,"",'[1]Sort Sheet'!W54) -> 1 | Q58: =IF('[1]Sort Sheet'!E54=0,"",'[1]Sort Sheet'!X54) -> 5.68 | R58: =IF('[1]Sort Sheet'!E54=0,"",'[1]Sort Sheet'!M54) -> 56.45 | S58: =IF('[1]Sort Sheet'!E54=0,"",'[1]Sort Sheet'!Z54) -> 58.85 | T58: =IF('[1]Sort Sheet'!E54=0,"",'[1]Sort Sheet'!AA54) -> 10.75667656 | U58: =IF('[1]Sort Sheet'!E54=0,"",'[1]Sort Sheet'!AB54) -> 1611.695438 | V58: =IF('[1]Sort Sheet'!E54=0,"",'[1]Sort Sheet'!AC54) -> 6.330304154 | W58: 161.17 | X58: 1772.865438 | Y58: 6.963336362
A59: 51 | B59: =IF('[1]Sort Sheet'!D55=0,"",'[1]Sort Sheet'!D55) -> 249 | C59: =IF('[1]Sort Sheet'!E55=0,"",'[1]Sort Sheet'!E55) -> 334A | D59: =IF('[1]Sort Sheet'!F55=0,"",'[1]Sort Sheet'!F55) -> F | E59: =IF('[1]Sort Sheet'!E55=0,"",'[1]Sort Sheet'!AT55) -> Y | F59: =IF('[1]Sort Sheet'!E55=0,"",'[1]Sort Sheet'!H55) -> Y | G59: =IF('[1]Sort Sheet'!E55=0,"",'[1]Sort Sheet'!J55) -> John & Estelle Drynan | H59: =IF('[1]Sort Sheet'!E55=0,"",'[1]Sort Sheet'!L55) -> Charolais | I59: =IF('[1]Sort Sheet'!E55=0,"",'[1]Sort Sheet'!O55) -> 0 | J59: =IF('[1]Sort Sheet'!P55=0,"",'[1]Sort Sheet'!P55) -> 253.6 | K59: =IF('[1]Sort Sheet'!E55=0,"",'[1]Sort Sheet'!Q55) -> 6 | L59: =IF('[1]Sort Sheet'!E55=0,"",'[1]Sort Sheet'!R55) -> 4 | M59: =IF('[1]Sort Sheet'!E55=0,"",'[1]Sort Sheet'!S55) -> 81 | N59: =IF('[1]Sort Sheet'!E55=0,"",'[1]Sort Sheet'!U55) -> 1b | O59: =IF('[1]Sort Sheet'!E55=0,"",'[1]Sort Sheet'!V55) -> 1 | P59: =IF('[1]Sort Sheet'!E55=0,"",'[1]Sort Sheet'!W55) -> 1 | Q59: =IF('[1]Sort Sheet'!E55=0,"",'[1]Sort Sheet'!X55) -> 5.34 | R59: =IF('[1]Sort Sheet'!E55=0,"",'[1]Sort Sheet'!M55) -> 61.17 | S59: =IF('[1]Sort Sheet'!E55=0,"",'[1]Sort Sheet'!Z55) -> 58.82 | T59: =IF('[1]Sort Sheet'!E55=0,"",'[1]Sort Sheet'!AA55) -> 10.75667656 | U59: =IF('[1]Sort Sheet'!E55=0,"",'[1]Sort Sheet'!AB55) -> 1604.546766 | V59: =IF('[1]Sort Sheet'!E55=0,"",'[1]Sort Sheet'!AC55) -> 6.327077151 | W59: 160.45 | X59: 1764.996766 | Y59: 6.959766426
A60: 52 | B60: =IF('[1]Sort Sheet'!D56=0,"",'[1]Sort Sheet'!D56) -> 196 | C60: =IF('[1]Sort Sheet'!E56=0,"",'[1]Sort Sheet'!E56) -> 316C | D60: =IF('[1]Sort Sheet'!F56=0,"",'[1]Sort Sheet'!F56) -> M | E60: =IF('[1]Sort Sheet'!E56=0,"",'[1]Sort Sheet'!AT56) -> Y | F60: =IF('[1]Sort Sheet'!E56=0,"",'[1]Sort Sheet'!H56) -> Y | G60: =IF('[1]Sort Sheet'!E56=0,"",'[1]Sort Sheet'!J56) -> Riverglen Pastoral Company | H60: =IF('[1]Sort Sheet'!E56=0,"",'[1]Sort Sheet'!L56) -> Charolais X | I60: =IF('[1]Sort Sheet'!E56=0,"",'[1]Sort Sheet'!O56) -> 0 | J60: =IF('[1]Sort Sheet'!P56=0,"",'[1]Sort Sheet'!P56) -> 285.6 | K60: =IF('[1]Sort Sheet'!E56=0,"",'[1]Sort Sheet'!Q56) -> 12 | L60: =IF('[1]Sort Sheet'!E56=0,"",'[1]Sort Sheet'!R56) -> 4 | M60: =IF('[1]Sort Sheet'!E56=0,"",'[1]Sort Sheet'!S56) -> 73 | N60: =IF('[1]Sort Sheet'!E56=0,"",'[1]Sort Sheet'!U56) -> 2 | O60: =IF('[1]Sort Sheet'!E56=0,"",'[1]Sort Sheet'!V56) -> 1 | P60: =IF('[1]Sort Sheet'!E56=0,"",'[1]Sort Sheet'!W56) -> 1 | Q60: =IF('[1]Sort Sheet'!E56=0,"",'[1]Sort Sheet'!X56) -> 5.52 | R60: =IF('[1]Sort Sheet'!E56=0,"",'[1]Sort Sheet'!M56) -> 62.72 | S60: =IF('[1]Sort Sheet'!E56=0,"",'[1]Sort Sheet'!Z56) -> 58.78 | T60: =IF('[1]Sort Sheet'!E56=0,"",'[1]Sort Sheet'!AA56) -> 10.75667656 | U60: =IF('[1]Sort Sheet'!E56=0,"",'[1]Sort Sheet'!AB56) -> 1805.784392 | V60: =IF('[1]Sort Sheet'!E56=0,"",'[1]Sort Sheet'!AC56) -> 6.322774481 | W60: 180.58 | X60: 1986.364392 | Y60: 6.955057394
A61: 53 | B61: =IF('[1]Sort Sheet'!D57=0,"",'[1]Sort Sheet'!D57) -> 254 | C61: =IF('[1]Sort Sheet'!E57=0,"",'[1]Sort Sheet'!E57) -> 338A | D61: =IF('[1]Sort Sheet'!F57=0,"",'[1]Sort Sheet'!F57) -> F | E61: =IF('[1]Sort Sheet'!E57=0,"",'[1]Sort Sheet'!AT57) -> Y | F61: =IF('[1]Sort Sheet'!E57=0,"",'[1]Sort Sheet'!H57) -> Y | G61: =IF('[1]Sort Sheet'!E57=0,"",'[1]Sort Sheet'!J57) -> RB & VA Budd & Willoise Grazing Co Pty Ltd | H61: =IF('[1]Sort Sheet'!E57=0,"",'[1]Sort Sheet'!L57) -> Charolais X | I61: =IF('[1]Sort Sheet'!E57=0,"",'[1]Sort Sheet'!O57) -> 0 | J61: =IF('[1]Sort Sheet'!P57=0,"",'[1]Sort Sheet'!P57) -> 224.8 | K61: =IF('[1]Sort Sheet'!E57=0,"",'[1]Sort Sheet'!Q57) -> 8 | L61: =IF('[1]Sort Sheet'!E57=0,"",'[1]Sort Sheet'!R57) -> 4 | M61: =IF('[1]Sort Sheet'!E57=0,"",'[1]Sort Sheet'!S57) -> 70 | N61: =IF('[1]Sort Sheet'!E57=0,"",'[1]Sort Sheet'!U57) -> 1b | O61: =IF('[1]Sort Sheet'!E57=0,"",'[1]Sort Sheet'!V57) -> 0 | P61: =IF('[1]Sort Sheet'!E57=0,"",'[1]Sort Sheet'!W57) -> 1 | Q61: =IF('[1]Sort Sheet'!E57=0,"",'[1]Sort Sheet'!X57) -> 5.44 | R61: =IF('[1]Sort Sheet'!E57=0,"",'[1]Sort Sheet'!M57) -> 55.06 | S61: =IF('[1]Sort Sheet'!E57=0,"",'[1]Sort Sheet'!Z57) -> 58.47 | T61: =IF('[1]Sort Sheet'!E57=0,"",'[1]Sort Sheet'!AA57) -> 10.75667656 | U61: =IF('[1]Sort Sheet'!E57=0,"",'[1]Sort Sheet'!AB57) -> 1413.863591 | V61: =IF('[1]Sort Sheet'!E57=0,"",'[1]Sort Sheet'!AC57) -> 6.289428783 | W61: 141.39 | X61: 1555.253591 | Y61: 6.918387858
A62: 54 | B62: =IF('[1]Sort Sheet'!D58=0,"",'[1]Sort Sheet'!D58) -> 191 | C62: =IF('[1]Sort Sheet'!E58=0,"",'[1]Sort Sheet'!E58) -> 317B | D62: =IF('[1]Sort Sheet'!F58=0,"",'[1]Sort Sheet'!F58) -> F | E62: =IF('[1]Sort Sheet'!E58=0,"",'[1]Sort Sheet'!AT58) -> Y | F62: =IF('[1]Sort Sheet'!E58=0,"",'[1]Sort Sheet'!H58) -> Y | G62: =IF('[1]Sort Sheet'!E58=0,"",'[1]Sort Sheet'!J58) -> Riverglen Pastoral Company | H62: =IF('[1]Sort Sheet'!E58=0,"",'[1]Sort Sheet'!L58) -> Charolais X | I62: =IF('[1]Sort Sheet'!E58=0,"",'[1]Sort Sheet'!O58) -> 0 | J62: =IF('[1]Sort Sheet'!P58=0,"",'[1]Sort Sheet'!P58) -> 273.8 | K62: =IF('[1]Sort Sheet'!E58=0,"",'[1]Sort Sheet'!Q58) -> 10 | L62: =IF('[1]Sort Sheet'!E58=0,"",'[1]Sort Sheet'!R58) -> 5 | M62: =IF('[1]Sort Sheet'!E58=0,"",'[1]Sort Sheet'!S58) -> 86 | N62: =IF('[1]Sort Sheet'!E58=0,"",'[1]Sort Sheet'!U58) -> 1b | O62: =IF('[1]Sort Sheet'!E58=0,"",'[1]Sort Sheet'!V58) -> 1 | P62: =IF('[1]Sort Sheet'!E58=0,"",'[1]Sort Sheet'!W58) -> 1 | Q62: =IF('[1]Sort Sheet'!E58=0,"",'[1]Sort Sheet'!X58) -> 5.59 | R62: =IF('[1]Sort Sheet'!E58=0,"",'[1]Sort Sheet'!M58) -> 61.98 | S62: =IF('[1]Sort Sheet'!E58=0,"",'[1]Sort Sheet'!Z58) -> 58.38 | T62: =IF('[1]Sort Sheet'!E58=0,"",'[1]Sort Sheet'!AA58) -> 10.75667656 | U62: =IF('[1]Sort Sheet'!E58=0,"",'[1]Sort Sheet'!AB58) -> 1719.394941 | V62: =IF('[1]Sort Sheet'!E58=0,"",'[1]Sort Sheet'!AC58) -> 6.279747774 | W62: 171.94 | X62: 1891.334941 | Y62: 6.9077244
A63: 55 | B63: =IF('[1]Sort Sheet'!D59=0,"",'[1]Sort Sheet'!D59) -> 210 | C63: =IF('[1]Sort Sheet'!E59=0,"",'[1]Sort Sheet'!E59) -> 323B | D63: =IF('[1]Sort Sheet'!F59=0,"",'[1]Sort Sheet'!F59) -> M | E63: =IF('[1]Sort Sheet'!E59=0,"",'[1]Sort Sheet'!AT59) -> Y | F63: =IF('[1]Sort Sheet'!E59=0,"",'[1]Sort Sheet'!H59) -> Y | G63: =IF('[1]Sort Sheet'!E59=0,"",'[1]Sort Sheet'!J59) -> Rich Enterprises P/L | H63: =IF('[1]Sort Sheet'!E59=0,"",'[1]Sort Sheet'!L59) -> Angus / Charolais X | I63: =IF('[1]Sort Sheet'!E59=0,"",'[1]Sort Sheet'!O59) -> 0 | J63: =IF('[1]Sort Sheet'!P59=0,"",'[1]Sort Sheet'!P59) -> 274.8 | K63: =IF('[1]Sort Sheet'!E59=0,"",'[1]Sort Sheet'!Q59) -> 8 | L63: =IF('[1]Sort Sheet'!E59=0,"",'[1]Sort Sheet'!R59) -> 6 | M63: =IF('[1]Sort Sheet'!E59=0,"",'[1]Sort Sheet'!S59) -> 73 | N63: =IF('[1]Sort Sheet'!E59=0,"",'[1]Sort Sheet'!U59) -> 2 | O63: =IF('[1]Sort Sheet'!E59=0,"",'[1]Sort Sheet'!V59) -> 2 | P63: =IF('[1]Sort Sheet'!E59=0,"",'[1]Sort Sheet'!W59) -> 1 | Q63: =IF('[1]Sort Sheet'!E59=0,"",'[1]Sort Sheet'!X59) -> 5.64 | R63: =IF('[1]Sort Sheet'!E59=0,"",'[1]Sort Sheet'!M59) -> 58.28 | S63: =IF('[1]Sort Sheet'!E59=0,"",'[1]Sort Sheet'!Z59) -> 58.35 | T63: =IF('[1]Sort Sheet'!E59=0,"",'[1]Sort Sheet'!AA59) -> 10.75667656 | U63: =IF('[1]Sort Sheet'!E59=0,"",'[1]Sort Sheet'!AB59) -> 1724.787908 | V63: =IF('[1]Sort Sheet'!E59=0,"",'[1]Sort Sheet'!AC59) -> 6.276520772 | W63: =IF(U63="","",ROUND(U63*0.1,2)) -> 172.48 | X63: =IF(W63="","",U63+W63) -> 1897.267908 | Y63: =X63/J63 -> 6.904177249
A64: 56 | B64: =IF('[1]Sort Sheet'!D60=0,"",'[1]Sort Sheet'!D60) -> 285 | C64: =IF('[1]Sort Sheet'!E60=0,"",'[1]Sort Sheet'!E60) -> 352B | D64: =IF('[1]Sort Sheet'!F60=0,"",'[1]Sort Sheet'!F60) -> M | E64: =IF('[1]Sort Sheet'!E60=0,"",'[1]Sort Sheet'!AT60) -> Y | F64: =IF('[1]Sort Sheet'!E60=0,"",'[1]Sort Sheet'!H60) -> Y | G64: =IF('[1]Sort Sheet'!E60=0,"",'[1]Sort Sheet'!J60) -> Bremer Feedlot | H64: =IF('[1]Sort Sheet'!E60=0,"",'[1]Sort Sheet'!L60) -> Angus | I64: =IF('[1]Sort Sheet'!E60=0,"",'[1]Sort Sheet'!O60) -> 0 | J64: =IF('[1]Sort Sheet'!P60=0,"",'[1]Sort Sheet'!P60) -> 276.4 | K64: =IF('[1]Sort Sheet'!E60=0,"",'[1]Sort Sheet'!Q60) -> 15 | L64: =IF('[1]Sort Sheet'!E60=0,"",'[1]Sort Sheet'!R60) -> 7 | M64: =IF('[1]Sort Sheet'!E60=0,"",'[1]Sort Sheet'!S60) -> 76 | N64: =IF('[1]Sort Sheet'!E60=0,"",'[1]Sort Sheet'!U60) -> 3 | O64: =IF('[1]Sort Sheet'!E60=0,"",'[1]Sort Sheet'!V60) -> 1 | P64: =IF('[1]Sort Sheet'!E60=0,"",'[1]Sort Sheet'!W60) -> 1 | Q64: =IF('[1]Sort Sheet'!E60=0,"",'[1]Sort Sheet'!X60) -> 5.61 | R64: =IF('[1]Sort Sheet'!E60=0,"",'[1]Sort Sheet'!M60) -> 55.88 | S64: =IF('[1]Sort Sheet'!E60=0,"",'[1]Sort Sheet'!Z60) -> 58.23 | T64: =IF('[1]Sort Sheet'!E60=0,"",'[1]Sort Sheet'!AA60) -> 10.75667656 | U64: =IF('[1]Sort Sheet'!E60=0,"",'[1]Sort Sheet'!AB60) -> 1731.262567 | V64: =IF('[1]Sort Sheet'!E60=0,"",'[1]Sort Sheet'!AC60) -> 6.26361276 | W64: =IF(U64="","",ROUND(U64*0.1,2)) -> 173.13 | X64: =IF(W64="","",U64+W64) -> 1904.392567 | Y64: =X64/J64 -> 6.889987579
A65: 57 | B65: =IF('[1]Sort Sheet'!D61=0,"",'[1]Sort Sheet'!D61) -> 200 | C65: =IF('[1]Sort Sheet'!E61=0,"",'[1]Sort Sheet'!E61) -> 319C | D65: =IF('[1]Sort Sheet'!F61=0,"",'[1]Sort Sheet'!F61) -> M | E65: =IF('[1]Sort Sheet'!E61=0,"",'[1]Sort Sheet'!AT61) -> Y | F65: =IF('[1]Sort Sheet'!E61=0,"",'[1]Sort Sheet'!H61) -> Y | G65: =IF('[1]Sort Sheet'!E61=0,"",'[1]Sort Sheet'!J61) -> Darr Creek Pastoral | H65: =IF('[1]Sort Sheet'!E61=0,"",'[1]Sort Sheet'!L61) -> Angus X Limousin | I65: =IF('[1]Sort Sheet'!E61=0,"",'[1]Sort Sheet'!O61) -> 0 | J65: =IF('[1]Sort Sheet'!P61=0,"",'[1]Sort Sheet'!P61) -> 248.8 | K65: =IF('[1]Sort Sheet'!E61=0,"",'[1]Sort Sheet'!Q61) -> 15 | L65: =IF('[1]Sort Sheet'!E61=0,"",'[1]Sort Sheet'!R61) -> 10 | M65: =IF('[1]Sort Sheet'!E61=0,"",'[1]Sort Sheet'!S61) -> 77 | N65: =IF('[1]Sort Sheet'!E61=0,"",'[1]Sort Sheet'!U61) -> 1b | O65: =IF('[1]Sort Sheet'!E61=0,"",'[1]Sort Sheet'!V61) -> 1 | P65: =IF('[1]Sort Sheet'!E61=0,"",'[1]Sort Sheet'!W61) -> 1 | Q65: =IF('[1]Sort Sheet'!E61=0,"",'[1]Sort Sheet'!X61) -> 5.44 | R65: =IF('[1]Sort Sheet'!E61=0,"",'[1]Sort Sheet'!M61) -> 56.13 | S65: =IF('[1]Sort Sheet'!E61=0,"",'[1]Sort Sheet'!Z61) -> 58.21 | T65: =IF('[1]Sort Sheet'!E61=0,"",'[1]Sort Sheet'!AA61) -> 10.75667656 | U65: =IF('[1]Sort Sheet'!E61=0,"",'[1]Sort Sheet'!AB61) -> 1557.851602 | V65: =IF('[1]Sort Sheet'!E61=0,"",'[1]Sort Sheet'!AC61) -> 6.261461424 | W65: 155.79 | X65: 1713.641602 | Y65: 6.887627019
A66: 58 | B66: =IF('[1]Sort Sheet'!D62=0,"",'[1]Sort Sheet'!D62) -> 240 | C66: =IF('[1]Sort Sheet'!E62=0,"",'[1]Sort Sheet'!E62) -> 331B | D66: =IF('[1]Sort Sheet'!F62=0,"",'[1]Sort Sheet'!F62) -> M | E66: =IF('[1]Sort Sheet'!E62=0,"",'[1]Sort Sheet'!AT62) -> Y | F66: =IF('[1]Sort Sheet'!E62=0,"",'[1]Sort Sheet'!H62) -> Y | G66: =IF('[1]Sort Sheet'!E62=0,"",'[1]Sort Sheet'!J62) -> G E & E E Kroll | H66: =IF('[1]Sort Sheet'!E62=0,"",'[1]Sort Sheet'!L62) -> Angus X | I66: =IF('[1]Sort Sheet'!E62=0,"",'[1]Sort Sheet'!O62) -> 0 | J66: =IF('[1]Sort Sheet'!P62=0,"",'[1]Sort Sheet'!P62) -> 294.8 | K66: =IF('[1]Sort Sheet'!E62=0,"",'[1]Sort Sheet'!Q62) -> 11 | L66: =IF('[1]Sort Sheet'!E62=0,"",'[1]Sort Sheet'!R62) -> 6 | M66: =IF('[1]Sort Sheet'!E62=0,"",'[1]Sort Sheet'!S62) -> 77 | N66: =IF('[1]Sort Sheet'!E62=0,"",'[1]Sort Sheet'!U62) -> 3 | O66: =IF('[1]Sort Sheet'!E62=0,"",'[1]Sort Sheet'!V62) -> 1 | P66: =IF('[1]Sort Sheet'!E62=0,"",'[1]Sort Sheet'!W62) -> 1 | Q66: =IF('[1]Sort Sheet'!E62=0,"",'[1]Sort Sheet'!X62) -> 5.68 | R66: =IF('[1]Sort Sheet'!E62=0,"",'[1]Sort Sheet'!M62) -> 56.42 | S66: =IF('[1]Sort Sheet'!E62=0,"",'[1]Sort Sheet'!Z62) -> 58.08 | T66: =IF('[1]Sort Sheet'!E62=0,"",'[1]Sort Sheet'!AA62) -> 10.75667656 | U66: =IF('[1]Sort Sheet'!E62=0,"",'[1]Sort Sheet'!AB62) -> 1841.756439 | V66: =IF('[1]Sort Sheet'!E62=0,"",'[1]Sort Sheet'!AC62) -> 6.247477745 | W66: 184.18 | X66: 2025.936439 | Y66: 6.872240296
A67: 59 | B67: =IF('[1]Sort Sheet'!D63=0,"",'[1]Sort Sheet'!D63) -> 255 | C67: =IF('[1]Sort Sheet'!E63=0,"",'[1]Sort Sheet'!E63) -> 339A | D67: =IF('[1]Sort Sheet'!F63=0,"",'[1]Sort Sheet'!F63) -> F | E67: =IF('[1]Sort Sheet'!E63=0,"",'[1]Sort Sheet'!AT63) -> Y | F67: =IF('[1]Sort Sheet'!E63=0,"",'[1]Sort Sheet'!H63) -> Y | G67: =IF('[1]Sort Sheet'!E63=0,"",'[1]Sort Sheet'!J63) -> RB & VA Budd & Willoise Grazing Co Pty Ltd | H67: =IF('[1]Sort Sheet'!E63=0,"",'[1]Sort Sheet'!L63) -> Charolais X | I67: =IF('[1]Sort Sheet'!E63=0,"",'[1]Sort Sheet'!O63) -> 0 | J67: =IF('[1]Sort Sheet'!P63=0,"",'[1]Sort Sheet'!P63) -> 229.4 | K67: =IF('[1]Sort Sheet'!E63=0,"",'[1]Sort Sheet'!Q63) -> 12 | L67: =IF('[1]Sort Sheet'!E63=0,"",'[1]Sort Sheet'!R63) -> 5 | M67: =IF('[1]Sort Sheet'!E63=0,"",'[1]Sort Sheet'!S63) -> 71 | N67: =IF('[1]Sort Sheet'!E63=0,"",'[1]Sort Sheet'!U63) -> 2 | O67: =IF('[1]Sort Sheet'!E63=0,"",'[1]Sort Sheet'!V63) -> 1 | P67: =IF('[1]Sort Sheet'!E63=0,"",'[1]Sort Sheet'!W63) -> 1 | Q67: =IF('[1]Sort Sheet'!E63=0,"",'[1]Sort Sheet'!X63) -> 5.54 | R67: =IF('[1]Sort Sheet'!E63=0,"",'[1]Sort Sheet'!M63) -> 55.63 | S67: =IF('[1]Sort Sheet'!E63=0,"",'[1]Sort Sheet'!Z63) -> 57.98 | T67: =IF('[1]Sort Sheet'!E63=0,"",'[1]Sort Sheet'!AA63) -> 10.75667656 | U67: =IF('[1]Sort Sheet'!E63=0,"",'[1]Sort Sheet'!AB63) -> 1430.703813 | V67: =IF('[1]Sort Sheet'!E63=0,"",'[1]Sort Sheet'!AC63) -> 6.236721068 | W67: 143.07 | X67: 1573.773813 | Y67: 6.860391513
A68: 60 | B68: =IF('[1]Sort Sheet'!D64=0,"",'[1]Sort Sheet'!D64) -> 215 | C68: =IF('[1]Sort Sheet'!E64=0,"",'[1]Sort Sheet'!E64) -> 327A | D68: =IF('[1]Sort Sheet'!F64=0,"",'[1]Sort Sheet'!F64) -> F | E68: =IF('[1]Sort Sheet'!E64=0,"",'[1]Sort Sheet'!AT64) -> Y | F68: =IF('[1]Sort Sheet'!E64=0,"",'[1]Sort Sheet'!H64) -> Y | G68: =IF('[1]Sort Sheet'!E64=0,"",'[1]Sort Sheet'!J64) -> D J & K L Hart | H68: =IF('[1]Sort Sheet'!E64=0,"",'[1]Sort Sheet'!L64) -> Angus / Charolais X | I68: =IF('[1]Sort Sheet'!E64=0,"",'[1]Sort Sheet'!O64) -> 0 | J68: =IF('[1]Sort Sheet'!P64=0,"",'[1]Sort Sheet'!P64) -> 270.8 | K68: =IF('[1]Sort Sheet'!E64=0,"",'[1]Sort Sheet'!Q64) -> 10 | L68: =IF('[1]Sort Sheet'!E64=0,"",'[1]Sort Sheet'!R64) -> 5 | M68: =IF('[1]Sort Sheet'!E64=0,"",'[1]Sort Sheet'!S64) -> 83 | N68: =IF('[1]Sort Sheet'!E64=0,"",'[1]Sort Sheet'!U64) -> 2 | O68: =IF('[1]Sort Sheet'!E64=0,"",'[1]Sort Sheet'!V64) -> 1 | P68: =IF('[1]Sort Sheet'!E64=0,"",'[1]Sort Sheet'!W64) -> 1 | Q68: =IF('[1]Sort Sheet'!E64=0,"",'[1]Sort Sheet'!X64) -> 5.63 | R68: =IF('[1]Sort Sheet'!E64=0,"",'[1]Sort Sheet'!M64) -> 54.62 | S68: =IF('[1]Sort Sheet'!E64=0,"",'[1]Sort Sheet'!Z64) -> 57.97 | T68: =IF('[1]Sort Sheet'!E64=0,"",'[1]Sort Sheet'!AA64) -> 10.75667656 | U68: =IF('[1]Sort Sheet'!E64=0,"",'[1]Sort Sheet'!AB64) -> 1688.612774 | V68: =IF('[1]Sort Sheet'!E64=0,"",'[1]Sort Sheet'!AC64) -> 6.235645401 | W68: 168.86 | X68: 1857.472774 | Y68: 6.859205223
A69: 61 | B69: =IF('[1]Sort Sheet'!D65=0,"",'[1]Sort Sheet'!D65) -> 283 | C69: =IF('[1]Sort Sheet'!E65=0,"",'[1]Sort Sheet'!E65) -> 352C | D69: =IF('[1]Sort Sheet'!F65=0,"",'[1]Sort Sheet'!F65) -> M | E69: =IF('[1]Sort Sheet'!E65=0,"",'[1]Sort Sheet'!AT65) -> Y | F69: =IF('[1]Sort Sheet'!E65=0,"",'[1]Sort Sheet'!H65) -> Y | G69: =IF('[1]Sort Sheet'!E65=0,"",'[1]Sort Sheet'!J65) -> Bremer Feedlot | H69: =IF('[1]Sort Sheet'!E65=0,"",'[1]Sort Sheet'!L65) -> Angus | I69: =IF('[1]Sort Sheet'!E65=0,"",'[1]Sort Sheet'!O65) -> 0 | J69: =IF('[1]Sort Sheet'!P65=0,"",'[1]Sort Sheet'!P65) -> 299.8 | K69: =IF('[1]Sort Sheet'!E65=0,"",'[1]Sort Sheet'!Q65) -> 10 | L69: =IF('[1]Sort Sheet'!E65=0,"",'[1]Sort Sheet'!R65) -> 7 | M69: =IF('[1]Sort Sheet'!E65=0,"",'[1]Sort Sheet'!S65) -> 81 | N69: =IF('[1]Sort Sheet'!E65=0,"",'[1]Sort Sheet'!U65) -> 2 | O69: =IF('[1]Sort Sheet'!E65=0,"",'[1]Sort Sheet'!V65) -> 1 | P69: =IF('[1]Sort Sheet'!E65=0,"",'[1]Sort Sheet'!W65) -> 1 | Q69: =IF('[1]Sort Sheet'!E65=0,"",'[1]Sort Sheet'!X65) -> 5.5 | R69: =IF('[1]Sort Sheet'!E65=0,"",'[1]Sort Sheet'!M65) -> 56.78 | S69: =IF('[1]Sort Sheet'!E65=0,"",'[1]Sort Sheet'!Z65) -> 57.95 | T69: =IF('[1]Sort Sheet'!E65=0,"",'[1]Sort Sheet'!AA65) -> 10.75667656 | U69: =IF('[1]Sort Sheet'!E65=0,"",'[1]Sort Sheet'!AB65) -> 1868.801521 | V69: =IF('[1]Sort Sheet'!E65=0,"",'[1]Sort Sheet'!AC65) -> 6.233494065 | W69: 186.88 | X69: 2055.681521 | Y69: 6.856842965
A70: 62 | B70: =IF('[1]Sort Sheet'!D66=0,"",'[1]Sort Sheet'!D66) -> 195 | C70: =IF('[1]Sort Sheet'!E66=0,"",'[1]Sort Sheet'!E66) -> 318C | D70: =IF('[1]Sort Sheet'!F66=0,"",'[1]Sort Sheet'!F66) -> F | E70: =IF('[1]Sort Sheet'!E66=0,"",'[1]Sort Sheet'!AT66) -> Y | F70: =IF('[1]Sort Sheet'!E66=0,"",'[1]Sort Sheet'!H66) -> Y | G70: =IF('[1]Sort Sheet'!E66=0,"",'[1]Sort Sheet'!J66) -> Riverglen Pastoral Company | H70: =IF('[1]Sort Sheet'!E66=0,"",'[1]Sort Sheet'!L66) -> Charolais X | I70: =IF('[1]Sort Sheet'!E66=0,"",'[1]Sort Sheet'!O66) -> 0 | J70: =IF('[1]Sort Sheet'!P66=0,"",'[1]Sort Sheet'!P66) -> 274 | K70: =IF('[1]Sort Sheet'!E66=0,"",'[1]Sort Sheet'!Q66) -> 6 | L70: =IF('[1]Sort Sheet'!E66=0,"",'[1]Sort Sheet'!R66) -> 5 | M70: =IF('[1]Sort Sheet'!E66=0,"",'[1]Sort Sheet'!S66) -> 85 | N70: =IF('[1]Sort Sheet'!E66=0,"",'[1]Sort Sheet'!U66) -> 3 | O70: =IF('[1]Sort Sheet'!E66=0,"",'[1]Sort Sheet'!V66) -> 0 | P70: =IF('[1]Sort Sheet'!E66=0,"",'[1]Sort Sheet'!W66) -> 1 | Q70: =IF('[1]Sort Sheet'!E66=0,"",'[1]Sort Sheet'!X66) -> 5.61 | R70: =IF('[1]Sort Sheet'!E66=0,"",'[1]Sort Sheet'!M66) -> 59.67 | S70: =IF('[1]Sort Sheet'!E66=0,"",'[1]Sort Sheet'!Z66) -> 57.95 | T70: =IF('[1]Sort Sheet'!E66=0,"",'[1]Sort Sheet'!AA66) -> 10.75667656 | U70: =IF('[1]Sort Sheet'!E66=0,"",'[1]Sort Sheet'!AB66) -> 1707.977374 | V70: =IF('[1]Sort Sheet'!E66=0,"",'[1]Sort Sheet'!AC66) -> 6.233494065 | W70: 170.8 | X70: 1878.777374 | Y70: 6.85685173
A71: 63 | B71: =IF('[1]Sort Sheet'!D67=0,"",'[1]Sort Sheet'!D67) -> 193 | C71: =IF('[1]Sort Sheet'!E67=0,"",'[1]Sort Sheet'!E67) -> 318B | D71: =IF('[1]Sort Sheet'!F67=0,"",'[1]Sort Sheet'!F67) -> F | E71: =IF('[1]Sort Sheet'!E67=0,"",'[1]Sort Sheet'!AT67) -> Y | F71: =IF('[1]Sort Sheet'!E67=0,"",'[1]Sort Sheet'!H67) -> Y | G71: =IF('[1]Sort Sheet'!E67=0,"",'[1]Sort Sheet'!J67) -> Riverglen Pastoral Company | H71: =IF('[1]Sort Sheet'!E67=0,"",'[1]Sort Sheet'!L67) -> Charolais X | I71: =IF('[1]Sort Sheet'!E67=0,"",'[1]Sort Sheet'!O67) -> 0 | J71: =IF('[1]Sort Sheet'!P67=0,"",'[1]Sort Sheet'!P67) -> 305.2 | K71: =IF('[1]Sort Sheet'!E67=0,"",'[1]Sort Sheet'!Q67) -> 6 | L71: =IF('[1]Sort Sheet'!E67=0,"",'[1]Sort Sheet'!R67) -> 6 | M71: =IF('[1]Sort Sheet'!E67=0,"",'[1]Sort Sheet'!S67) -> 95 | N71: =IF('[1]Sort Sheet'!E67=0,"",'[1]Sort Sheet'!U67) -> 1b | O71: =IF('[1]Sort Sheet'!E67=0,"",'[1]Sort Sheet'!V67) -> 0 | P71: =IF('[1]Sort Sheet'!E67=0,"",'[1]Sort Sheet'!W67) -> 1 | Q71: =IF('[1]Sort Sheet'!E67=0,"",'[1]Sort Sheet'!X67) -> 5.4 | R71: =IF('[1]Sort Sheet'!E67=0,"",'[1]Sort Sheet'!M67) -> 60.1 | S71: =IF('[1]Sort Sheet'!E67=0,"",'[1]Sort Sheet'!Z67) -> 57.85 | T71: =IF('[1]Sort Sheet'!E67=0,"",'[1]Sort Sheet'!AA67) -> 10.75667656 | U71: =IF('[1]Sort Sheet'!E67=0,"",'[1]Sort Sheet'!AB67) -> 1899.179451 | V71: =IF('[1]Sort Sheet'!E67=0,"",'[1]Sort Sheet'!AC67) -> 6.222737389 | W71: 189.92 | X71: 2089.099451 | Y71: 6.845017861
A72: 64 | B72: =IF('[1]Sort Sheet'!D68=0,"",'[1]Sort Sheet'!D68) -> 252 | C72: =IF('[1]Sort Sheet'!E68=0,"",'[1]Sort Sheet'!E68) -> 336B | D72: =IF('[1]Sort Sheet'!F68=0,"",'[1]Sort Sheet'!F68) -> F | E72: =IF('[1]Sort Sheet'!E68=0,"",'[1]Sort Sheet'!AT68) -> Y | F72: =IF('[1]Sort Sheet'!E68=0,"",'[1]Sort Sheet'!H68) -> Y | G72: =IF('[1]Sort Sheet'!E68=0,"",'[1]Sort Sheet'!J68) -> Ben & Megan Drynan | H72: =IF('[1]Sort Sheet'!E68=0,"",'[1]Sort Sheet'!L68) -> Charolais | I72: =IF('[1]Sort Sheet'!E68=0,"",'[1]Sort Sheet'!O68) -> 0 | J72: =IF('[1]Sort Sheet'!P68=0,"",'[1]Sort Sheet'!P68) -> 262.6 | K72: =IF('[1]Sort Sheet'!E68=0,"",'[1]Sort Sheet'!Q68) -> 12 | L72: =IF('[1]Sort Sheet'!E68=0,"",'[1]Sort Sheet'!R68) -> 6 | M72: =IF('[1]Sort Sheet'!E68=0,"",'[1]Sort Sheet'!S68) -> 82 | N72: =IF('[1]Sort Sheet'!E68=0,"",'[1]Sort Sheet'!U68) -> 1b | O72: =IF('[1]Sort Sheet'!E68=0,"",'[1]Sort Sheet'!V68) -> 1 | P72: =IF('[1]Sort Sheet'!E68=0,"",'[1]Sort Sheet'!W68) -> 1 | Q72: =IF('[1]Sort Sheet'!E68=0,"",'[1]Sort Sheet'!X68) -> 5.54 | R72: =IF('[1]Sort Sheet'!E68=0,"",'[1]Sort Sheet'!M68) -> 56.83 | S72: =IF('[1]Sort Sheet'!E68=0,"",'[1]Sort Sheet'!Z68) -> 57.78 | T72: =IF('[1]Sort Sheet'!E68=0,"",'[1]Sort Sheet'!AA68) -> 10.75667656 | U72: =IF('[1]Sort Sheet'!E68=0,"",'[1]Sort Sheet'!AB68) -> 1632.113546 | V72: =IF('[1]Sort Sheet'!E68=0,"",'[1]Sort Sheet'!AC68) -> 6.215207715 | W72: 163.21 | X72: 1795.323546 | Y72: 6.836723328
A73: 65 | B73: =IF('[1]Sort Sheet'!D69=0,"",'[1]Sort Sheet'!D69) -> 286 | C73: =IF('[1]Sort Sheet'!E69=0,"",'[1]Sort Sheet'!E69) -> 348C | D73: =IF('[1]Sort Sheet'!F69=0,"",'[1]Sort Sheet'!F69) -> M | E73: =IF('[1]Sort Sheet'!E69=0,"",'[1]Sort Sheet'!AT69) -> Y | F73: =IF('[1]Sort Sheet'!E69=0,"",'[1]Sort Sheet'!H69) -> Y | G73: =IF('[1]Sort Sheet'!E69=0,"",'[1]Sort Sheet'!J69) -> Bremer Feedlot | H73: =IF('[1]Sort Sheet'!E69=0,"",'[1]Sort Sheet'!L69) -> Angus | I73: =IF('[1]Sort Sheet'!E69=0,"",'[1]Sort Sheet'!O69) -> 0 | J73: =IF('[1]Sort Sheet'!P69=0,"",'[1]Sort Sheet'!P69) -> 285.2 | K73: =IF('[1]Sort Sheet'!E69=0,"",'[1]Sort Sheet'!Q69) -> 21 | L73: =IF('[1]Sort Sheet'!E69=0,"",'[1]Sort Sheet'!R69) -> 7 | M73: =IF('[1]Sort Sheet'!E69=0,"",'[1]Sort Sheet'!S69) -> 76 | N73: =IF('[1]Sort Sheet'!E69=0,"",'[1]Sort Sheet'!U69) -> 1b | O73: =IF('[1]Sort Sheet'!E69=0,"",'[1]Sort Sheet'!V69) -> 1 | P73: =IF('[1]Sort Sheet'!E69=0,"",'[1]Sort Sheet'!W69) -> 1 | Q73: =IF('[1]Sort Sheet'!E69=0,"",'[1]Sort Sheet'!X69) -> 5.44 | R73: =IF('[1]Sort Sheet'!E69=0,"",'[1]Sort Sheet'!M69) -> 55.54 | S73: =IF('[1]Sort Sheet'!E69=0,"",'[1]Sort Sheet'!Z69) -> 57.74 | T73: =IF('[1]Sort Sheet'!E69=0,"",'[1]Sort Sheet'!AA69) -> 10.75667656 | U73: =IF('[1]Sort Sheet'!E69=0,"",'[1]Sort Sheet'!AB69) -> 1771.350119 | V73: =IF('[1]Sort Sheet'!E69=0,"",'[1]Sort Sheet'!AC69) -> 6.210905045 | W73: 177.14 | X73: 1948.490119 | Y73: 6.832013039
A74: 66 | B74: =IF('[1]Sort Sheet'!D70=0,"",'[1]Sort Sheet'!D70) -> 229 | C74: =IF('[1]Sort Sheet'!E70=0,"",'[1]Sort Sheet'!E70) -> 329C | D74: =IF('[1]Sort Sheet'!F70=0,"",'[1]Sort Sheet'!F70) -> F | E74: =IF('[1]Sort Sheet'!E70=0,"",'[1]Sort Sheet'!AT70) -> Y | F74: =IF('[1]Sort Sheet'!E70=0,"",'[1]Sort Sheet'!H70) -> Y | G74: =IF('[1]Sort Sheet'!E70=0,"",'[1]Sort Sheet'!J70) -> Juandah Grazing | H74: =IF('[1]Sort Sheet'!E70=0,"",'[1]Sort Sheet'!L70) -> Charolais X Angus | I74: =IF('[1]Sort Sheet'!E70=0,"",'[1]Sort Sheet'!O70) -> 0 | J74: =IF('[1]Sort Sheet'!P70=0,"",'[1]Sort Sheet'!P70) -> 286 | K74: =IF('[1]Sort Sheet'!E70=0,"",'[1]Sort Sheet'!Q70) -> 11 | L74: =IF('[1]Sort Sheet'!E70=0,"",'[1]Sort Sheet'!R70) -> 7 | M74: =IF('[1]Sort Sheet'!E70=0,"",'[1]Sort Sheet'!S70) -> 91 | N74: =IF('[1]Sort Sheet'!E70=0,"",'[1]Sort Sheet'!U70) -> 2 | O74: =IF('[1]Sort Sheet'!E70=0,"",'[1]Sort Sheet'!V70) -> 1 | P74: =IF('[1]Sort Sheet'!E70=0,"",'[1]Sort Sheet'!W70) -> 1 | Q74: =IF('[1]Sort Sheet'!E70=0,"",'[1]Sort Sheet'!X70) -> 5.6 | R74: =IF('[1]Sort Sheet'!E70=0,"",'[1]Sort Sheet'!M70) -> 56.57 | S74: =IF('[1]Sort Sheet'!E70=0,"",'[1]Sort Sheet'!Z70) -> 57.67 | T74: =IF('[1]Sort Sheet'!E70=0,"",'[1]Sort Sheet'!AA70) -> 10.75667656 | U74: =IF('[1]Sort Sheet'!E70=0,"",'[1]Sort Sheet'!AB70) -> 1774.165356 | V74: =IF('[1]Sort Sheet'!E70=0,"",'[1]Sort Sheet'!AC70) -> 6.203375371 | W74: 177.42 | X74: 1951.585356 | Y74: 6.823725021
A75: 67 | B75: =IF('[1]Sort Sheet'!D71=0,"",'[1]Sort Sheet'!D71) -> 280 | C75: =IF('[1]Sort Sheet'!E71=0,"",'[1]Sort Sheet'!E71) -> 352A | D75: =IF('[1]Sort Sheet'!F71=0,"",'[1]Sort Sheet'!F71) -> M | E75: =IF('[1]Sort Sheet'!E71=0,"",'[1]Sort Sheet'!AT71) -> Y | F75: =IF('[1]Sort Sheet'!E71=0,"",'[1]Sort Sheet'!H71) -> Y | G75: =IF('[1]Sort Sheet'!E71=0,"",'[1]Sort Sheet'!J71) -> Bremer Feedlot | H75: =IF('[1]Sort Sheet'!E71=0,"",'[1]Sort Sheet'!L71) -> Angus | I75: =IF('[1]Sort Sheet'!E71=0,"",'[1]Sort Sheet'!O71) -> 0 | J75: =IF('[1]Sort Sheet'!P71=0,"",'[1]Sort Sheet'!P71) -> 274.6 | K75: =IF('[1]Sort Sheet'!E71=0,"",'[1]Sort Sheet'!Q71) -> 14 | L75: =IF('[1]Sort Sheet'!E71=0,"",'[1]Sort Sheet'!R71) -> 10 | M75: =IF('[1]Sort Sheet'!E71=0,"",'[1]Sort Sheet'!S71) -> 80 | N75: =IF('[1]Sort Sheet'!E71=0,"",'[1]Sort Sheet'!U71) -> 1b | O75: =IF('[1]Sort Sheet'!E71=0,"",'[1]Sort Sheet'!V71) -> 0 | P75: =IF('[1]Sort Sheet'!E71=0,"",'[1]Sort Sheet'!W71) -> 1 | Q75: =IF('[1]Sort Sheet'!E71=0,"",'[1]Sort Sheet'!X71) -> 5.43 | R75: =IF('[1]Sort Sheet'!E71=0,"",'[1]Sort Sheet'!M71) -> 55.62 | S75: =IF('[1]Sort Sheet'!E71=0,"",'[1]Sort Sheet'!Z71) -> 57.54 | T75: =IF('[1]Sort Sheet'!E71=0,"",'[1]Sort Sheet'!AA71) -> 10.75667656 | U75: =IF('[1]Sort Sheet'!E71=0,"",'[1]Sort Sheet'!AB71) -> 1699.606958 | V75: =IF('[1]Sort Sheet'!E71=0,"",'[1]Sort Sheet'!AC71) -> 6.189391691 | W75: 169.96 | X75: 1869.566958 | Y75: 6.808328327
A76: 68 | B76: =IF('[1]Sort Sheet'!D72=0,"",'[1]Sort Sheet'!D72) -> 228 | C76: =IF('[1]Sort Sheet'!E72=0,"",'[1]Sort Sheet'!E72) -> 330B | D76: =IF('[1]Sort Sheet'!F72=0,"",'[1]Sort Sheet'!F72) -> F | E76: =IF('[1]Sort Sheet'!E72=0,"",'[1]Sort Sheet'!AT72) -> Y | F76: =IF('[1]Sort Sheet'!E72=0,"",'[1]Sort Sheet'!H72) -> Y | G76: =IF('[1]Sort Sheet'!E72=0,"",'[1]Sort Sheet'!J72) -> Juandah Grazing | H76: =IF('[1]Sort Sheet'!E72=0,"",'[1]Sort Sheet'!L72) -> Charolais X Droughtmaster | I76: =IF('[1]Sort Sheet'!E72=0,"",'[1]Sort Sheet'!O72) -> 0 | J76: =IF('[1]Sort Sheet'!P72=0,"",'[1]Sort Sheet'!P72) -> 269.4 | K76: =IF('[1]Sort Sheet'!E72=0,"",'[1]Sort Sheet'!Q72) -> 12 | L76: =IF('[1]Sort Sheet'!E72=0,"",'[1]Sort Sheet'!R72) -> 5 | M76: =IF('[1]Sort Sheet'!E72=0,"",'[1]Sort Sheet'!S72) -> 79 | N76: =IF('[1]Sort Sheet'!E72=0,"",'[1]Sort Sheet'!U72) -> 2 | O76: =IF('[1]Sort Sheet'!E72=0,"",'[1]Sort Sheet'!V72) -> 1 | P76: =IF('[1]Sort Sheet'!E72=0,"",'[1]Sort Sheet'!W72) -> 1 | Q76: =IF('[1]Sort Sheet'!E72=0,"",'[1]Sort Sheet'!X72) -> 5.61 | R76: =IF('[1]Sort Sheet'!E72=0,"",'[1]Sort Sheet'!M72) -> 55.68 | S76: =IF('[1]Sort Sheet'!E72=0,"",'[1]Sort Sheet'!Z72) -> 57.43 | T76: =IF('[1]Sort Sheet'!E72=0,"",'[1]Sort Sheet'!AA72) -> 10.75667656 | U76: =IF('[1]Sort Sheet'!E72=0,"",'[1]Sort Sheet'!AB72) -> 1664.234488 | V76: =IF('[1]Sort Sheet'!E72=0,"",'[1]Sort Sheet'!AC72) -> 6.177559347 | W76: 166.42 | X76: 1830.654488 | Y76: 6.79530248
A77: 69 | B77: =IF('[1]Sort Sheet'!D73=0,"",'[1]Sort Sheet'!D73) -> 197 | C77: =IF('[1]Sort Sheet'!E73=0,"",'[1]Sort Sheet'!E73) -> 317A | D77: =IF('[1]Sort Sheet'!F73=0,"",'[1]Sort Sheet'!F73) -> F | E77: =IF('[1]Sort Sheet'!E73=0,"",'[1]Sort Sheet'!AT73) -> Y | F77: =IF('[1]Sort Sheet'!E73=0,"",'[1]Sort Sheet'!H73) -> Y | G77: =IF('[1]Sort Sheet'!E73=0,"",'[1]Sort Sheet'!J73) -> Riverglen Pastoral Company | H77: =IF('[1]Sort Sheet'!E73=0,"",'[1]Sort Sheet'!L73) -> Charolais X | I77: =IF('[1]Sort Sheet'!E73=0,"",'[1]Sort Sheet'!O73) -> 0 | J77: =IF('[1]Sort Sheet'!P73=0,"",'[1]Sort Sheet'!P73) -> 290.6 | K77: =IF('[1]Sort Sheet'!E73=0,"",'[1]Sort Sheet'!Q73) -> 18 | L77: =IF('[1]Sort Sheet'!E73=0,"",'[1]Sort Sheet'!R73) -> 4 | M77: =IF('[1]Sort Sheet'!E73=0,"",'[1]Sort Sheet'!S73) -> 83 | N77: =IF('[1]Sort Sheet'!E73=0,"",'[1]Sort Sheet'!U73) -> 2 | O77: =IF('[1]Sort Sheet'!E73=0,"",'[1]Sort Sheet'!V73) -> 1 | P77: =IF('[1]Sort Sheet'!E73=0,"",'[1]Sort Sheet'!W73) -> 1 | Q77: =IF('[1]Sort Sheet'!E73=0,"",'[1]Sort Sheet'!X73) -> 5.62 | R77: =IF('[1]Sort Sheet'!E73=0,"",'[1]Sort Sheet'!M73) -> 58.18 | S77: =IF('[1]Sort Sheet'!E73=0,"",'[1]Sort Sheet'!Z73) -> 57.41 | T77: =IF('[1]Sort Sheet'!E73=0,"",'[1]Sort Sheet'!AA73) -> 10.75667656 | U77: =IF('[1]Sort Sheet'!E73=0,"",'[1]Sort Sheet'!AB73) -> 1794.573568 | V77: =IF('[1]Sort Sheet'!E73=0,"",'[1]Sort Sheet'!AC73) -> 6.175408012 | W77: 179.46 | X77: 1974.033568 | Y77: 6.792957909
A78: 70 | B78: =IF('[1]Sort Sheet'!D74=0,"",'[1]Sort Sheet'!D74) -> 242 | C78: =IF('[1]Sort Sheet'!E74=0,"",'[1]Sort Sheet'!E74) -> 335B | D78: =IF('[1]Sort Sheet'!F74=0,"",'[1]Sort Sheet'!F74) -> F | E78: =IF('[1]Sort Sheet'!E74=0,"",'[1]Sort Sheet'!AT74) -> Y | F78: =IF('[1]Sort Sheet'!E74=0,"",'[1]Sort Sheet'!H74) -> Y | G78: =IF('[1]Sort Sheet'!E74=0,"",'[1]Sort Sheet'!J74) -> Midge Thompson | H78: =IF('[1]Sort Sheet'!E74=0,"",'[1]Sort Sheet'!L74) -> Limousin X | I78: =IF('[1]Sort Sheet'!E74=0,"",'[1]Sort Sheet'!O74) -> 0 | J78: =IF('[1]Sort Sheet'!P74=0,"",'[1]Sort Sheet'!P74) -> 278.6 | K78: =IF('[1]Sort Sheet'!E74=0,"",'[1]Sort Sheet'!Q74) -> 8 | L78: =IF('[1]Sort Sheet'!E74=0,"",'[1]Sort Sheet'!R74) -> 7 | M78: =IF('[1]Sort Sheet'!E74=0,"",'[1]Sort Sheet'!S74) -> 87 | N78: =IF('[1]Sort Sheet'!E74=0,"",'[1]Sort Sheet'!U74) -> 2 | O78: =IF('[1]Sort Sheet'!E74=0,"",'[1]Sort Sheet'!V74) -> 1 | P78: =IF('[1]Sort Sheet'!E74=0,"",'[1]Sort Sheet'!W74) -> 2 | Q78: =IF('[1]Sort Sheet'!E74=0,"",'[1]Sort Sheet'!X74) -> 5.58 | R78: =IF('[1]Sort Sheet'!E74=0,"",'[1]Sort Sheet'!M74) -> 61.01 | S78: =IF('[1]Sort Sheet'!E74=0,"",'[1]Sort Sheet'!Z74) -> 57.4 | T78: =IF('[1]Sort Sheet'!E74=0,"",'[1]Sort Sheet'!AA74) -> 10.75667656 | U78: =IF('[1]Sort Sheet'!E74=0,"",'[1]Sort Sheet'!AB74) -> 1720.168991 | V78: =IF('[1]Sort Sheet'!E74=0,"",'[1]Sort Sheet'!AC74) -> 6.174332344 | W78: 172.02 | X78: 1892.188991 | Y78: 6.791776709
A79: 71 | B79: =IF('[1]Sort Sheet'!D75=0,"",'[1]Sort Sheet'!D75) -> 198 | C79: =IF('[1]Sort Sheet'!E75=0,"",'[1]Sort Sheet'!E75) -> 318A | D79: =IF('[1]Sort Sheet'!F75=0,"",'[1]Sort Sheet'!F75) -> F | E79: =IF('[1]Sort Sheet'!E75=0,"",'[1]Sort Sheet'!AT75) -> Y | F79: =IF('[1]Sort Sheet'!E75=0,"",'[1]Sort Sheet'!H75) -> Y | G79: =IF('[1]Sort Sheet'!E75=0,"",'[1]Sort Sheet'!J75) -> Riverglen Pastoral Company | H79: =IF('[1]Sort Sheet'!E75=0,"",'[1]Sort Sheet'!L75) -> Charolais X | I79: =IF('[1]Sort Sheet'!E75=0,"",'[1]Sort Sheet'!O75) -> 0 | J79: =IF('[1]Sort Sheet'!P75=0,"",'[1]Sort Sheet'!P75) -> 286.4 | K79: =IF('[1]Sort Sheet'!E75=0,"",'[1]Sort Sheet'!Q75) -> 10 | L79: =IF('[1]Sort Sheet'!E75=0,"",'[1]Sort Sheet'!R75) -> 4 | M79: =IF('[1]Sort Sheet'!E75=0,"",'[1]Sort Sheet'!S75) -> 80 | N79: =IF('[1]Sort Sheet'!E75=0,"",'[1]Sort Sheet'!U75) -> 1b | O79: =IF('[1]Sort Sheet'!E75=0,"",'[1]Sort Sheet'!V75) -> 0 | P79: =IF('[1]Sort Sheet'!E75=0,"",'[1]Sort Sheet'!W75) -> 1 | Q79: =IF('[1]Sort Sheet'!E75=0,"",'[1]Sort Sheet'!X75) -> 5.47 | R79: =IF('[1]Sort Sheet'!E75=0,"",'[1]Sort Sheet'!M75) -> 60.23 | S79: =IF('[1]Sort Sheet'!E75=0,"",'[1]Sort Sheet'!Z75) -> 57.35 | T79: =IF('[1]Sort Sheet'!E75=0,"",'[1]Sort Sheet'!AA75) -> 10.75667656 | U79: =IF('[1]Sort Sheet'!E75=0,"",'[1]Sort Sheet'!AB75) -> 1766.788427 | V79: =IF('[1]Sort Sheet'!E75=0,"",'[1]Sort Sheet'!AC75) -> 6.168954006 | W79: 176.68 | X79: 1943.468427 | Y79: 6.785853447
A80: 72 | B80: =IF('[1]Sort Sheet'!D76=0,"",'[1]Sort Sheet'!D76) -> 288 | C80: =IF('[1]Sort Sheet'!E76=0,"",'[1]Sort Sheet'!E76) -> 347C | D80: =IF('[1]Sort Sheet'!F76=0,"",'[1]Sort Sheet'!F76) -> M | E80: =IF('[1]Sort Sheet'!E76=0,"",'[1]Sort Sheet'!AT76) -> Y | F80: =IF('[1]Sort Sheet'!E76=0,"",'[1]Sort Sheet'!H76) -> Y | G80: =IF('[1]Sort Sheet'!E76=0,"",'[1]Sort Sheet'!J76) -> Bremer Feedlot | H80: =IF('[1]Sort Sheet'!E76=0,"",'[1]Sort Sheet'!L76) -> Angus | I80: =IF('[1]Sort Sheet'!E76=0,"",'[1]Sort Sheet'!O76) -> 0 | J80: =IF('[1]Sort Sheet'!P76=0,"",'[1]Sort Sheet'!P76) -> 265 | K80: =IF('[1]Sort Sheet'!E76=0,"",'[1]Sort Sheet'!Q76) -> 11 | L80: =IF('[1]Sort Sheet'!E76=0,"",'[1]Sort Sheet'!R76) -> 8 | M80: =IF('[1]Sort Sheet'!E76=0,"",'[1]Sort Sheet'!S76) -> 69 | N80: =IF('[1]Sort Sheet'!E76=0,"",'[1]Sort Sheet'!U76) -> 2 | O80: =IF('[1]Sort Sheet'!E76=0,"",'[1]Sort Sheet'!V76) -> 1 | P80: =IF('[1]Sort Sheet'!E76=0,"",'[1]Sort Sheet'!W76) -> 1 | Q80: =IF('[1]Sort Sheet'!E76=0,"",'[1]Sort Sheet'!X76) -> 5.65 | R80: =IF('[1]Sort Sheet'!E76=0,"",'[1]Sort Sheet'!M76) -> 55.94 | S80: =IF('[1]Sort Sheet'!E76=0,"",'[1]Sort Sheet'!Z76) -> 57.14 | T80: =IF('[1]Sort Sheet'!E76=0,"",'[1]Sort Sheet'!AA76) -> 10.75667656 | U80: =IF('[1]Sort Sheet'!E76=0,"",'[1]Sort Sheet'!AB76) -> 1628.786721 | V80: =IF('[1]Sort Sheet'!E76=0,"",'[1]Sort Sheet'!AC76) -> 6.146364985 | W80: 162.88 | X80: 1791.666721 | Y80: 6.761006495
A81: 73 | B81: =IF('[1]Sort Sheet'!D77=0,"",'[1]Sort Sheet'!D77) -> 244 | C81: =IF('[1]Sort Sheet'!E77=0,"",'[1]Sort Sheet'!E77) -> 334C | D81: =IF('[1]Sort Sheet'!F77=0,"",'[1]Sort Sheet'!F77) -> F | E81: =IF('[1]Sort Sheet'!E77=0,"",'[1]Sort Sheet'!AT77) -> Y | F81: =IF('[1]Sort Sheet'!E77=0,"",'[1]Sort Sheet'!H77) -> Y | G81: =IF('[1]Sort Sheet'!E77=0,"",'[1]Sort Sheet'!J77) -> John & Estelle Drynan | H81: =IF('[1]Sort Sheet'!E77=0,"",'[1]Sort Sheet'!L77) -> Charolais | I81: =IF('[1]Sort Sheet'!E77=0,"",'[1]Sort Sheet'!O77) -> 0 | J81: =IF('[1]Sort Sheet'!P77=0,"",'[1]Sort Sheet'!P77) -> 267.4 | K81: =IF('[1]Sort Sheet'!E77=0,"",'[1]Sort Sheet'!Q77) -> 8 | L81: =IF('[1]Sort Sheet'!E77=0,"",'[1]Sort Sheet'!R77) -> 5 | M81: =IF('[1]Sort Sheet'!E77=0,"",'[1]Sort Sheet'!S77) -> 77 | N81: =IF('[1]Sort Sheet'!E77=0,"",'[1]Sort Sheet'!U77) -> 2 | O81: =IF('[1]Sort Sheet'!E77=0,"",'[1]Sort Sheet'!V77) -> 1 | P81: =IF('[1]Sort Sheet'!E77=0,"",'[1]Sort Sheet'!W77) -> 1 | Q81: =IF('[1]Sort Sheet'!E77=0,"",'[1]Sort Sheet'!X77) -> 5.55 | R81: =IF('[1]Sort Sheet'!E77=0,"",'[1]Sort Sheet'!M77) -> 60.99 | S81: =IF('[1]Sort Sheet'!E77=0,"",'[1]Sort Sheet'!Z77) -> 57.1 | T81: =IF('[1]Sort Sheet'!E77=0,"",'[1]Sort Sheet'!AA77) -> 10.75667656 | U81: =IF('[1]Sort Sheet'!E77=0,"",'[1]Sort Sheet'!AB77) -> 1642.387463 | V81: =IF('[1]Sort Sheet'!E77=0,"",'[1]Sort Sheet'!AC77) -> 6.142062315 | W81: 164.24 | X81: 1806.627463 | Y81: 6.756273235
A82: 74 | B82: =IF('[1]Sort Sheet'!D78=0,"",'[1]Sort Sheet'!D78) -> 269 | C82: =IF('[1]Sort Sheet'!E78=0,"",'[1]Sort Sheet'!E78) -> 340C | D82: =IF('[1]Sort Sheet'!F78=0,"",'[1]Sort Sheet'!F78) -> M | E82: =IF('[1]Sort Sheet'!E78=0,"",'[1]Sort Sheet'!AT78) -> Y | F82: =IF('[1]Sort Sheet'!E78=0,"",'[1]Sort Sheet'!H78) -> Y | G82: =IF('[1]Sort Sheet'!E78=0,"",'[1]Sort Sheet'!J78) -> Smithfield Cattle Co | H82: =IF('[1]Sort Sheet'!E78=0,"",'[1]Sort Sheet'!L78) -> Angus | I82: =IF('[1]Sort Sheet'!E78=0,"",'[1]Sort Sheet'!O78) -> 0 | J82: =IF('[1]Sort Sheet'!P78=0,"",'[1]Sort Sheet'!P78) -> 266.4 | K82: =IF('[1]Sort Sheet'!E78=0,"",'[1]Sort Sheet'!Q78) -> 20 | L82: =IF('[1]Sort Sheet'!E78=0,"",'[1]Sort Sheet'!R78) -> 9 | M82: =IF('[1]Sort Sheet'!E78=0,"",'[1]Sort Sheet'!S78) -> 71 | N82: =IF('[1]Sort Sheet'!E78=0,"",'[1]Sort Sheet'!U78) -> 1b | O82: =IF('[1]Sort Sheet'!E78=0,"",'[1]Sort Sheet'!V78) -> 1 | P82: =IF('[1]Sort Sheet'!E78=0,"",'[1]Sort Sheet'!W78) -> 2 | Q82: =IF('[1]Sort Sheet'!E78=0,"",'[1]Sort Sheet'!X78) -> 5.47 | R82: =IF('[1]Sort Sheet'!E78=0,"",'[1]Sort Sheet'!M78) -> 57.74 | S82: =IF('[1]Sort Sheet'!E78=0,"",'[1]Sort Sheet'!Z78) -> 56.91 | T82: =IF('[1]Sort Sheet'!E78=0,"",'[1]Sort Sheet'!AA78) -> 10.75667656 | U82: =IF('[1]Sort Sheet'!E78=0,"",'[1]Sort Sheet'!AB78) -> 1630.800801 | V82: =IF('[1]Sort Sheet'!E78=0,"",'[1]Sort Sheet'!AC78) -> 6.121624629 | W82: 163.08 | X82: 1793.880801 | Y82: 6.733786791
A83: 75 | B83: =IF('[1]Sort Sheet'!D79=0,"",'[1]Sort Sheet'!D79) -> 234 | C83: =IF('[1]Sort Sheet'!E79=0,"",'[1]Sort Sheet'!E79) -> 328A | D83: =IF('[1]Sort Sheet'!F79=0,"",'[1]Sort Sheet'!F79) -> F | E83: =IF('[1]Sort Sheet'!E79=0,"",'[1]Sort Sheet'!AT79) -> Y | F83: =IF('[1]Sort Sheet'!E79=0,"",'[1]Sort Sheet'!H79) -> Y | G83: =IF('[1]Sort Sheet'!E79=0,"",'[1]Sort Sheet'!J79) -> Juandah Grazing | H83: =IF('[1]Sort Sheet'!E79=0,"",'[1]Sort Sheet'!L79) -> Charolais X Brangus | I83: =IF('[1]Sort Sheet'!E79=0,"",'[1]Sort Sheet'!O79) -> 0 | J83: =IF('[1]Sort Sheet'!P79=0,"",'[1]Sort Sheet'!P79) -> 310.8 | K83: =IF('[1]Sort Sheet'!E79=0,"",'[1]Sort Sheet'!Q79) -> 11 | L83: =IF('[1]Sort Sheet'!E79=0,"",'[1]Sort Sheet'!R79) -> 8 | M83: =IF('[1]Sort Sheet'!E79=0,"",'[1]Sort Sheet'!S79) -> 96 | N83: =IF('[1]Sort Sheet'!E79=0,"",'[1]Sort Sheet'!U79) -> 2 | O83: =IF('[1]Sort Sheet'!E79=0,"",'[1]Sort Sheet'!V79) -> 1 | P83: =IF('[1]Sort Sheet'!E79=0,"",'[1]Sort Sheet'!W79) -> 1 | Q83: =IF('[1]Sort Sheet'!E79=0,"",'[1]Sort Sheet'!X79) -> 5.55 | R83: =IF('[1]Sort Sheet'!E79=0,"",'[1]Sort Sheet'!M79) -> 55.05 | S83: =IF('[1]Sort Sheet'!E79=0,"",'[1]Sort Sheet'!Z79) -> 56.84 | T83: =IF('[1]Sort Sheet'!E79=0,"",'[1]Sort Sheet'!AA79) -> 10.75667656 | U83: =IF('[1]Sort Sheet'!E79=0,"",'[1]Sort Sheet'!AB79) -> 1900.260712 | V83: =IF('[1]Sort Sheet'!E79=0,"",'[1]Sort Sheet'!AC79) -> 6.114094955 | W83: 190.03 | X83: 2090.290712 | Y83: 6.725517092
A84: 76 | B84: =IF('[1]Sort Sheet'!D80=0,"",'[1]Sort Sheet'!D80) -> 276 | C84: =IF('[1]Sort Sheet'!E80=0,"",'[1]Sort Sheet'!E80) -> 343A | D84: =IF('[1]Sort Sheet'!F80=0,"",'[1]Sort Sheet'!F80) -> F | E84: =IF('[1]Sort Sheet'!E80=0,"",'[1]Sort Sheet'!AT80) -> Y | F84: =IF('[1]Sort Sheet'!E80=0,"",'[1]Sort Sheet'!H80) -> Y | G84: =IF('[1]Sort Sheet'!E80=0,"",'[1]Sort Sheet'!J80) -> Arubial Pty Ltd | H84: =IF('[1]Sort Sheet'!E80=0,"",'[1]Sort Sheet'!L80) -> Angus X | I84: =IF('[1]Sort Sheet'!E80=0,"",'[1]Sort Sheet'!O80) -> 0 | J84: =IF('[1]Sort Sheet'!P80=0,"",'[1]Sort Sheet'!P80) -> 275.8 | K84: =IF('[1]Sort Sheet'!E80=0,"",'[1]Sort Sheet'!Q80) -> 15 | L84: =IF('[1]Sort Sheet'!E80=0,"",'[1]Sort Sheet'!R80) -> 9 | M84: =IF('[1]Sort Sheet'!E80=0,"",'[1]Sort Sheet'!S80) -> 88 | N84: =IF('[1]Sort Sheet'!E80=0,"",'[1]Sort Sheet'!U80) -> 1b | O84: =IF('[1]Sort Sheet'!E80=0,"",'[1]Sort Sheet'!V80) -> 0 | P84: =IF('[1]Sort Sheet'!E80=0,"",'[1]Sort Sheet'!W80) -> 1 | Q84: =IF('[1]Sort Sheet'!E80=0,"",'[1]Sort Sheet'!X80) -> 5.47 | R84: =IF('[1]Sort Sheet'!E80=0,"",'[1]Sort Sheet'!M80) -> 56.32 | S84: =IF('[1]Sort Sheet'!E80=0,"",'[1]Sort Sheet'!Z80) -> 56.56 | T84: =IF('[1]Sort Sheet'!E80=0,"",'[1]Sort Sheet'!AA80) -> 10.75667656 | U84: =IF('[1]Sort Sheet'!E80=0,"",'[1]Sort Sheet'!AB80) -> 1677.960653 | V84: =IF('[1]Sort Sheet'!E80=0,"",'[1]Sort Sheet'!AC80) -> 6.083976261 | W84: 167.8 | X84: 1845.760653 | Y84: 6.692388154
A85: 77 | B85: =IF('[1]Sort Sheet'!D81=0,"",'[1]Sort Sheet'!D81) -> 241 | C85: =IF('[1]Sort Sheet'!E81=0,"",'[1]Sort Sheet'!E81) -> 335A | D85: =IF('[1]Sort Sheet'!F81=0,"",'[1]Sort Sheet'!F81) -> F | E85: =IF('[1]Sort Sheet'!E81=0,"",'[1]Sort Sheet'!AT81) -> Y | F85: =IF('[1]Sort Sheet'!E81=0,"",'[1]Sort Sheet'!H81) -> Y | G85: =IF('[1]Sort Sheet'!E81=0,"",'[1]Sort Sheet'!J81) -> Midge Thompson | H85: =IF('[1]Sort Sheet'!E81=0,"",'[1]Sort Sheet'!L81) -> Limousin X | I85: =IF('[1]Sort Sheet'!E81=0,"",'[1]Sort Sheet'!O81) -> 0 | J85: =IF('[1]Sort Sheet'!P81=0,"",'[1]Sort Sheet'!P81) -> 302.4 | K85: =IF('[1]Sort Sheet'!E81=0,"",'[1]Sort Sheet'!Q81) -> 20 | L85: =IF('[1]Sort Sheet'!E81=0,"",'[1]Sort Sheet'!R81) -> 8 | M85: =IF('[1]Sort Sheet'!E81=0,"",'[1]Sort Sheet'!S81) -> 92 | N85: =IF('[1]Sort Sheet'!E81=0,"",'[1]Sort Sheet'!U81) -> 2 | O85: =IF('[1]Sort Sheet'!E81=0,"",'[1]Sort Sheet'!V81) -> 2 | P85: =IF('[1]Sort Sheet'!E81=0,"",'[1]Sort Sheet'!W81) -> 1 | Q85: =IF('[1]Sort Sheet'!E81=0,"",'[1]Sort Sheet'!X81) -> 5.6 | R85: =IF('[1]Sort Sheet'!E81=0,"",'[1]Sort Sheet'!M81) -> 59.36 | S85: =IF('[1]Sort Sheet'!E81=0,"",'[1]Sort Sheet'!Z81) -> 56.55 | T85: =IF('[1]Sort Sheet'!E81=0,"",'[1]Sort Sheet'!AA81) -> 10.75667656 | U85: =IF('[1]Sort Sheet'!E81=0,"",'[1]Sort Sheet'!AB81) -> 1839.469139 | V85: =IF('[1]Sort Sheet'!E81=0,"",'[1]Sort Sheet'!AC81) -> 6.082900593 | W85: 183.95 | X85: 2023.419139 | Y85: 6.691200858
A86: 78 | B86: =IF('[1]Sort Sheet'!D82=0,"",'[1]Sort Sheet'!D82) -> 275 | C86: =IF('[1]Sort Sheet'!E82=0,"",'[1]Sort Sheet'!E82) -> 345B | D86: =IF('[1]Sort Sheet'!F82=0,"",'[1]Sort Sheet'!F82) -> F | E86: =IF('[1]Sort Sheet'!E82=0,"",'[1]Sort Sheet'!AT82) -> Y | F86: =IF('[1]Sort Sheet'!E82=0,"",'[1]Sort Sheet'!H82) -> Y | G86: =IF('[1]Sort Sheet'!E82=0,"",'[1]Sort Sheet'!J82) -> Arubial Pty Ltd | H86: =IF('[1]Sort Sheet'!E82=0,"",'[1]Sort Sheet'!L82) -> Santa X | I86: =IF('[1]Sort Sheet'!E82=0,"",'[1]Sort Sheet'!O82) -> 0 | J86: =IF('[1]Sort Sheet'!P82=0,"",'[1]Sort Sheet'!P82) -> 271.6 | K86: =IF('[1]Sort Sheet'!E82=0,"",'[1]Sort Sheet'!Q82) -> 18 | L86: =IF('[1]Sort Sheet'!E82=0,"",'[1]Sort Sheet'!R82) -> 4 | M86: =IF('[1]Sort Sheet'!E82=0,"",'[1]Sort Sheet'!S82) -> 71 | N86: =IF('[1]Sort Sheet'!E82=0,"",'[1]Sort Sheet'!U82) -> 3 | O86: =IF('[1]Sort Sheet'!E82=0,"",'[1]Sort Sheet'!V82) -> 0 | P86: =IF('[1]Sort Sheet'!E82=0,"",'[1]Sort Sheet'!W82) -> 1 | Q86: =IF('[1]Sort Sheet'!E82=0,"",'[1]Sort Sheet'!X82) -> 5.56 | R86: =IF('[1]Sort Sheet'!E82=0,"",'[1]Sort Sheet'!M82) -> 54.08 | S86: =IF('[1]Sort Sheet'!E82=0,"",'[1]Sort Sheet'!Z82) -> 56.55 | T86: =IF('[1]Sort Sheet'!E82=0,"",'[1]Sort Sheet'!AA82) -> 10.75667656 | U86: =IF('[1]Sort Sheet'!E82=0,"",'[1]Sort Sheet'!AB82) -> 1652.115801 | V86: =IF('[1]Sort Sheet'!E82=0,"",'[1]Sort Sheet'!AC82) -> 6.082900593 | W86: 165.21 | X86: 1817.325801 | Y86: 6.691184835
A87: 79 | B87: =IF('[1]Sort Sheet'!D83=0,"",'[1]Sort Sheet'!D83) -> 287 | C87: =IF('[1]Sort Sheet'!E83=0,"",'[1]Sort Sheet'!E83) -> 347B | D87: =IF('[1]Sort Sheet'!F83=0,"",'[1]Sort Sheet'!F83) -> M | E87: =IF('[1]Sort Sheet'!E83=0,"",'[1]Sort Sheet'!AT83) -> Y | F87: =IF('[1]Sort Sheet'!E83=0,"",'[1]Sort Sheet'!H83) -> Y | G87: =IF('[1]Sort Sheet'!E83=0,"",'[1]Sort Sheet'!J83) -> Bremer Feedlot | H87: =IF('[1]Sort Sheet'!E83=0,"",'[1]Sort Sheet'!L83) -> Angus | I87: =IF('[1]Sort Sheet'!E83=0,"",'[1]Sort Sheet'!O83) -> 0 | J87: =IF('[1]Sort Sheet'!P83=0,"",'[1]Sort Sheet'!P83) -> 291.4 | K87: =IF('[1]Sort Sheet'!E83=0,"",'[1]Sort Sheet'!Q83) -> 16 | L87: =IF('[1]Sort Sheet'!E83=0,"",'[1]Sort Sheet'!R83) -> 9 | M87: =IF('[1]Sort Sheet'!E83=0,"",'[1]Sort Sheet'!S83) -> 75 | N87: =IF('[1]Sort Sheet'!E83=0,"",'[1]Sort Sheet'!U83) -> 1b | O87: =IF('[1]Sort Sheet'!E83=0,"",'[1]Sort Sheet'!V83) -> 1 | P87: =IF('[1]Sort Sheet'!E83=0,"",'[1]Sort Sheet'!W83) -> 1 | Q87: =IF('[1]Sort Sheet'!E83=0,"",'[1]Sort Sheet'!X83) -> 5.53 | R87: =IF('[1]Sort Sheet'!E83=0,"",'[1]Sort Sheet'!M83) -> 56.15 | S87: =IF('[1]Sort Sheet'!E83=0,"",'[1]Sort Sheet'!Z83) -> 56.45 | T87: =IF('[1]Sort Sheet'!E83=0,"",'[1]Sort Sheet'!AA83) -> 10.75667656 | U87: =IF('[1]Sort Sheet'!E83=0,"",'[1]Sort Sheet'!AB83) -> 1769.422737 | V87: =IF('[1]Sort Sheet'!E83=0,"",'[1]Sort Sheet'!AC83) -> 6.072143917 | W87: 176.94 | X87: 1946.362737 | Y87: 6.679350506
A88: 80 | B88: =IF('[1]Sort Sheet'!D84=0,"",'[1]Sort Sheet'!D84) -> 296 | C88: =IF('[1]Sort Sheet'!E84=0,"",'[1]Sort Sheet'!E84) -> 351B | D88: =IF('[1]Sort Sheet'!F84=0,"",'[1]Sort Sheet'!F84) -> M | E88: =IF('[1]Sort Sheet'!E84=0,"",'[1]Sort Sheet'!AT84) -> Y | F88: =IF('[1]Sort Sheet'!E84=0,"",'[1]Sort Sheet'!H84) -> Y | G88: =IF('[1]Sort Sheet'!E84=0,"",'[1]Sort Sheet'!J84) -> B Feeders Pty ltd | H88: =IF('[1]Sort Sheet'!E84=0,"",'[1]Sort Sheet'!L84) -> Charolais X Santa | I88: =IF('[1]Sort Sheet'!E84=0,"",'[1]Sort Sheet'!O84) -> 0 | J88: =IF('[1]Sort Sheet'!P84=0,"",'[1]Sort Sheet'!P84) -> 278.4 | K88: =IF('[1]Sort Sheet'!E84=0,"",'[1]Sort Sheet'!Q84) -> 12 | L88: =IF('[1]Sort Sheet'!E84=0,"",'[1]Sort Sheet'!R84) -> 6 | M88: =IF('[1]Sort Sheet'!E84=0,"",'[1]Sort Sheet'!S84) -> 62 | N88: =IF('[1]Sort Sheet'!E84=0,"",'[1]Sort Sheet'!U84) -> 1b | O88: =IF('[1]Sort Sheet'!E84=0,"",'[1]Sort Sheet'!V84) -> 1 | P88: =IF('[1]Sort Sheet'!E84=0,"",'[1]Sort Sheet'!W84) -> 1 | Q88: =IF('[1]Sort Sheet'!E84=0,"",'[1]Sort Sheet'!X84) -> 5.59 | R88: =IF('[1]Sort Sheet'!E84=0,"",'[1]Sort Sheet'!M84) -> 53.21 | S88: =IF('[1]Sort Sheet'!E84=0,"",'[1]Sort Sheet'!Z84) -> 56.44 | T88: =IF('[1]Sort Sheet'!E84=0,"",'[1]Sort Sheet'!AA84) -> 10.75667656 | U88: =IF('[1]Sort Sheet'!E84=0,"",'[1]Sort Sheet'!AB84) -> 1690.185401 | V88: =IF('[1]Sort Sheet'!E84=0,"",'[1]Sort Sheet'!AC84) -> 6.071068249 | W88: 169.02 | X88: 1859.205401 | Y88: 6.678180318
A89: 81 | B89: =IF('[1]Sort Sheet'!D85=0,"",'[1]Sort Sheet'!D85) -> 281 | C89: =IF('[1]Sort Sheet'!E85=0,"",'[1]Sort Sheet'!E85) -> 348B | D89: =IF('[1]Sort Sheet'!F85=0,"",'[1]Sort Sheet'!F85) -> M | E89: =IF('[1]Sort Sheet'!E85=0,"",'[1]Sort Sheet'!AT85) -> Y | F89: =IF('[1]Sort Sheet'!E85=0,"",'[1]Sort Sheet'!H85) -> Y | G89: =IF('[1]Sort Sheet'!E85=0,"",'[1]Sort Sheet'!J85) -> Bremer Feedlot | H89: =IF('[1]Sort Sheet'!E85=0,"",'[1]Sort Sheet'!L85) -> Angus | I89: =IF('[1]Sort Sheet'!E85=0,"",'[1]Sort Sheet'!O85) -> 0 | J89: =IF('[1]Sort Sheet'!P85=0,"",'[1]Sort Sheet'!P85) -> 287.2 | K89: =IF('[1]Sort Sheet'!E85=0,"",'[1]Sort Sheet'!Q85) -> 11 | L89: =IF('[1]Sort Sheet'!E85=0,"",'[1]Sort Sheet'!R85) -> 10 | M89: =IF('[1]Sort Sheet'!E85=0,"",'[1]Sort Sheet'!S85) -> 75 | N89: =IF('[1]Sort Sheet'!E85=0,"",'[1]Sort Sheet'!U85) -> 1b | O89: =IF('[1]Sort Sheet'!E85=0,"",'[1]Sort Sheet'!V85) -> 0 | P89: =IF('[1]Sort Sheet'!E85=0,"",'[1]Sort Sheet'!W85) -> 1 | Q89: =IF('[1]Sort Sheet'!E85=0,"",'[1]Sort Sheet'!X85) -> 5.4 | R89: =IF('[1]Sort Sheet'!E85=0,"",'[1]Sort Sheet'!M85) -> 54.7 | S89: =IF('[1]Sort Sheet'!E85=0,"",'[1]Sort Sheet'!Z85) -> 55.94 | T89: =IF('[1]Sort Sheet'!E85=0,"",'[1]Sort Sheet'!AA85) -> 10.75667656 | U89: =IF('[1]Sort Sheet'!E85=0,"",'[1]Sort Sheet'!AB85) -> 1728.164214 | V89: =IF('[1]Sort Sheet'!E85=0,"",'[1]Sort Sheet'!AC85) -> 6.017284866 | W89: 172.82 | X89: 1900.984214 | Y89: 6.619025814
A90: 82 | B90: =IF('[1]Sort Sheet'!D86=0,"",'[1]Sort Sheet'!D86) -> 216 | C90: =IF('[1]Sort Sheet'!E86=0,"",'[1]Sort Sheet'!E86) -> 327B | D90: =IF('[1]Sort Sheet'!F86=0,"",'[1]Sort Sheet'!F86) -> F | E90: =IF('[1]Sort Sheet'!E86=0,"",'[1]Sort Sheet'!AT86) -> Y | F90: =IF('[1]Sort Sheet'!E86=0,"",'[1]Sort Sheet'!H86) -> Y | G90: =IF('[1]Sort Sheet'!E86=0,"",'[1]Sort Sheet'!J86) -> D J & K L Hart | H90: =IF('[1]Sort Sheet'!E86=0,"",'[1]Sort Sheet'!L86) -> Angus / Charolais X | I90: =IF('[1]Sort Sheet'!E86=0,"",'[1]Sort Sheet'!O86) -> 0 | J90: =IF('[1]Sort Sheet'!P86=0,"",'[1]Sort Sheet'!P86) -> 254.6 | K90: =IF('[1]Sort Sheet'!E86=0,"",'[1]Sort Sheet'!Q86) -> 8 | L90: =IF('[1]Sort Sheet'!E86=0,"",'[1]Sort Sheet'!R86) -> 5 | M90: =IF('[1]Sort Sheet'!E86=0,"",'[1]Sort Sheet'!S86) -> 65 | N90: =IF('[1]Sort Sheet'!E86=0,"",'[1]Sort Sheet'!U86) -> 1b | O90: =IF('[1]Sort Sheet'!E86=0,"",'[1]Sort Sheet'!V86) -> 2 | P90: =IF('[1]Sort Sheet'!E86=0,"",'[1]Sort Sheet'!W86) -> 2 | Q90: =IF('[1]Sort Sheet'!E86=0,"",'[1]Sort Sheet'!X86) -> 5.41 | R90: =IF('[1]Sort Sheet'!E86=0,"",'[1]Sort Sheet'!M86) -> 55.98 | S90: =IF('[1]Sort Sheet'!E86=0,"",'[1]Sort Sheet'!Z86) -> 55.94 | T90: =IF('[1]Sort Sheet'!E86=0,"",'[1]Sort Sheet'!AA86) -> 10.75667656 | U90: =IF('[1]Sort Sheet'!E86=0,"",'[1]Sort Sheet'!AB86) -> 1532.000727 | V90: =IF('[1]Sort Sheet'!E86=0,"",'[1]Sort Sheet'!AC86) -> 6.017284866 | W90: 153.2 | X90: 1685.200727 | Y90: 6.619013068
A91: 83 | B91: =IF('[1]Sort Sheet'!D87=0,"",'[1]Sort Sheet'!D87) -> 271 | C91: =IF('[1]Sort Sheet'!E87=0,"",'[1]Sort Sheet'!E87) -> 345A | D91: =IF('[1]Sort Sheet'!F87=0,"",'[1]Sort Sheet'!F87) -> F | E91: =IF('[1]Sort Sheet'!E87=0,"",'[1]Sort Sheet'!AT87) -> Y | F91: =IF('[1]Sort Sheet'!E87=0,"",'[1]Sort Sheet'!H87) -> Y | G91: =IF('[1]Sort Sheet'!E87=0,"",'[1]Sort Sheet'!J87) -> Arubial Pty Ltd | H91: =IF('[1]Sort Sheet'!E87=0,"",'[1]Sort Sheet'!L87) -> Santa X | I91: =IF('[1]Sort Sheet'!E87=0,"",'[1]Sort Sheet'!O87) -> 0 | J91: =IF('[1]Sort Sheet'!P87=0,"",'[1]Sort Sheet'!P87) -> 279 | K91: =IF('[1]Sort Sheet'!E87=0,"",'[1]Sort Sheet'!Q87) -> 12 | L91: =IF('[1]Sort Sheet'!E87=0,"",'[1]Sort Sheet'!R87) -> 9 | M91: =IF('[1]Sort Sheet'!E87=0,"",'[1]Sort Sheet'!S87) -> 84 | N91: =IF('[1]Sort Sheet'!E87=0,"",'[1]Sort Sheet'!U87) -> 1b | O91: =IF('[1]Sort Sheet'!E87=0,"",'[1]Sort Sheet'!V87) -> 0 | P91: =IF('[1]Sort Sheet'!E87=0,"",'[1]Sort Sheet'!W87) -> 1 | Q91: =IF('[1]Sort Sheet'!E87=0,"",'[1]Sort Sheet'!X87) -> 5.43 | R91: =IF('[1]Sort Sheet'!E87=0,"",'[1]Sort Sheet'!M87) -> 55.8 | S91: =IF('[1]Sort Sheet'!E87=0,"",'[1]Sort Sheet'!Z87) -> 55.87 | T91: =IF('[1]Sort Sheet'!E87=0,"",'[1]Sort Sheet'!AA87) -> 10.75667656 | U91: =IF('[1]Sort Sheet'!E87=0,"",'[1]Sort Sheet'!AB87) -> 1676.721699 | V91: =IF('[1]Sort Sheet'!E87=0,"",'[1]Sort Sheet'!AC87) -> 6.009755193 | W91: 167.67 | X91: 1844.391699 | Y91: 6.610722935
A92: 84 | B92: =IF('[1]Sort Sheet'!D88=0,"",'[1]Sort Sheet'!D88) -> 273 | C92: =IF('[1]Sort Sheet'!E88=0,"",'[1]Sort Sheet'!E88) -> 343C | D92: =IF('[1]Sort Sheet'!F88=0,"",'[1]Sort Sheet'!F88) -> F | E92: =IF('[1]Sort Sheet'!E88=0,"",'[1]Sort Sheet'!AT88) -> Y | F92: =IF('[1]Sort Sheet'!E88=0,"",'[1]Sort Sheet'!H88) -> Y | G92: =IF('[1]Sort Sheet'!E88=0,"",'[1]Sort Sheet'!J88) -> Arubial Pty Ltd | H92: =IF('[1]Sort Sheet'!E88=0,"",'[1]Sort Sheet'!L88) -> Angus X | I92: =IF('[1]Sort Sheet'!E88=0,"",'[1]Sort Sheet'!O88) -> 0 | J92: =IF('[1]Sort Sheet'!P88=0,"",'[1]Sort Sheet'!P88) -> 285.8 | K92: =IF('[1]Sort Sheet'!E88=0,"",'[1]Sort Sheet'!Q88) -> 12 | L92: =IF('[1]Sort Sheet'!E88=0,"",'[1]Sort Sheet'!R88) -> 7 | M92: =IF('[1]Sort Sheet'!E88=0,"",'[1]Sort Sheet'!S88) -> 77 | N92: =IF('[1]Sort Sheet'!E88=0,"",'[1]Sort Sheet'!U88) -> 1b | O92: =IF('[1]Sort Sheet'!E88=0,"",'[1]Sort Sheet'!V88) -> 2 | P92: =IF('[1]Sort Sheet'!E88=0,"",'[1]Sort Sheet'!W88) -> 3 | Q92: =IF('[1]Sort Sheet'!E88=0,"",'[1]Sort Sheet'!X88) -> 5.46 | R92: =IF('[1]Sort Sheet'!E88=0,"",'[1]Sort Sheet'!M88) -> 56.75 | S92: =IF('[1]Sort Sheet'!E88=0,"",'[1]Sort Sheet'!Z88) -> 55.32 | T92: =IF('[1]Sort Sheet'!E88=0,"",'[1]Sort Sheet'!AA88) -> 10.75667656 | U92: =IF('[1]Sort Sheet'!E88=0,"",'[1]Sort Sheet'!AB88) -> 1700.679614 | V92: =IF('[1]Sort Sheet'!E88=0,"",'[1]Sort Sheet'!AC88) -> 5.950593472 | W92: 170.07 | X92: 1870.749614 | Y92: 6.545659952
A93: 85 | B93: =IF('[1]Sort Sheet'!D89=0,"",'[1]Sort Sheet'!D89) -> 218 | C93: =IF('[1]Sort Sheet'!E89=0,"",'[1]Sort Sheet'!E89) -> 324C | D93: =IF('[1]Sort Sheet'!F89=0,"",'[1]Sort Sheet'!F89) -> F | E93: =IF('[1]Sort Sheet'!E89=0,"",'[1]Sort Sheet'!AT89) -> Y | F93: =IF('[1]Sort Sheet'!E89=0,"",'[1]Sort Sheet'!H89) -> Y | G93: =IF('[1]Sort Sheet'!E89=0,"",'[1]Sort Sheet'!J89) -> R S & K M Stevens Family Trust | H93: =IF('[1]Sort Sheet'!E89=0,"",'[1]Sort Sheet'!L89) -> Charolais X Santa | I93: =IF('[1]Sort Sheet'!E89=0,"",'[1]Sort Sheet'!O89) -> 0 | J93: =IF('[1]Sort Sheet'!P89=0,"",'[1]Sort Sheet'!P89) -> 269.2 | K93: =IF('[1]Sort Sheet'!E89=0,"",'[1]Sort Sheet'!Q89) -> 10 | L93: =IF('[1]Sort Sheet'!E89=0,"",'[1]Sort Sheet'!R89) -> 10 | M93: =IF('[1]Sort Sheet'!E89=0,"",'[1]Sort Sheet'!S89) -> 80 | N93: =IF('[1]Sort Sheet'!E89=0,"",'[1]Sort Sheet'!U89) -> 1b | O93: =IF('[1]Sort Sheet'!E89=0,"",'[1]Sort Sheet'!V89) -> 1 | P93: =IF('[1]Sort Sheet'!E89=0,"",'[1]Sort Sheet'!W89) -> 1 | Q93: =IF('[1]Sort Sheet'!E89=0,"",'[1]Sort Sheet'!X89) -> 5.47 | R93: =IF('[1]Sort Sheet'!E89=0,"",'[1]Sort Sheet'!M89) -> 57.01 | S93: =IF('[1]Sort Sheet'!E89=0,"",'[1]Sort Sheet'!Z89) -> 55.14 | T93: =IF('[1]Sort Sheet'!E89=0,"",'[1]Sort Sheet'!AA89) -> 10.75667656 | U93: =IF('[1]Sort Sheet'!E89=0,"",'[1]Sort Sheet'!AB89) -> 1596.687507 | V93: =IF('[1]Sort Sheet'!E89=0,"",'[1]Sort Sheet'!AC89) -> 5.931231454 | W93: 159.67 | X93: 1756.357507 | Y93: 6.52435924
A94: 86 | B94: =IF('[1]Sort Sheet'!D90=0,"",'[1]Sort Sheet'!D90) -> 284 | C94: =IF('[1]Sort Sheet'!E90=0,"",'[1]Sort Sheet'!E90) -> 347A | D94: =IF('[1]Sort Sheet'!F90=0,"",'[1]Sort Sheet'!F90) -> M | E94: =IF('[1]Sort Sheet'!E90=0,"",'[1]Sort Sheet'!AT90) -> Y | F94: =IF('[1]Sort Sheet'!E90=0,"",'[1]Sort Sheet'!H90) -> Y | G94: =IF('[1]Sort Sheet'!E90=0,"",'[1]Sort Sheet'!J90) -> Bremer Feedlot | H94: =IF('[1]Sort Sheet'!E90=0,"",'[1]Sort Sheet'!L90) -> Angus | I94: =IF('[1]Sort Sheet'!E90=0,"",'[1]Sort Sheet'!O90) -> 0 | J94: =IF('[1]Sort Sheet'!P90=0,"",'[1]Sort Sheet'!P90) -> 307.4 | K94: =IF('[1]Sort Sheet'!E90=0,"",'[1]Sort Sheet'!Q90) -> 20 | L94: =IF('[1]Sort Sheet'!E90=0,"",'[1]Sort Sheet'!R90) -> 11 | M94: =IF('[1]Sort Sheet'!E90=0,"",'[1]Sort Sheet'!S90) -> 78 | N94: =IF('[1]Sort Sheet'!E90=0,"",'[1]Sort Sheet'!U90) -> 2 | O94: =IF('[1]Sort Sheet'!E90=0,"",'[1]Sort Sheet'!V90) -> 2 | P94: =IF('[1]Sort Sheet'!E90=0,"",'[1]Sort Sheet'!W90) -> 1 | Q94: =IF('[1]Sort Sheet'!E90=0,"",'[1]Sort Sheet'!X90) -> 5.63 | R94: =IF('[1]Sort Sheet'!E90=0,"",'[1]Sort Sheet'!M90) -> 56.53 | S94: =IF('[1]Sort Sheet'!E90=0,"",'[1]Sort Sheet'!Z90) -> 55.04 | T94: =IF('[1]Sort Sheet'!E90=0,"",'[1]Sort Sheet'!AA90) -> 10.75667656 | U94: =IF('[1]Sort Sheet'!E90=0,"",'[1]Sort Sheet'!AB90) -> 1819.953947 | V94: =IF('[1]Sort Sheet'!E90=0,"",'[1]Sort Sheet'!AC90) -> 5.920474777 | W94: 182 | X94: 2001.953947 | Y94: 6.512537237
A95: 87 | B95: =IF('[1]Sort Sheet'!D91=0,"",'[1]Sort Sheet'!D91) -> 268 | C95: =IF('[1]Sort Sheet'!E91=0,"",'[1]Sort Sheet'!E91) -> 340B | D95: =IF('[1]Sort Sheet'!F91=0,"",'[1]Sort Sheet'!F91) -> M | E95: =IF('[1]Sort Sheet'!E91=0,"",'[1]Sort Sheet'!AT91) -> Y | F95: =IF('[1]Sort Sheet'!E91=0,"",'[1]Sort Sheet'!H91) -> Y | G95: =IF('[1]Sort Sheet'!E91=0,"",'[1]Sort Sheet'!J91) -> Smithfield Cattle Co | H95: =IF('[1]Sort Sheet'!E91=0,"",'[1]Sort Sheet'!L91) -> Angus | I95: =IF('[1]Sort Sheet'!E91=0,"",'[1]Sort Sheet'!O91) -> 0 | J95: =IF('[1]Sort Sheet'!P91=0,"",'[1]Sort Sheet'!P91) -> 290.8 | K95: =IF('[1]Sort Sheet'!E91=0,"",'[1]Sort Sheet'!Q91) -> 11 | L95: =IF('[1]Sort Sheet'!E91=0,"",'[1]Sort Sheet'!R91) -> 12 | M95: =IF('[1]Sort Sheet'!E91=0,"",'[1]Sort Sheet'!S91) -> 75 | N95: =IF('[1]Sort Sheet'!E91=0,"",'[1]Sort Sheet'!U91) -> 2 | O95: =IF('[1]Sort Sheet'!E91=0,"",'[1]Sort Sheet'!V91) -> 0 | P95: =IF('[1]Sort Sheet'!E91=0,"",'[1]Sort Sheet'!W91) -> 1 | Q95: =IF('[1]Sort Sheet'!E91=0,"",'[1]Sort Sheet'!X91) -> 5.55 | R95: =IF('[1]Sort Sheet'!E91=0,"",'[1]Sort Sheet'!M91) -> 57.33 | S95: =IF('[1]Sort Sheet'!E91=0,"",'[1]Sort Sheet'!Z91) -> 54.96 | T95: =IF('[1]Sort Sheet'!E91=0,"",'[1]Sort Sheet'!AA91) -> 10.75667656 | U95: =IF('[1]Sort Sheet'!E91=0,"",'[1]Sort Sheet'!AB91) -> 1719.171632 | V95: =IF('[1]Sort Sheet'!E91=0,"",'[1]Sort Sheet'!AC91) -> 5.911869436 | W95: 171.92 | X95: 1891.091632 | Y95: 6.503066135
A96: 88 | B96: =IF('[1]Sort Sheet'!D92=0,"",'[1]Sort Sheet'!D92) -> 277 | C96: =IF('[1]Sort Sheet'!E92=0,"",'[1]Sort Sheet'!E92) -> 344A | D96: =IF('[1]Sort Sheet'!F92=0,"",'[1]Sort Sheet'!F92) -> F | E96: =IF('[1]Sort Sheet'!E92=0,"",'[1]Sort Sheet'!AT92) -> Y | F96: =IF('[1]Sort Sheet'!E92=0,"",'[1]Sort Sheet'!H92) -> Y | G96: =IF('[1]Sort Sheet'!E92=0,"",'[1]Sort Sheet'!J92) -> Arubial Pty Ltd | H96: =IF('[1]Sort Sheet'!E92=0,"",'[1]Sort Sheet'!L92) -> Charolais X | I96: =IF('[1]Sort Sheet'!E92=0,"",'[1]Sort Sheet'!O92) -> 0 | J96: =IF('[1]Sort Sheet'!P92=0,"",'[1]Sort Sheet'!P92) -> 270.6 | K96: =IF('[1]Sort Sheet'!E92=0,"",'[1]Sort Sheet'!Q92) -> 18 | L96: =IF('[1]Sort Sheet'!E92=0,"",'[1]Sort Sheet'!R92) -> 8 | M96: =IF('[1]Sort Sheet'!E92=0,"",'[1]Sort Sheet'!S92) -> 73 | N96: =IF('[1]Sort Sheet'!E92=0,"",'[1]Sort Sheet'!U92) -> 1b | O96: =IF('[1]Sort Sheet'!E92=0,"",'[1]Sort Sheet'!V92) -> 0 | P96: =IF('[1]Sort Sheet'!E92=0,"",'[1]Sort Sheet'!W92) -> 1 | Q96: =IF('[1]Sort Sheet'!E92=0,"",'[1]Sort Sheet'!X92) -> 5.54 | R96: =IF('[1]Sort Sheet'!E92=0,"",'[1]Sort Sheet'!M92) -> 56.27 | S96: =IF('[1]Sort Sheet'!E92=0,"",'[1]Sort Sheet'!Z92) -> 54.85 | T96: =IF('[1]Sort Sheet'!E92=0,"",'[1]Sort Sheet'!AA92) -> 10.75667656 | U96: =IF('[1]Sort Sheet'!E92=0,"",'[1]Sort Sheet'!AB92) -> 1596.550037 | V96: =IF('[1]Sort Sheet'!E92=0,"",'[1]Sort Sheet'!AC92) -> 5.900037092 | W96: 159.66 | X96: 1756.210037 | Y96: 6.490059265
A97: 89 | B97: =IF('[1]Sort Sheet'!D93=0,"",'[1]Sort Sheet'!D93) -> 274 | C97: =IF('[1]Sort Sheet'!E93=0,"",'[1]Sort Sheet'!E93) -> 344B | D97: =IF('[1]Sort Sheet'!F93=0,"",'[1]Sort Sheet'!F93) -> F | E97: =IF('[1]Sort Sheet'!E93=0,"",'[1]Sort Sheet'!AT93) -> Y | F97: =IF('[1]Sort Sheet'!E93=0,"",'[1]Sort Sheet'!H93) -> Y | G97: =IF('[1]Sort Sheet'!E93=0,"",'[1]Sort Sheet'!J93) -> Arubial Pty Ltd | H97: =IF('[1]Sort Sheet'!E93=0,"",'[1]Sort Sheet'!L93) -> Charolais X | I97: =IF('[1]Sort Sheet'!E93=0,"",'[1]Sort Sheet'!O93) -> 0 | J97: =IF('[1]Sort Sheet'!P93=0,"",'[1]Sort Sheet'!P93) -> 300 | K97: =IF('[1]Sort Sheet'!E93=0,"",'[1]Sort Sheet'!Q93) -> 20 | L97: =IF('[1]Sort Sheet'!E93=0,"",'[1]Sort Sheet'!R93) -> 9 | M97: =IF('[1]Sort Sheet'!E93=0,"",'[1]Sort Sheet'!S93) -> 80 | N97: =IF('[1]Sort Sheet'!E93=0,"",'[1]Sort Sheet'!U93) -> 1b | O97: =IF('[1]Sort Sheet'!E93=0,"",'[1]Sort Sheet'!V93) -> 0 | P97: =IF('[1]Sort Sheet'!E93=0,"",'[1]Sort Sheet'!W93) -> 1 | Q97: =IF('[1]Sort Sheet'!E93=0,"",'[1]Sort Sheet'!X93) -> 5.54 | R97: =IF('[1]Sort Sheet'!E93=0,"",'[1]Sort Sheet'!M93) -> 56.59 | S97: =IF('[1]Sort Sheet'!E93=0,"",'[1]Sort Sheet'!Z93) -> 54.12 | T97: =IF('[1]Sort Sheet'!E93=0,"",'[1]Sort Sheet'!AA93) -> 10.75667656 | U97: =IF('[1]Sort Sheet'!E93=0,"",'[1]Sort Sheet'!AB93) -> 1746.454006 | V97: =IF('[1]Sort Sheet'!E93=0,"",'[1]Sort Sheet'!AC93) -> 5.821513353 | W97: 174.65 | X97: 1921.104006 | Y97: 6.40368002
A98: 90 | B98: =IF('[1]Sort Sheet'!D94=0,"",'[1]Sort Sheet'!D94) -> 272 | C98: =IF('[1]Sort Sheet'!E94=0,"",'[1]Sort Sheet'!E94) -> 343B | D98: =IF('[1]Sort Sheet'!F94=0,"",'[1]Sort Sheet'!F94) -> F | E98: =IF('[1]Sort Sheet'!E94=0,"",'[1]Sort Sheet'!AT94) -> Y | F98: =IF('[1]Sort Sheet'!E94=0,"",'[1]Sort Sheet'!H94) -> Y | G98: =IF('[1]Sort Sheet'!E94=0,"",'[1]Sort Sheet'!J94) -> Arubial Pty Ltd | H98: =IF('[1]Sort Sheet'!E94=0,"",'[1]Sort Sheet'!L94) -> Angus X | I98: =IF('[1]Sort Sheet'!E94=0,"",'[1]Sort Sheet'!O94) -> 0 | J98: =IF('[1]Sort Sheet'!P94=0,"",'[1]Sort Sheet'!P94) -> 274.2 | K98: =IF('[1]Sort Sheet'!E94=0,"",'[1]Sort Sheet'!Q94) -> 18 | L98: =IF('[1]Sort Sheet'!E94=0,"",'[1]Sort Sheet'!R94) -> 11 | M98: =IF('[1]Sort Sheet'!E94=0,"",'[1]Sort Sheet'!S94) -> 75 | N98: =IF('[1]Sort Sheet'!E94=0,"",'[1]Sort Sheet'!U94) -> 2 | O98: =IF('[1]Sort Sheet'!E94=0,"",'[1]Sort Sheet'!V94) -> 1 | P98: =IF('[1]Sort Sheet'!E94=0,"",'[1]Sort Sheet'!W94) -> 1 | Q98: =IF('[1]Sort Sheet'!E94=0,"",'[1]Sort Sheet'!X94) -> 5.46 | R98: =IF('[1]Sort Sheet'!E94=0,"",'[1]Sort Sheet'!M94) -> 54.01 | S98: =IF('[1]Sort Sheet'!E94=0,"",'[1]Sort Sheet'!Z94) -> 53.51 | T98: =IF('[1]Sort Sheet'!E94=0,"",'[1]Sort Sheet'!AA94) -> 10.75667656 | U98: =IF('[1]Sort Sheet'!E94=0,"",'[1]Sort Sheet'!AB94) -> 1578.267129 | V98: =IF('[1]Sort Sheet'!E94=0,"",'[1]Sort Sheet'!AC94) -> 5.755897626 | W98: 157.83 | X98: 1736.097129 | Y98: 6.331499377
A99: 91 | B99: =IF('[1]Sort Sheet'!D95=0,"",'[1]Sort Sheet'!D95) -> 279 | C99: =IF('[1]Sort Sheet'!E95=0,"",'[1]Sort Sheet'!E95) -> 344C | D99: =IF('[1]Sort Sheet'!F95=0,"",'[1]Sort Sheet'!F95) -> F | E99: =IF('[1]Sort Sheet'!E95=0,"",'[1]Sort Sheet'!AT95) -> Y | F99: =IF('[1]Sort Sheet'!E95=0,"",'[1]Sort Sheet'!H95) -> Y | G99: =IF('[1]Sort Sheet'!E95=0,"",'[1]Sort Sheet'!J95) -> Arubial Pty Ltd | H99: =IF('[1]Sort Sheet'!E95=0,"",'[1]Sort Sheet'!L95) -> Charolais X | I99: =IF('[1]Sort Sheet'!E95=0,"",'[1]Sort Sheet'!O95) -> 0 | J99: =IF('[1]Sort Sheet'!P95=0,"",'[1]Sort Sheet'!P95) -> 268.8 | K99: =IF('[1]Sort Sheet'!E95=0,"",'[1]Sort Sheet'!Q95) -> 12 | L99: =IF('[1]Sort Sheet'!E95=0,"",'[1]Sort Sheet'!R95) -> 9 | M99: =IF('[1]Sort Sheet'!E95=0,"",'[1]Sort Sheet'!S95) -> 65 | N99: =IF('[1]Sort Sheet'!E95=0,"",'[1]Sort Sheet'!U95) -> 3 | O99: =IF('[1]Sort Sheet'!E95=0,"",'[1]Sort Sheet'!V95) -> 0 | P99: =IF('[1]Sort Sheet'!E95=0,"",'[1]Sort Sheet'!W95) -> 1 | Q99: =IF('[1]Sort Sheet'!E95=0,"",'[1]Sort Sheet'!X95) -> 5.53 | R99: =IF('[1]Sort Sheet'!E95=0,"",'[1]Sort Sheet'!M95) -> 56.83 | S99: =IF('[1]Sort Sheet'!E95=0,"",'[1]Sort Sheet'!Z95) -> 53.11 | T99: =IF('[1]Sort Sheet'!E95=0,"",'[1]Sort Sheet'!AA95) -> 10.75667656 | U99: =IF('[1]Sort Sheet'!E95=0,"",'[1]Sort Sheet'!AB95) -> 1535.619703 | V99: =IF('[1]Sort Sheet'!E95=0,"",'[1]Sort Sheet'!AC95) -> 5.71287092 | W99: 153.56 | X99: 1689.179703 | Y99: 6.284150682
A100: 92 | B100: =IF('[1]Sort Sheet'!D96=0,"",'[1]Sort Sheet'!D96) -> 243 | C100: =IF('[1]Sort Sheet'!E96=0,"",'[1]Sort Sheet'!E96) -> 335C | D100: =IF('[1]Sort Sheet'!F96=0,"",'[1]Sort Sheet'!F96) -> F | E100: =IF('[1]Sort Sheet'!E96=0,"",'[1]Sort Sheet'!AT96) -> Y | F100: =IF('[1]Sort Sheet'!E96=0,"",'[1]Sort Sheet'!H96) -> Y | G100: =IF('[1]Sort Sheet'!E96=0,"",'[1]Sort Sheet'!J96) -> Midge Thompson | H100: =IF('[1]Sort Sheet'!E96=0,"",'[1]Sort Sheet'!L96) -> Charolais X | I100: =IF('[1]Sort Sheet'!E96=0,"",'[1]Sort Sheet'!O96) -> 0 | J100: =IF('[1]Sort Sheet'!P96=0,"",'[1]Sort Sheet'!P96) -> 277.8 | K100: =IF('[1]Sort Sheet'!E96=0,"",'[1]Sort Sheet'!Q96) -> 11 | L100: =IF('[1]Sort Sheet'!E96=0,"",'[1]Sort Sheet'!R96) -> 10 | M100: =IF('[1]Sort Sheet'!E96=0,"",'[1]Sort Sheet'!S96) -> 71 | N100: =IF('[1]Sort Sheet'!E96=0,"",'[1]Sort Sheet'!U96) -> 1b | O100: =IF('[1]Sort Sheet'!E96=0,"",'[1]Sort Sheet'!V96) -> 1 | P100: =IF('[1]Sort Sheet'!E96=0,"",'[1]Sort Sheet'!W96) -> 1 | Q100: =IF('[1]Sort Sheet'!E96=0,"",'[1]Sort Sheet'!X96) -> 5.37 | R100: =IF('[1]Sort Sheet'!E96=0,"",'[1]Sort Sheet'!M96) -> 59.9 | S100: =IF('[1]Sort Sheet'!E96=0,"",'[1]Sort Sheet'!Z96) -> 52.98 | T100: =IF('[1]Sort Sheet'!E96=0,"",'[1]Sort Sheet'!AA96) -> 10.75667656 | U100: =IF('[1]Sort Sheet'!E96=0,"",'[1]Sort Sheet'!AB96) -> 1583.150875 | V100: =IF('[1]Sort Sheet'!E96=0,"",'[1]Sort Sheet'!AC96) -> 5.69888724 | W100: 158.32 | X100: 1741.470875 | Y100: 6.268793648
A101: 93 | B101: =IF('[1]Sort Sheet'!D97=0,"",'[1]Sort Sheet'!D97) -> 247 | C101: =IF('[1]Sort Sheet'!E97=0,"",'[1]Sort Sheet'!E97) -> 333A | D101: =IF('[1]Sort Sheet'!F97=0,"",'[1]Sort Sheet'!F97) -> F | E101: =IF('[1]Sort Sheet'!E97=0,"",'[1]Sort Sheet'!AT97) -> Y | F101: =IF('[1]Sort Sheet'!E97=0,"",'[1]Sort Sheet'!H97) -> Y | G101: =IF('[1]Sort Sheet'!E97=0,"",'[1]Sort Sheet'!J97) -> John & Estelle Drynan | H101: =IF('[1]Sort Sheet'!E97=0,"",'[1]Sort Sheet'!L97) -> Charolais | I101: =IF('[1]Sort Sheet'!E97=0,"",'[1]Sort Sheet'!O97) -> 0 | J101: =IF('[1]Sort Sheet'!P97=0,"",'[1]Sort Sheet'!P97) -> 245 | K101: =IF('[1]Sort Sheet'!E97=0,"",'[1]Sort Sheet'!Q97) -> 16 | L101: =IF('[1]Sort Sheet'!E97=0,"",'[1]Sort Sheet'!R97) -> 15 | M101: =IF('[1]Sort Sheet'!E97=0,"",'[1]Sort Sheet'!S97) -> 75 | N101: =IF('[1]Sort Sheet'!E97=0,"",'[1]Sort Sheet'!U97) -> 1b | O101: =IF('[1]Sort Sheet'!E97=0,"",'[1]Sort Sheet'!V97) -> 1 | P101: =IF('[1]Sort Sheet'!E97=0,"",'[1]Sort Sheet'!W97) -> 2 | Q101: =IF('[1]Sort Sheet'!E97=0,"",'[1]Sort Sheet'!X97) -> 5.45 | R101: =IF('[1]Sort Sheet'!E97=0,"",'[1]Sort Sheet'!M97) -> 63.44 | S101: =IF('[1]Sort Sheet'!E97=0,"",'[1]Sort Sheet'!Z97) -> 52.87 | T101: =IF('[1]Sort Sheet'!E97=0,"",'[1]Sort Sheet'!AA97) -> 10.75667656 | U101: =IF('[1]Sort Sheet'!E97=0,"",'[1]Sort Sheet'!AB97) -> 1393.32845 | V101: =IF('[1]Sort Sheet'!E97=0,"",'[1]Sort Sheet'!AC97) -> 5.687054896 | W101: 139.33 | X101: 1532.65845 | Y101: 6.255748774
A102: 94 | B102: =IF('[1]Sort Sheet'!D98=0,"",'[1]Sort Sheet'!D98) -> 282 | C102: =IF('[1]Sort Sheet'!E98=0,"",'[1]Sort Sheet'!E98) -> 348A | D102: =IF('[1]Sort Sheet'!F98=0,"",'[1]Sort Sheet'!F98) -> M | E102: =IF('[1]Sort Sheet'!E98=0,"",'[1]Sort Sheet'!AT98) -> Y | F102: =IF('[1]Sort Sheet'!E98=0,"",'[1]Sort Sheet'!H98) -> Y | G102: =IF('[1]Sort Sheet'!E98=0,"",'[1]Sort Sheet'!J98) -> Bremer Feedlot | H102: =IF('[1]Sort Sheet'!E98=0,"",'[1]Sort Sheet'!L98) -> Angus | I102: =IF('[1]Sort Sheet'!E98=0,"",'[1]Sort Sheet'!O98) -> 0 | J102: =IF('[1]Sort Sheet'!P98=0,"",'[1]Sort Sheet'!P98) -> 309 | K102: =IF('[1]Sort Sheet'!E98=0,"",'[1]Sort Sheet'!Q98) -> 25 | L102: =IF('[1]Sort Sheet'!E98=0,"",'[1]Sort Sheet'!R98) -> 13 | M102: =IF('[1]Sort Sheet'!E98=0,"",'[1]Sort Sheet'!S98) -> 68 | N102: =IF('[1]Sort Sheet'!E98=0,"",'[1]Sort Sheet'!U98) -> 1b | O102: =IF('[1]Sort Sheet'!E98=0,"",'[1]Sort Sheet'!V98) -> 0 | P102: =IF('[1]Sort Sheet'!E98=0,"",'[1]Sort Sheet'!W98) -> 2 | Q102: =IF('[1]Sort Sheet'!E98=0,"",'[1]Sort Sheet'!X98) -> 5.54 | R102: =IF('[1]Sort Sheet'!E98=0,"",'[1]Sort Sheet'!M98) -> 57.65 | S102: =IF('[1]Sort Sheet'!E98=0,"",'[1]Sort Sheet'!Z98) -> 52.59 | T102: =IF('[1]Sort Sheet'!E98=0,"",'[1]Sort Sheet'!AA98) -> 10.75667656 | U102: =IF('[1]Sort Sheet'!E98=0,"",'[1]Sort Sheet'!AB98) -> 1747.993286 | V102: =IF('[1]Sort Sheet'!E98=0,"",'[1]Sort Sheet'!AC98) -> 5.656936202 | W102: 174.8 | X102: 1922.793286 | Y102: 6.222631995
A103: 95 | B103: =IF('[1]Sort Sheet'!D99=0,"",'[1]Sort Sheet'!D99) -> 260 | C103: =IF('[1]Sort Sheet'!E99=0,"",'[1]Sort Sheet'!E99) -> 337C | D103: =IF('[1]Sort Sheet'!F99=0,"",'[1]Sort Sheet'!F99) -> F | E103: =IF('[1]Sort Sheet'!E99=0,"",'[1]Sort Sheet'!AT99) -> N | F103: =IF('[1]Sort Sheet'!E99=0,"",'[1]Sort Sheet'!H99) -> N | G103: =IF('[1]Sort Sheet'!E99=0,"",'[1]Sort Sheet'!J99) -> RB & VA Budd & Willoise Grazing Co Pty Ltd | H103: =IF('[1]Sort Sheet'!E99=0,"",'[1]Sort Sheet'!L99) -> Charolais X | I103: =IF('[1]Sort Sheet'!E99=0,"",'[1]Sort Sheet'!O99) -> 0 | J103: =IF('[1]Sort Sheet'!P99=0,"",'[1]Sort Sheet'!P99) -> 221.6 | K103: =IF('[1]Sort Sheet'!E99=0,"",'[1]Sort Sheet'!Q99) -> 6 | L103: =IF('[1]Sort Sheet'!E99=0,"",'[1]Sort Sheet'!R99) -> 2 | M103: =IF('[1]Sort Sheet'!E99=0,"",'[1]Sort Sheet'!S99) -> 88 | N103: =IF('[1]Sort Sheet'!E99=0,"",'[1]Sort Sheet'!U99) -> 1b | O103: =IF('[1]Sort Sheet'!E99=0,"",'[1]Sort Sheet'!V99) -> 1 | P103: =IF('[1]Sort Sheet'!E99=0,"",'[1]Sort Sheet'!W99) -> 0 | Q103: =IF('[1]Sort Sheet'!E99=0,"",'[1]Sort Sheet'!X99) -> 5.5 | R103: =IF('[1]Sort Sheet'!E99=0,"",'[1]Sort Sheet'!M99) -> U | S103: =IF('[1]Sort Sheet'!E99=0,"",'[1]Sort Sheet'!Z99) -> 62.5 | T103: =IF('[1]Sort Sheet'!E99=0,"",'[1]Sort Sheet'!AA99) -> 10.20029674 | U103: =IF('[1]Sort Sheet'!E99=0,"",'[1]Sort Sheet'!AB99) -> 1412.741098 | V103: =IF('[1]Sort Sheet'!E99=0,"",'[1]Sort Sheet'!AC99) -> 6.37518546 | W103: 141.27 | X103: 1554.011098 | Y103: 7.01268546
A104: 96 | B104: =IF('[1]Sort Sheet'!D100=0,"",'[1]Sort Sheet'!D100) -> 239 | C104: =IF('[1]Sort Sheet'!E100=0,"",'[1]Sort Sheet'!E100) -> 332B | D104: =IF('[1]Sort Sheet'!F100=0,"",'[1]Sort Sheet'!F100) -> M | E104: =IF('[1]Sort Sheet'!E100=0,"",'[1]Sort Sheet'!AT100) -> Y | F104: =IF('[1]Sort Sheet'!E100=0,"",'[1]Sort Sheet'!H100) -> N | G104: =IF('[1]Sort Sheet'!E100=0,"",'[1]Sort Sheet'!J100) -> G E & E E Kroll | H104: =IF('[1]Sort Sheet'!E100=0,"",'[1]Sort Sheet'!L100) -> Angus X | I104: =IF('[1]Sort Sheet'!E100=0,"",'[1]Sort Sheet'!O100) -> 0 | J104: =IF('[1]Sort Sheet'!P100=0,"",'[1]Sort Sheet'!P100) -> 243.2 | K104: =IF('[1]Sort Sheet'!E100=0,"",'[1]Sort Sheet'!Q100) -> 8 | L104: =IF('[1]Sort Sheet'!E100=0,"",'[1]Sort Sheet'!R100) -> 4 | M104: =IF('[1]Sort Sheet'!E100=0,"",'[1]Sort Sheet'!S100) -> 80 | N104: =IF('[1]Sort Sheet'!E100=0,"",'[1]Sort Sheet'!U100) -> 5 | O104: =IF('[1]Sort Sheet'!E100=0,"",'[1]Sort Sheet'!V100) -> 2 | P104: =IF('[1]Sort Sheet'!E100=0,"",'[1]Sort Sheet'!W100) -> 2 | Q104: =IF('[1]Sort Sheet'!E100=0,"",'[1]Sort Sheet'!X100) -> 5.99 | R104: =IF('[1]Sort Sheet'!E100=0,"",'[1]Sort Sheet'!M100) -> U | S104: =IF('[1]Sort Sheet'!E100=0,"",'[1]Sort Sheet'!Z100) -> 61.91 | T104: =IF('[1]Sort Sheet'!E100=0,"",'[1]Sort Sheet'!AA100) -> 10.20029674 | U104: =IF('[1]Sort Sheet'!E100=0,"",'[1]Sort Sheet'!AB100) -> 1535.808902 | V104: =IF('[1]Sort Sheet'!E100=0,"",'[1]Sort Sheet'!AC100) -> 6.315003709 | W104: 153.58 | X104: 1689.388902 | Y104: 6.94650042
A105: 97 | B105: =IF('[1]Sort Sheet'!D101=0,"",'[1]Sort Sheet'!D101) -> 235 | C105: =IF('[1]Sort Sheet'!E101=0,"",'[1]Sort Sheet'!E101) -> 332C | D105: =IF('[1]Sort Sheet'!F101=0,"",'[1]Sort Sheet'!F101) -> F | E105: =IF('[1]Sort Sheet'!E101=0,"",'[1]Sort Sheet'!AT101) -> N | F105: =IF('[1]Sort Sheet'!E101=0,"",'[1]Sort Sheet'!H101) -> N | G105: =IF('[1]Sort Sheet'!E101=0,"",'[1]Sort Sheet'!J101) -> G E & E E Kroll | H105: =IF('[1]Sort Sheet'!E101=0,"",'[1]Sort Sheet'!L101) -> Braford X | I105: =IF('[1]Sort Sheet'!E101=0,"",'[1]Sort Sheet'!O101) -> 2 | J105: =IF('[1]Sort Sheet'!P101=0,"",'[1]Sort Sheet'!P101) -> 253.6 | K105: =IF('[1]Sort Sheet'!E101=0,"",'[1]Sort Sheet'!Q101) -> 11 | L105: =IF('[1]Sort Sheet'!E101=0,"",'[1]Sort Sheet'!R101) -> 3 | M105: =IF('[1]Sort Sheet'!E101=0,"",'[1]Sort Sheet'!S101) -> 90 | N105: =IF('[1]Sort Sheet'!E101=0,"",'[1]Sort Sheet'!U101) -> 1b | O105: =IF('[1]Sort Sheet'!E101=0,"",'[1]Sort Sheet'!V101) -> 2 | P105: =IF('[1]Sort Sheet'!E101=0,"",'[1]Sort Sheet'!W101) -> 0 | Q105: =IF('[1]Sort Sheet'!E101=0,"",'[1]Sort Sheet'!X101) -> 5.5 | R105: =IF('[1]Sort Sheet'!E101=0,"",'[1]Sort Sheet'!M101) -> 51.46 | S105: =IF('[1]Sort Sheet'!E101=0,"",'[1]Sort Sheet'!Z101) -> 60.78 | T105: =IF('[1]Sort Sheet'!E101=0,"",'[1]Sort Sheet'!AA101) -> 10.20029674 | U105: =IF('[1]Sort Sheet'!E101=0,"",'[1]Sort Sheet'!AB101) -> 1572.254154 | V105: =IF('[1]Sort Sheet'!E101=0,"",'[1]Sort Sheet'!AC101) -> 6.199740356 | W105: 157.23 | X105: 1729.484154 | Y105: 6.81973247
A106: 98 | B106: =IF('[1]Sort Sheet'!D102=0,"",'[1]Sort Sheet'!D102) -> 257 | C106: =IF('[1]Sort Sheet'!E102=0,"",'[1]Sort Sheet'!E102) -> 339C | D106: =IF('[1]Sort Sheet'!F102=0,"",'[1]Sort Sheet'!F102) -> F | E106: =IF('[1]Sort Sheet'!E102=0,"",'[1]Sort Sheet'!AT102) -> N | F106: =IF('[1]Sort Sheet'!E102=0,"",'[1]Sort Sheet'!H102) -> N | G106: =IF('[1]Sort Sheet'!E102=0,"",'[1]Sort Sheet'!J102) -> RB & VA Budd & Willoise Grazing Co Pty Ltd | H106: =IF('[1]Sort Sheet'!E102=0,"",'[1]Sort Sheet'!L102) -> Charolais X | I106: =IF('[1]Sort Sheet'!E102=0,"",'[1]Sort Sheet'!O102) -> 0 | J106: =IF('[1]Sort Sheet'!P102=0,"",'[1]Sort Sheet'!P102) -> 238.6 | K106: =IF('[1]Sort Sheet'!E102=0,"",'[1]Sort Sheet'!Q102) -> 6 | L106: =IF('[1]Sort Sheet'!E102=0,"",'[1]Sort Sheet'!R102) -> 3 | M106: =IF('[1]Sort Sheet'!E102=0,"",'[1]Sort Sheet'!S102) -> 85 | N106: =IF('[1]Sort Sheet'!E102=0,"",'[1]Sort Sheet'!U102) -> 1b | O106: =IF('[1]Sort Sheet'!E102=0,"",'[1]Sort Sheet'!V102) -> 1 | P106: =IF('[1]Sort Sheet'!E102=0,"",'[1]Sort Sheet'!W102) -> 1 | Q106: =IF('[1]Sort Sheet'!E102=0,"",'[1]Sort Sheet'!X102) -> 5.49 | R106: =IF('[1]Sort Sheet'!E102=0,"",'[1]Sort Sheet'!M102) -> 53.87 | S106: =IF('[1]Sort Sheet'!E102=0,"",'[1]Sort Sheet'!Z102) -> 60.75 | T106: =IF('[1]Sort Sheet'!E102=0,"",'[1]Sort Sheet'!AA102) -> 10.20029674 | U106: =IF('[1]Sort Sheet'!E102=0,"",'[1]Sort Sheet'!AB102) -> 1478.527912 | V106: =IF('[1]Sort Sheet'!E102=0,"",'[1]Sort Sheet'!AC102) -> 6.196680267 | W106: 147.85 | X106: 1626.377912 | Y106: 6.816336596
A107: 99 | B107: =IF('[1]Sort Sheet'!D103=0,"",'[1]Sort Sheet'!D103) -> 258 | C107: =IF('[1]Sort Sheet'!E103=0,"",'[1]Sort Sheet'!E103) -> 339B | D107: =IF('[1]Sort Sheet'!F103=0,"",'[1]Sort Sheet'!F103) -> F | E107: =IF('[1]Sort Sheet'!E103=0,"",'[1]Sort Sheet'!AT103) -> N | F107: =IF('[1]Sort Sheet'!E103=0,"",'[1]Sort Sheet'!H103) -> N | G107: =IF('[1]Sort Sheet'!E103=0,"",'[1]Sort Sheet'!J103) -> RB & VA Budd & Willoise Grazing Co Pty Ltd | H107: =IF('[1]Sort Sheet'!E103=0,"",'[1]Sort Sheet'!L103) -> Charolais X | I107: =IF('[1]Sort Sheet'!E103=0,"",'[1]Sort Sheet'!O103) -> 0 | J107: =IF('[1]Sort Sheet'!P103=0,"",'[1]Sort Sheet'!P103) -> 236.8 | K107: =IF('[1]Sort Sheet'!E103=0,"",'[1]Sort Sheet'!Q103) -> 6 | L107: =IF('[1]Sort Sheet'!E103=0,"",'[1]Sort Sheet'!R103) -> 3 | M107: =IF('[1]Sort Sheet'!E103=0,"",'[1]Sort Sheet'!S103) -> 84 | N107: =IF('[1]Sort Sheet'!E103=0,"",'[1]Sort Sheet'!U103) -> 2 | O107: =IF('[1]Sort Sheet'!E103=0,"",'[1]Sort Sheet'!V103) -> 1 | P107: =IF('[1]Sort Sheet'!E103=0,"",'[1]Sort Sheet'!W103) -> 0 | Q107: =IF('[1]Sort Sheet'!E103=0,"",'[1]Sort Sheet'!X103) -> 5.59 | R107: =IF('[1]Sort Sheet'!E103=0,"",'[1]Sort Sheet'!M103) -> 51.51 | S107: =IF('[1]Sort Sheet'!E103=0,"",'[1]Sort Sheet'!Z103) -> 60.68 | T107: =IF('[1]Sort Sheet'!E103=0,"",'[1]Sort Sheet'!AA103) -> 10.20029674 | U107: =IF('[1]Sort Sheet'!E103=0,"",'[1]Sort Sheet'!AB103) -> 1465.683086 | V107: =IF('[1]Sort Sheet'!E103=0,"",'[1]Sort Sheet'!AC103) -> 6.189540059 | W107: 146.57 | X107: 1612.253086 | Y107: 6.808501208
A108: 100 | B108: =IF('[1]Sort Sheet'!D104=0,"",'[1]Sort Sheet'!D104) -> 219 | C108: =IF('[1]Sort Sheet'!E104=0,"",'[1]Sort Sheet'!E104) -> 326B | D108: =IF('[1]Sort Sheet'!F104=0,"",'[1]Sort Sheet'!F104) -> F | E108: =IF('[1]Sort Sheet'!E104=0,"",'[1]Sort Sheet'!AT104) -> Y | F108: =IF('[1]Sort Sheet'!E104=0,"",'[1]Sort Sheet'!H104) -> N | G108: =IF('[1]Sort Sheet'!E104=0,"",'[1]Sort Sheet'!J104) -> R S & K M Stevens Family Trust | H108: =IF('[1]Sort Sheet'!E104=0,"",'[1]Sort Sheet'!L104) -> Charolais X Santa | I108: =IF('[1]Sort Sheet'!E104=0,"",'[1]Sort Sheet'!O104) -> 0 | J108: =IF('[1]Sort Sheet'!P104=0,"",'[1]Sort Sheet'!P104) -> 214.6 | K108: =IF('[1]Sort Sheet'!E104=0,"",'[1]Sort Sheet'!Q104) -> 8 | L108: =IF('[1]Sort Sheet'!E104=0,"",'[1]Sort Sheet'!R104) -> 4 | M108: =IF('[1]Sort Sheet'!E104=0,"",'[1]Sort Sheet'!S104) -> 80 | N108: =IF('[1]Sort Sheet'!E104=0,"",'[1]Sort Sheet'!U104) -> 2 | O108: =IF('[1]Sort Sheet'!E104=0,"",'[1]Sort Sheet'!V104) -> 0 | P108: =IF('[1]Sort Sheet'!E104=0,"",'[1]Sort Sheet'!W104) -> 1 | Q108: =IF('[1]Sort Sheet'!E104=0,"",'[1]Sort Sheet'!X104) -> 5.57 | R108: =IF('[1]Sort Sheet'!E104=0,"",'[1]Sort Sheet'!M104) -> 55.82 | S108: =IF('[1]Sort Sheet'!E104=0,"",'[1]Sort Sheet'!Z104) -> 60.58 | T108: =IF('[1]Sort Sheet'!E104=0,"",'[1]Sort Sheet'!AA104) -> 10.20029674 | U108: =IF('[1]Sort Sheet'!E104=0,"",'[1]Sort Sheet'!AB104) -> 1326.086313 | V108: =IF('[1]Sort Sheet'!E104=0,"",'[1]Sort Sheet'!AC104) -> 6.179339763 | W108: 132.61 | X108: 1458.696313 | Y108: 6.797280117
A109: 101 | B109: =IF('[1]Sort Sheet'!D105=0,"",'[1]Sort Sheet'!D105) -> 248 | C109: =IF('[1]Sort Sheet'!E105=0,"",'[1]Sort Sheet'!E105) -> 333C | D109: =IF('[1]Sort Sheet'!F105=0,"",'[1]Sort Sheet'!F105) -> F | E109: =IF('[1]Sort Sheet'!E105=0,"",'[1]Sort Sheet'!AT105) -> N | F109: =IF('[1]Sort Sheet'!E105=0,"",'[1]Sort Sheet'!H105) -> N | G109: =IF('[1]Sort Sheet'!E105=0,"",'[1]Sort Sheet'!J105) -> John & Estelle Drynan | H109: =IF('[1]Sort Sheet'!E105=0,"",'[1]Sort Sheet'!L105) -> Charolais | I109: =IF('[1]Sort Sheet'!E105=0,"",'[1]Sort Sheet'!O105) -> 0 | J109: =IF('[1]Sort Sheet'!P105=0,"",'[1]Sort Sheet'!P105) -> 269.4 | K109: =IF('[1]Sort Sheet'!E105=0,"",'[1]Sort Sheet'!Q105) -> 10 | L109: =IF('[1]Sort Sheet'!E105=0,"",'[1]Sort Sheet'!R105) -> 4 | M109: =IF('[1]Sort Sheet'!E105=0,"",'[1]Sort Sheet'!S105) -> 92 | N109: =IF('[1]Sort Sheet'!E105=0,"",'[1]Sort Sheet'!U105) -> 1b | O109: =IF('[1]Sort Sheet'!E105=0,"",'[1]Sort Sheet'!V105) -> 1 | P109: =IF('[1]Sort Sheet'!E105=0,"",'[1]Sort Sheet'!W105) -> 1 | Q109: =IF('[1]Sort Sheet'!E105=0,"",'[1]Sort Sheet'!X105) -> 5.44 | R109: =IF('[1]Sort Sheet'!E105=0,"",'[1]Sort Sheet'!M105) -> 61.4 | S109: =IF('[1]Sort Sheet'!E105=0,"",'[1]Sort Sheet'!Z105) -> 59.97 | T109: =IF('[1]Sort Sheet'!E105=0,"",'[1]Sort Sheet'!AA105) -> 10.20029674 | U109: =IF('[1]Sort Sheet'!E105=0,"",'[1]Sort Sheet'!AB105) -> 1647.951576 | V109: =IF('[1]Sort Sheet'!E105=0,"",'[1]Sort Sheet'!AC105) -> 6.117117953 | W109: 164.8 | X109: 1812.751576 | Y109: 6.728847722
A110: 102 | B110: =IF('[1]Sort Sheet'!D106=0,"",'[1]Sort Sheet'!D106) -> 261 | C110: =IF('[1]Sort Sheet'!E106=0,"",'[1]Sort Sheet'!E106) -> 337A | D110: =IF('[1]Sort Sheet'!F106=0,"",'[1]Sort Sheet'!F106) -> F | E110: =IF('[1]Sort Sheet'!E106=0,"",'[1]Sort Sheet'!AT106) -> Y | F110: =IF('[1]Sort Sheet'!E106=0,"",'[1]Sort Sheet'!H106) -> N | G110: =IF('[1]Sort Sheet'!E106=0,"",'[1]Sort Sheet'!J106) -> RB & VA Budd & Willoise Grazing Co Pty Ltd | H110: =IF('[1]Sort Sheet'!E106=0,"",'[1]Sort Sheet'!L106) -> Charolais X | I110: =IF('[1]Sort Sheet'!E106=0,"",'[1]Sort Sheet'!O106) -> 0 | J110: =IF('[1]Sort Sheet'!P106=0,"",'[1]Sort Sheet'!P106) -> 211.6 | K110: =IF('[1]Sort Sheet'!E106=0,"",'[1]Sort Sheet'!Q106) -> 10 | L110: =IF('[1]Sort Sheet'!E106=0,"",'[1]Sort Sheet'!R106) -> 3 | M110: =IF('[1]Sort Sheet'!E106=0,"",'[1]Sort Sheet'!S106) -> 70 | N110: =IF('[1]Sort Sheet'!E106=0,"",'[1]Sort Sheet'!U106) -> 2 | O110: =IF('[1]Sort Sheet'!E106=0,"",'[1]Sort Sheet'!V106) -> 2 | P110: =IF('[1]Sort Sheet'!E106=0,"",'[1]Sort Sheet'!W106) -> 1 | Q110: =IF('[1]Sort Sheet'!E106=0,"",'[1]Sort Sheet'!X106) -> 5.56 | R110: =IF('[1]Sort Sheet'!E106=0,"",'[1]Sort Sheet'!M106) -> 54.31 | S110: =IF('[1]Sort Sheet'!E106=0,"",'[1]Sort Sheet'!Z106) -> 59.67 | T110: =IF('[1]Sort Sheet'!E106=0,"",'[1]Sort Sheet'!AA106) -> 10.20029674 | U110: =IF('[1]Sort Sheet'!E106=0,"",'[1]Sort Sheet'!AB106) -> 1287.90701 | V110: =IF('[1]Sort Sheet'!E106=0,"",'[1]Sort Sheet'!AC106) -> 6.086517062 | W110: =IF(U110="","",ROUND(U110*0.1,2)) -> 128.79 | X110: =IF(W110="","",U110+W110) -> 1416.69701 | Y110: =X110/J110 -> 6.695165456
A111: 103 | B111: =IF('[1]Sort Sheet'!D107=0,"",'[1]Sort Sheet'!D107) -> 253 | C111: =IF('[1]Sort Sheet'!E107=0,"",'[1]Sort Sheet'!E107) -> 337B | D111: =IF('[1]Sort Sheet'!F107=0,"",'[1]Sort Sheet'!F107) -> F | E111: =IF('[1]Sort Sheet'!E107=0,"",'[1]Sort Sheet'!AT107) -> Y | F111: =IF('[1]Sort Sheet'!E107=0,"",'[1]Sort Sheet'!H107) -> N | G111: =IF('[1]Sort Sheet'!E107=0,"",'[1]Sort Sheet'!J107) -> RB & VA Budd & Willoise Grazing Co Pty Ltd | H111: =IF('[1]Sort Sheet'!E107=0,"",'[1]Sort Sheet'!L107) -> Charolais X | I111: =IF('[1]Sort Sheet'!E107=0,"",'[1]Sort Sheet'!O107) -> 0 | J111: =IF('[1]Sort Sheet'!P107=0,"",'[1]Sort Sheet'!P107) -> 210.4 | K111: =IF('[1]Sort Sheet'!E107=0,"",'[1]Sort Sheet'!Q107) -> 8 | L111: =IF('[1]Sort Sheet'!E107=0,"",'[1]Sort Sheet'!R107) -> 5 | M111: =IF('[1]Sort Sheet'!E107=0,"",'[1]Sort Sheet'!S107) -> 76 | N111: =IF('[1]Sort Sheet'!E107=0,"",'[1]Sort Sheet'!U107) -> 1b | O111: =IF('[1]Sort Sheet'!E107=0,"",'[1]Sort Sheet'!V107) -> 0 | P111: =IF('[1]Sort Sheet'!E107=0,"",'[1]Sort Sheet'!W107) -> 0 | Q111: =IF('[1]Sort Sheet'!E107=0,"",'[1]Sort Sheet'!X107) -> 5.43 | R111: =IF('[1]Sort Sheet'!E107=0,"",'[1]Sort Sheet'!M107) -> 55.05 | S111: =IF('[1]Sort Sheet'!E107=0,"",'[1]Sort Sheet'!Z107) -> 59.65 | T111: =IF('[1]Sort Sheet'!E107=0,"",'[1]Sort Sheet'!AA107) -> 10.20029674 | U111: =IF('[1]Sort Sheet'!E107=0,"",'[1]Sort Sheet'!AB107) -> 1280.173961 | V111: =IF('[1]Sort Sheet'!E107=0,"",'[1]Sort Sheet'!AC107) -> 6.084477003 | W111: =IF(U111="","",ROUND(U111*0.1,2)) -> 128.02 | X111: =IF(W111="","",U111+W111) -> 1408.193961 | Y111: =X111/J111 -> 6.692937079
A112: 104 | B112: =IF('[1]Sort Sheet'!D108=0,"",'[1]Sort Sheet'!D108) -> 251 | C112: =IF('[1]Sort Sheet'!E108=0,"",'[1]Sort Sheet'!E108) -> 336C | D112: =IF('[1]Sort Sheet'!F108=0,"",'[1]Sort Sheet'!F108) -> F | E112: =IF('[1]Sort Sheet'!E108=0,"",'[1]Sort Sheet'!AT108) -> N | F112: =IF('[1]Sort Sheet'!E108=0,"",'[1]Sort Sheet'!H108) -> N | G112: =IF('[1]Sort Sheet'!E108=0,"",'[1]Sort Sheet'!J108) -> Ben & Megan Drynan | H112: =IF('[1]Sort Sheet'!E108=0,"",'[1]Sort Sheet'!L108) -> Charolais | I112: =IF('[1]Sort Sheet'!E108=0,"",'[1]Sort Sheet'!O108) -> 0 | J112: =IF('[1]Sort Sheet'!P108=0,"",'[1]Sort Sheet'!P108) -> 263.4 | K112: =IF('[1]Sort Sheet'!E108=0,"",'[1]Sort Sheet'!Q108) -> 6 | L112: =IF('[1]Sort Sheet'!E108=0,"",'[1]Sort Sheet'!R108) -> 3 | M112: =IF('[1]Sort Sheet'!E108=0,"",'[1]Sort Sheet'!S108) -> 84 | N112: =IF('[1]Sort Sheet'!E108=0,"",'[1]Sort Sheet'!U108) -> 2 | O112: =IF('[1]Sort Sheet'!E108=0,"",'[1]Sort Sheet'!V108) -> 1 | P112: =IF('[1]Sort Sheet'!E108=0,"",'[1]Sort Sheet'!W108) -> 1 | Q112: =IF('[1]Sort Sheet'!E108=0,"",'[1]Sort Sheet'!X108) -> 5.44 | R112: =IF('[1]Sort Sheet'!E108=0,"",'[1]Sort Sheet'!M108) -> 60.76 | S112: =IF('[1]Sort Sheet'!E108=0,"",'[1]Sort Sheet'!Z108) -> 59.44 | T112: =IF('[1]Sort Sheet'!E108=0,"",'[1]Sort Sheet'!AA108) -> 10.20029674 | U112: =IF('[1]Sort Sheet'!E108=0,"",'[1]Sort Sheet'!AB108) -> 1597.00905 | V112: =IF('[1]Sort Sheet'!E108=0,"",'[1]Sort Sheet'!AC108) -> 6.06305638 | W112: 159.7 | X112: 1756.70905 | Y112: 6.669358582
A113: 105 | B113: =IF('[1]Sort Sheet'!D109=0,"",'[1]Sort Sheet'!D109) -> 250 | C113: =IF('[1]Sort Sheet'!E109=0,"",'[1]Sort Sheet'!E109) -> 336A | D113: =IF('[1]Sort Sheet'!F109=0,"",'[1]Sort Sheet'!F109) -> F | E113: =IF('[1]Sort Sheet'!E109=0,"",'[1]Sort Sheet'!AT109) -> N | F113: =IF('[1]Sort Sheet'!E109=0,"",'[1]Sort Sheet'!H109) -> N | G113: =IF('[1]Sort Sheet'!E109=0,"",'[1]Sort Sheet'!J109) -> Ben & Megan Drynan | H113: =IF('[1]Sort Sheet'!E109=0,"",'[1]Sort Sheet'!L109) -> Charolais | I113: =IF('[1]Sort Sheet'!E109=0,"",'[1]Sort Sheet'!O109) -> 0 | J113: =IF('[1]Sort Sheet'!P109=0,"",'[1]Sort Sheet'!P109) -> 280.2 | K113: =IF('[1]Sort Sheet'!E109=0,"",'[1]Sort Sheet'!Q109) -> 6 | L113: =IF('[1]Sort Sheet'!E109=0,"",'[1]Sort Sheet'!R109) -> 5 | M113: =IF('[1]Sort Sheet'!E109=0,"",'[1]Sort Sheet'!S109) -> 90 | N113: =IF('[1]Sort Sheet'!E109=0,"",'[1]Sort Sheet'!U109) -> 1b | O113: =IF('[1]Sort Sheet'!E109=0,"",'[1]Sort Sheet'!V109) -> 1 | P113: =IF('[1]Sort Sheet'!E109=0,"",'[1]Sort Sheet'!W109) -> 1 | Q113: =IF('[1]Sort Sheet'!E109=0,"",'[1]Sort Sheet'!X109) -> 5.4 | R113: =IF('[1]Sort Sheet'!E109=0,"",'[1]Sort Sheet'!M109) -> 62.17 | S113: =IF('[1]Sort Sheet'!E109=0,"",'[1]Sort Sheet'!Z109) -> 58.79 | T113: =IF('[1]Sort Sheet'!E109=0,"",'[1]Sort Sheet'!AA109) -> 10.20029674 | U113: =IF('[1]Sort Sheet'!E109=0,"",'[1]Sort Sheet'!AB109) -> 1680.290597 | V113: =IF('[1]Sort Sheet'!E109=0,"",'[1]Sort Sheet'!AC109) -> 5.996754451 | W113: 168.03 | X113: 1848.320597 | Y113: 6.596433252
A114: 106 | B114: =IF('[1]Sort Sheet'!D110=0,"",'[1]Sort Sheet'!D110) -> 223 | C114: =IF('[1]Sort Sheet'!E110=0,"",'[1]Sort Sheet'!E110) -> 325A | D114: =IF('[1]Sort Sheet'!F110=0,"",'[1]Sort Sheet'!F110) -> F | E114: =IF('[1]Sort Sheet'!E110=0,"",'[1]Sort Sheet'!AT110) -> N | F114: =IF('[1]Sort Sheet'!E110=0,"",'[1]Sort Sheet'!H110) -> N | G114: =IF('[1]Sort Sheet'!E110=0,"",'[1]Sort Sheet'!J110) -> R S & K M Stevens Family Trust | H114: =IF('[1]Sort Sheet'!E110=0,"",'[1]Sort Sheet'!L110) -> Charolais X Brangus | I114: =IF('[1]Sort Sheet'!E110=0,"",'[1]Sort Sheet'!O110) -> 0 | J114: =IF('[1]Sort Sheet'!P110=0,"",'[1]Sort Sheet'!P110) -> 244.6 | K114: =IF('[1]Sort Sheet'!E110=0,"",'[1]Sort Sheet'!Q110) -> 8 | L114: =IF('[1]Sort Sheet'!E110=0,"",'[1]Sort Sheet'!R110) -> 6 | M114: =IF('[1]Sort Sheet'!E110=0,"",'[1]Sort Sheet'!S110) -> 83 | N114: =IF('[1]Sort Sheet'!E110=0,"",'[1]Sort Sheet'!U110) -> 2 | O114: =IF('[1]Sort Sheet'!E110=0,"",'[1]Sort Sheet'!V110) -> 1 | P114: =IF('[1]Sort Sheet'!E110=0,"",'[1]Sort Sheet'!W110) -> 1 | Q114: =IF('[1]Sort Sheet'!E110=0,"",'[1]Sort Sheet'!X110) -> 5.47 | R114: =IF('[1]Sort Sheet'!E110=0,"",'[1]Sort Sheet'!M110) -> 55.51 | S114: =IF('[1]Sort Sheet'!E110=0,"",'[1]Sort Sheet'!Z110) -> 58.66 | T114: =IF('[1]Sort Sheet'!E110=0,"",'[1]Sort Sheet'!AA110) -> 10.20029674 | U114: =IF('[1]Sort Sheet'!E110=0,"",'[1]Sort Sheet'!AB110) -> 1463.562648 | V114: =IF('[1]Sort Sheet'!E110=0,"",'[1]Sort Sheet'!AC110) -> 5.983494065 | W114: 146.36 | X114: 1609.922648 | Y114: 6.581858742
A115: 107 | B115: =IF('[1]Sort Sheet'!D111=0,"",'[1]Sort Sheet'!D111) -> 194 | C115: =IF('[1]Sort Sheet'!E111=0,"",'[1]Sort Sheet'!E111) -> 317C | D115: =IF('[1]Sort Sheet'!F111=0,"",'[1]Sort Sheet'!F111) -> F | E115: =IF('[1]Sort Sheet'!E111=0,"",'[1]Sort Sheet'!AT111) -> N | F115: =IF('[1]Sort Sheet'!E111=0,"",'[1]Sort Sheet'!H111) -> N | G115: =IF('[1]Sort Sheet'!E111=0,"",'[1]Sort Sheet'!J111) -> Riverglen Pastoral Company | H115: =IF('[1]Sort Sheet'!E111=0,"",'[1]Sort Sheet'!L111) -> Charolais X | I115: =IF('[1]Sort Sheet'!E111=0,"",'[1]Sort Sheet'!O111) -> 0 | J115: =IF('[1]Sort Sheet'!P111=0,"",'[1]Sort Sheet'!P111) -> 274.2 | K115: =IF('[1]Sort Sheet'!E111=0,"",'[1]Sort Sheet'!Q111) -> 10 | L115: =IF('[1]Sort Sheet'!E111=0,"",'[1]Sort Sheet'!R111) -> 4 | M115: =IF('[1]Sort Sheet'!E111=0,"",'[1]Sort Sheet'!S111) -> 83 | N115: =IF('[1]Sort Sheet'!E111=0,"",'[1]Sort Sheet'!U111) -> 3 | O115: =IF('[1]Sort Sheet'!E111=0,"",'[1]Sort Sheet'!V111) -> 1 | P115: =IF('[1]Sort Sheet'!E111=0,"",'[1]Sort Sheet'!W111) -> 1 | Q115: =IF('[1]Sort Sheet'!E111=0,"",'[1]Sort Sheet'!X111) -> 5.66 | R115: =IF('[1]Sort Sheet'!E111=0,"",'[1]Sort Sheet'!M111) -> 59.77 | S115: =IF('[1]Sort Sheet'!E111=0,"",'[1]Sort Sheet'!Z111) -> 58.28 | T115: =IF('[1]Sort Sheet'!E111=0,"",'[1]Sort Sheet'!AA111) -> 10.20029674 | U115: =IF('[1]Sort Sheet'!E111=0,"",'[1]Sort Sheet'!AB111) -> 1630.045772 | V115: =IF('[1]Sort Sheet'!E111=0,"",'[1]Sort Sheet'!AC111) -> 5.944732938 | W115: 163 | X115: 1793.045772 | Y115: 6.539189539
A116: 108 | B116: =IF('[1]Sort Sheet'!D112=0,"",'[1]Sort Sheet'!D112) -> 278 | C116: =IF('[1]Sort Sheet'!E112=0,"",'[1]Sort Sheet'!E112) -> 345C | D116: =IF('[1]Sort Sheet'!F112=0,"",'[1]Sort Sheet'!F112) -> F | E116: =IF('[1]Sort Sheet'!E112=0,"",'[1]Sort Sheet'!AT112) -> Y | F116: =IF('[1]Sort Sheet'!E112=0,"",'[1]Sort Sheet'!H112) -> N | G116: =IF('[1]Sort Sheet'!E112=0,"",'[1]Sort Sheet'!J112) -> Arubial Pty Ltd | H116: =IF('[1]Sort Sheet'!E112=0,"",'[1]Sort Sheet'!L112) -> Santa X | I116: =IF('[1]Sort Sheet'!E112=0,"",'[1]Sort Sheet'!O112) -> 0 | J116: =IF('[1]Sort Sheet'!P112=0,"",'[1]Sort Sheet'!P112) -> 278.6 | K116: =IF('[1]Sort Sheet'!E112=0,"",'[1]Sort Sheet'!Q112) -> 15 | L116: =IF('[1]Sort Sheet'!E112=0,"",'[1]Sort Sheet'!R112) -> 5 | M116: =IF('[1]Sort Sheet'!E112=0,"",'[1]Sort Sheet'!S112) -> 84 | N116: =IF('[1]Sort Sheet'!E112=0,"",'[1]Sort Sheet'!U112) -> 5 | O116: =IF('[1]Sort Sheet'!E112=0,"",'[1]Sort Sheet'!V112) -> 1 | P116: =IF('[1]Sort Sheet'!E112=0,"",'[1]Sort Sheet'!W112) -> 1 | Q116: =IF('[1]Sort Sheet'!E112=0,"",'[1]Sort Sheet'!X112) -> 5.88 | R116: =IF('[1]Sort Sheet'!E112=0,"",'[1]Sort Sheet'!M112) -> U | S116: =IF('[1]Sort Sheet'!E112=0,"",'[1]Sort Sheet'!Z112) -> 57.73 | T116: =IF('[1]Sort Sheet'!E112=0,"",'[1]Sort Sheet'!AA112) -> 10.20029674 | U116: =IF('[1]Sort Sheet'!E112=0,"",'[1]Sort Sheet'!AB112) -> 1640.572682 | V116: =IF('[1]Sort Sheet'!E112=0,"",'[1]Sort Sheet'!AC112) -> 5.888631306 | W116: 164.06 | X116: 1804.632682 | Y116: 6.477504242

Sheet Champ Carcases
A15: Competitor : | C15: Darr Creek Pastoral
A17: Ear Tag : | C17: 321B
A19: Breed : | B19: Angus X Limousin
A21: Body No. | B21: Ear Tag Number | C21: Sex | D21: Fat Dist. | E21: Dent | F21: P8 Fat Depth | G21: Rib Fat Depth | H21: EMA | I21: Meat Colour | J21: Fat Colour | K21: Marbling | L21: pH | M21: HSCW | N21: Index Score | O21: Lean Meat Yield % | P21: Yield C/KG | Q21: Carcase Value GST Ex-clusive | R21: PBP C/KG GST Ex-clusive
A22: 201 | B22: 321B | C22: M | D22: Y | E22: 0 | F22: 6 | G22: 3 | H22: 94 | I22: 1b | J22: 0 | K22: 0 | L22: 5.46 | M22: 272.8 | N22: 54.37 | O22: 63.35 | P22: 10.75667656 | Q22: 1858.955935 | R22: 6.814354599
A28: Competitor : | C28: B Feeders Pty ltd
A30: Ear Tag : | C30: 349C
A32: Breed : | B32: Charolais X Santa
A34: Body No. | B34: Ear Tag Number | C34: Sex | D34: Fat Dist. | E34: Dent | F34: P8 Fat Depth | G34: Rib Fat Depth | H34: EMA | I34: Meat Colour | J34: Fat Colour | K34: Marbling | L34: pH | M34: HSCW | N34: Index Score | O34: Lean Meat Yield % | P34: Yield C/KG | Q34: Carcase Value GST Ex-clusive | R34: PBP C/KG GST Ex-clusive
A35: 289 | B35: 349C | C35: M | D35: Y | E35: 0 | F35: 6 | G35: 3 | H35: 102 | I35: 1b | J35: 1 | K35: 1 | L35: 5.49 | M35: 304.4 | N35: 51.87 | O35: 63.17 | P35: 10.75667656 | Q35: 2068.395742 | R35: 6.794992582

Sheet Pen of 3 Results
A15: Competitor : | C15: Darr Creek Pastoral | H15: Lot NO : | I15: 301 | L15: BREED : | M15: Angus X Limousin
A17: Body No. | B17: Ear Tag Number | C17: Sex | D17: Dent | E17: P8 Fat Depth | F17: Rib Fat Depth | G17: EMA | H17: Meat Colour | I17: Fat Colour | J17: Marbling | K17: pH | L17: HSCW | M17: Index Score | N17: Lean Meat Yield % | O17: Yield C/KG | P17: PBP Carcase Value (Ex GST) | Q17: PBP $/kg (Ex GST)
A18: 206 | B18: 321A | C18: M | D18: 0 | E18: 10 | F18: 4 | G18: 91 | H18: 2 | I18: 1 | J18: 1 | K18: 5.58 | L18: 292.4 | M18: 56.22 | N18: 61.5 | O18: 0 | P18: 0 | Q18: 0
A19: 201 | B19: 321B | C19: M | D19: 0 | E19: 6 | F19: 3 | G19: 94 | H19: 1b | I19: 0 | J19: 0 | K19: 5.46 | L19: 272.8 | M19: 54.37 | N19: 63.35 | O19: 0 | P19: 0 | Q19: 0
A20: 203 | B20: 321C | C20: M | D20: 0 | E20: 10 | F20: 3 | G20: 90 | H20: 2 | I20: 1 | J20: 1 | K20: 5.64 | L20: 269.8 | M20: 54.48 | N20: 62.79 | O20: 0 | P20: 0 | Q20: 0
A22: AVERAGES | E22: 9 | F22: 3 | G22: 92 | I22: 1 | J22: 1 | K22: 5.56 | L22: 278.3 | M22: 55 | N22: 62.54666667 | O22: 0 | P22: 0 | Q22: 0
A29: Competitor : | C29: Rich Enterprises P/L | H29: Lot NO : | I29: 302 | L29: BREED : | M29: Angus / Charolais X
A31: Body No. | B31: Ear Tag Number | C31: Sex | D31: Dent | E31: P8 Fat Depth | F31: Rib Fat Depth | G31: EMA | H31: Meat Colour | I31: Fat Colour | J31: Marbling | K31: pH | L31: HSCW | M31: Index Score | N31: Lean Meat Yield % | O31: Yield C/KG | P31: PBP Carcase Value (Ex GST) | Q31: PBP $/kg (Ex GST)
A32: 209 | B32: 322A | C32: M | D32: 0 | E32: 10 | F32: 3 | G32: 80 | H32: 1b | I32: 1 | J32: 1 | K32: 5.49 | L32: 299.8 | M32: 54.51 | N32: 59.74 | O32: 0 | P32: 0 | Q32: 0
A33: 212 | B33: 322B | C33: M | D33: 0 | E33: 8 | F33: 3 | G33: 91 | H33: 1b | I33: 1 | J33: 1 | K33: 5.48 | L33: 275 | M33: 55.52 | N33: 62.73 | O33: 0 | P33: 0 | Q33: 0
A34: 213 | B34: 322C | C34: M | D34: 0 | E34: 10 | F34: 5 | G34: 86 | H34: 3 | I34: 2 | J34: 1 | K34: 5.68 | L34: 279.8 | M34: 56.23 | N34: 60.92 | O34: 0 | P34: 0 | Q34: 0
A36: AVERAGES | E36: 9 | F36: 4 | G36: 86 | I36: 1 | J36: 1 | K36: 5.55 | L36: 284.9 | M36: 55.4 | N36: 61.13 | O36: 0 | P36: 0 | Q36: 0
A43: Competitor : | C43: B Feeders Pty ltd | H43: Lot NO : | I43: 314 | L43: BREED : | M43: Charolais X Santa
A45: Body No. | B45: Ear Tag Number | C45: Sex | D45: Dent | E45: P8 Fat Depth | F45: Rib Fat Depth | G45: EMA | H45: Meat Colour | I45: Fat Colour | J45: Marbling | K45: pH | L45: HSCW | M45: Index Score | N45: Lean Meat Yield % | O45: Yield C/KG | P45: PBP Carcase Value (Ex GST) | Q45: PBP $/kg (Ex GST)
A46: 291 | B46: 349A | C46: M | D46: 0 | E46: 10 | F46: 3 | G46: 80 | H46: 2 | I46: 1 | J46: 1 | K46: 5.52 | L46: 307.4 | M46: 54.33 | N46: 59.35 | O46: 0 | P46: 0 | Q46: 0
A47: 294 | B47: 349B | C47: M | D47: 0 | E47: 15 | F47: 5 | G47: 91 | H47: 1b | I47: 1 | J47: 1 | K47: 5.52 | L47: 298.2 | M47: 53.65 | N47: 60.71 | O47: 0 | P47: 0 | Q47: 0
A48: 289 | B48: 349C | C48: M | D48: 0 | E48: 6 | F48: 3 | G48: 102 | H48: 1b | I48: 1 | J48: 1 | K48: 5.49 | L48: 304.4 | M48: 51.87 | N48: 63.17 | O48: 0 | P48: 0 | Q48: 0
A50: AVERAGES | E50: 10 | F50: 4 | G50: 91 | I50: 1 | J50: 1 | K50: 5.51 | L50: 303.3 | M50: 53.3 | N50: 61.07666667 | O50: 0 | P50: 0 | Q50: 6.33199
